{"text_format":"1","workbook":"xlsx","n_sheets":7,"sheets":["Cerere de Finantare","Anexa 1 HG_907","Anexa 2 HG_907","Anexa 3 HG_907","Anexa 1 HG_28","Anexa 2 HG_28","Anexa 3 HG_28"],"not_rendered":{"charts":0,"images":7,"macros":1,"external_links":0,"defined_names":1,"comments":0,"pivot_tables":0},"unopened":[],"bounds":{"document_bytes":16777216,"sheet_cells":100000,"rows_first":2000,"rows_last":500,"rows_between":2000,"halvings":0,"cell_chars":16384,"cell_head_chars":4096},"cells_cut":0,"cells_raw":0,"read":"whole","date_system":"1900"}

{"sheet":"Cerere de Finantare","index":0,"n_rows":954,"n_cols":61,"rows_kept":954,"cut":false,"hidden":false,"merged":[[175,0,175,60],[177,2,177,27],[177,31,177,56],[178,2,178,27],[178,31,178,56],[180,2,180,56],[181,2,181,56],[183,2,183,27],[183,31,183,56],[184,2,184,27],[184,31,184,56],[863,0,863,60],[864,0,864,60],[865,0,865,60],[867,0,873,36],[867,48,868,60],[868,39,868,46],[870,39,870,46],[872,39,872,46],[872,50,872,59],[365,0,365,3],[365,4,365,41],[365,51,365,60],[366,0,366,3],[366,4,366,41],[366,51,366,60],[367,0,367,3],[367,4,367,41],[367,51,367,60],[368,0,368,3],[368,4,368,41],[368,51,368,60],[880,41,880,50],[880,51,880,60],[369,42,369,46],[369,47,369,50],[446,0,446,43],[405,0,405,43],[371,0,371,41],[363,0,363,3],[363,4,363,41],[374,7,374,41],[375,7,375,41],[375,42,376,60],[376,7,376,41],[377,7,377,41],[377,42,377,50],[377,51,377,60],[378,7,378,60],[379,0,379,60],[380,0,380,60],[381,0,381,60],[382,0,382,3],[382,4,382,41],[363,51,363,60],[369,0,369,3],[369,4,369,41],[369,51,369,60],[370,0,370,41],[370,42,370,60],[372,0,372,42],[364,0,364,3],[364,4,364,41],[364,51,364,60],[363,42,363,46],[363,47,363,50],[364,42,364,46],[364,47,364,50],[365,42,365,46],[365,47,365,50],[366,42,366,46],[366,47,366,50],[367,42,367,46],[367,47,367,50],[368,42,368,46],[368,47,368,50],[358,0,358,3],[358,4,358,41],[358,51,358,60],[359,0,359,3],[359,4,359,41],[359,51,359,60],[360,0,360,3],[360,4,360,41],[360,51,360,60],[361,0,361,3],[361,4,361,41],[361,51,361,60],[362,0,362,3],[362,4,362,41],[362,51,362,60],[358,42,358,46],[358,47,358,50],[359,42,359,46],[359,47,359,50],[360,42,360,46],[360,47,360,50],[361,42,361,46],[361,47,361,50],[362,42,362,46],[362,47,362,50],[353,0,353,3],[353,6,353,41],[353,51,353,60],[354,0,354,3],[354,6,354,41],[354,51,354,60],[355,0,355,3],[355,6,355,41],[355,51,355,60],[356,0,356,3],[356,6,356,41],[356,51,356,60],[357,0,357,3],[357,6,357,41],[357,51,357,60],[353,42,353,46],[353,47,353,50],[354,42,354,46],[354,47,354,50],[355,42,355,46],[355,47,355,50],[356,42,356,46],[356,47,356,50],[357,42,357,46],[357,47,357,50],[348,0,348,3],[348,4,348,41],[348,51,348,60],[349,0,349,3],[349,4,349,41],[349,51,349,60],[350,0,350,3],[350,4,350,41],[350,51,350,60],[351,0,351,3],[351,4,351,41],[351,51,351,60],[352,0,352,3],[352,6,352,41],[352,51,352,60],[348,42,348,46],[348,47,348,50],[349,42,349,46],[349,47,349,50],[350,42,350,46],[350,47,350,50],[351,42,351,46],[351,47,351,50],[352,42,352,46],[352,47,352,50],[343,0,343,3],[343,4,343,41],[343,51,343,60],[344,0,344,3],[344,4,344,41],[344,51,344,60],[345,0,345,3],[345,4,345,41],[345,51,345,60],[346,0,346,3],[346,4,346,41],[346,51,346,60],[347,0,347,3],[347,4,347,41],[347,51,347,60],[343,42,343,46],[343,47,343,50],[344,42,344,46],[344,47,344,50],[345,42,345,46],[345,47,345,50],[346,42,346,46],[346,47,346,50],[347,42,347,46],[347,47,347,50],[339,0,339,3],[339,4,339,41],[339,51,339,60],[340,0,340,3],[340,4,340,41],[340,51,340,60],[341,0,341,3],[341,4,341,41],[341,51,341,60],[342,0,342,3],[342,4,342,41],[342,51,342,60],[338,42,338,46],[338,47,338,50],[339,42,339,46],[339,47,339,50],[340,42,340,46],[340,47,340,50],[341,42,341,46],[341,47,341,50],[342,42,342,46],[342,47,342,50],[327,0,327,60],[329,7,329,41],[330,7,330,41],[330,42,331,60],[331,7,331,41],[332,7,332,41],[332,42,332,50],[332,51,332,60],[333,7,333,60],[334,0,334,60],[335,0,335,60],[336,0,336,60],[337,0,337,3],[337,4,337,41],[337,42,337,50],[337,51,337,60],[338,0,338,3],[338,4,338,41],[338,51,338,60],[324,0,324,27],[324,28,324,32],[324,33,324,37],[324,38,324,43],[324,44,324,48],[324,49,324,54],[324,55,324,60],[325,0,325,27],[325,28,325,32],[325,33,325,37],[325,38,325,43],[325,44,325,48],[325,49,325,54],[325,55,325,60],[326,0,326,27],[326,28,326,32],[326,33,326,60],[321,0,321,27],[321,28,321,32],[321,33,321,37],[321,38,321,43],[321,44,321,48],[321,49,321,60],[322,0,322,27],[322,28,322,32],[322,33,322,37],[322,38,322,43],[322,44,322,48],[322,49,322,60],[323,0,323,27],[323,28,323,32],[323,33,323,37],[323,38,323,43],[323,44,323,48],[323,49,323,60],[317,0,318,27],[317,28,317,37],[317,38,317,48],[317,49,317,60],[318,28,318,32],[318,33,318,37],[318,38,318,43],[318,44,318,48],[318,49,318,60],[319,0,319,27],[319,28,319,32],[319,33,319,37],[319,38,319,43],[319,44,319,48],[319,49,319,60],[320,0,320,27],[320,28,320,32],[320,33,320,37],[320,38,320,43],[320,44,320,48],[320,49,320,60],[314,0,314,27],[314,28,314,32],[314,33,314,37],[314,38,314,43],[314,44,314,48],[314,49,314,54],[314,55,314,60],[315,0,315,27],[315,28,315,32],[315,33,315,37],[315,38,315,43],[315,44,315,48],[315,49,315,54],[315,55,315,60],[316,0,316,27],[316,28,316,32],[316,33,316,37],[316,38,316,43],[316,44,316,48],[316,49,316,54],[316,55,316,60],[311,0,311,27],[311,28,311,32],[311,33,311,37],[311,38,311,43],[311,44,311,48],[311,49,311,54],[311,55,311,60],[312,0,312,27],[312,28,312,37],[312,38,312,48],[312,49,312,60],[313,0,313,27],[313,28,313,32],[313,33,313,37],[313,38,313,43],[313,44,313,48],[313,49,313,54],[313,55,313,60],[308,0,308,27],[308,28,308,32],[308,33,308,37],[308,38,308,43],[308,44,308,48],[308,49,308,54],[308,55,308,60],[309,0,309,27],[309,28,309,32],[309,33,309,37],[309,38,309,43],[309,44,309,48],[309,49,309,54],[309,55,309,60],[310,0,310,27],[310,28,310,32],[310,33,310,37],[310,38,310,43],[310,44,310,48],[310,49,310,54],[310,55,310,60],[305,0,305,27],[305,28,305,32],[305,33,305,37],[305,38,305,43],[305,44,305,48],[305,49,305,54],[305,55,305,60],[306,0,306,27],[306,28,306,32],[306,33,306,37],[306,38,306,43],[306,44,306,48],[306,49,306,54],[306,55,306,60],[307,0,307,27],[307,28,307,43],[307,44,307,48],[307,49,307,54],[307,55,307,60],[302,0,302,27],[302,28,302,43],[302,44,302,48],[302,49,302,54],[302,55,302,60],[303,0,303,27],[303,28,303,32],[303,33,303,37],[303,38,303,43],[303,44,303,48],[303,49,303,54],[303,55,303,60],[304,0,304,27],[304,28,304,32],[304,33,304,37],[304,38,304,43],[304,44,304,48],[304,49,304,54],[304,55,304,60],[299,0,299,27],[299,28,299,32],[299,33,299,37],[299,38,299,43],[299,44,299,48],[299,49,299,54],[299,55,299,60],[300,0,300,27],[300,28,300,32],[300,33,300,37],[300,38,300,43],[300,44,300,48],[300,49,300,54],[300,55,300,60],[301,0,301,27],[301,28,301,32],[301,33,301,37],[301,38,301,43],[301,44,301,48],[301,49,301,54],[301,55,301,60],[296,0,296,27],[296,28,296,32],[296,33,296,37],[296,38,296,43],[296,44,296,48],[296,49,296,54],[296,55,296,60],[297,0,297,27],[297,28,297,32],[297,33,297,37],[297,38,297,43],[297,44,297,48],[297,49,297,54],[297,55,297,60],[298,0,298,27],[298,28,298,32],[298,33,298,37],[298,38,298,43],[298,44,298,48],[298,49,298,54],[298,55,298,60],[293,0,293,27],[293,28,293,32],[293,33,293,37],[293,38,293,43],[293,44,293,48],[293,49,293,54],[293,55,293,60],[294,0,294,27],[294,28,294,32],[294,33,294,37],[294,38,294,43],[294,44,294,48],[294,49,294,54],[294,55,294,60],[295,0,295,27],[295,28,295,32],[295,33,295,37],[295,38,295,43],[295,44,295,48],[295,49,295,54],[295,55,295,60],[290,0,290,27],[290,28,290,32],[290,33,290,37],[290,38,290,43],[290,44,290,48],[290,49,290,54],[290,55,290,60],[291,0,291,27],[291,28,291,32],[291,33,291,37],[291,38,291,43],[291,44,291,48],[291,49,291,54],[291,55,291,60],[292,0,292,27],[292,28,292,32],[292,33,292,37],[292,38,292,43],[292,44,292,48],[292,49,292,54],[292,55,292,60],[287,0,287,27],[287,28,287,43],[287,44,287,48],[287,49,287,54],[287,55,287,60],[288,0,288,27],[288,28,288,32],[288,33,288,37],[288,38,288,43],[288,44,288,48],[288,49,288,54],[288,55,288,60],[289,0,289,27],[289,28,289,32],[289,33,289,37],[289,38,289,43],[289,44,289,48],[289,49,289,54],[289,55,289,60],[284,0,284,27],[284,28,284,32],[284,33,284,37],[284,38,284,43],[284,44,284,48],[284,49,284,54],[284,55,284,60],[285,0,285,27],[285,28,285,32],[285,33,285,37],[285,38,285,43],[285,44,285,48],[285,49,285,54],[285,55,285,60],[286,0,286,27],[286,28,286,32],[286,33,286,37],[286,38,286,43],[286,44,286,48],[286,49,286,54],[286,55,286,60],[281,0,281,27],[281,28,281,32],[281,33,281,37],[281,38,281,43],[281,44,281,48],[281,49,281,54],[281,55,281,60],[282,0,282,27],[282,28,282,32],[282,33,282,37],[282,38,282,43],[282,44,282,48],[282,49,282,54],[282,55,282,60],[283,0,283,27],[283,28,283,32],[283,33,283,37],[283,38,283,43],[283,44,283,48],[283,49,283,54],[283,55,283,60],[278,0,278,27],[278,28,278,32],[278,33,278,37],[278,38,278,43],[278,44,278,48],[278,49,278,54],[278,55,278,60],[279,0,279,27],[279,28,279,32],[279,33,279,37],[279,38,279,43],[279,44,279,48],[279,49,279,54],[279,55,279,60],[280,0,280,27],[280,28,280,32],[280,33,280,37],[280,38,280,43],[280,44,280,48],[280,49,280,54],[280,55,280,60],[275,0,275,27],[275,28,275,32],[275,33,275,37],[275,38,275,43],[275,44,275,48],[275,49,275,54],[275,55,275,60],[276,0,276,27],[276,28,276,32],[276,33,276,37],[276,38,276,43],[276,44,276,48],[276,49,276,54],[276,55,276,60],[277,0,277,27],[277,28,277,32],[277,33,277,37],[277,38,277,43],[277,44,277,48],[277,49,277,54],[277,55,277,60],[272,0,272,27],[272,28,272,32],[272,33,272,37],[272,38,272,43],[272,44,272,48],[272,49,272,54],[272,55,272,60],[273,0,273,27],[273,28,273,32],[273,33,273,37],[273,38,273,43],[273,44,273,48],[273,49,273,54],[273,55,273,60],[274,0,274,27],[274,28,274,32],[274,33,274,37],[274,38,274,43],[274,44,274,48],[274,49,274,54],[274,55,274,60],[265,0,265,34],[265,35,265,60],[266,0,266,34],[266,35,266,43],[266,44,266,51],[266,52,266,60],[267,0,267,60],[269,0,270,14],[269,16,269,18],[269,20,269,24],[269,26,269,30],[269,32,269,47],[269,50,269,58],[270,28,270,60],[271,0,271,27],[271,28,271,43],[271,44,271,60],[261,0,261,27],[261,28,261,32],[261,33,261,37],[261,38,261,43],[261,44,261,48],[261,49,261,54],[261,55,261,60],[262,0,262,27],[262,28,262,32],[262,33,262,37],[262,38,262,43],[262,44,262,48],[262,49,262,54],[262,55,262,60],[263,0,263,27],[263,28,263,32],[263,33,263,60],[258,0,258,27],[258,28,258,32],[258,33,258,37],[258,38,258,43],[258,44,258,48],[258,49,258,60],[259,0,259,27],[259,28,259,32],[259,33,259,37],[259,38,259,43],[259,44,259,48],[259,49,259,60],[260,0,260,27],[260,28,260,32],[260,33,260,37],[260,38,260,43],[260,44,260,48],[260,49,260,60],[254,0,255,27],[254,28,254,37],[254,38,254,48],[254,49,254,60],[255,28,255,32],[255,33,255,37],[255,38,255,43],[255,44,255,48],[255,49,255,60],[256,0,256,27],[256,28,256,32],[256,33,256,37],[256,38,256,43],[256,44,256,48],[256,49,256,60],[257,0,257,27],[257,28,257,32],[257,33,257,37],[257,38,257,43],[257,44,257,48],[257,49,257,60],[251,0,251,27],[251,28,251,32],[251,33,251,37],[251,38,251,43],[251,44,251,48],[251,49,251,54],[251,55,251,60],[252,0,252,27],[252,28,252,32],[252,33,252,37],[252,38,252,43],[252,44,252,48],[252,49,252,54],[252,55,252,60],[253,0,253,27],[253,28,253,32],[253,33,253,37],[253,38,253,43],[253,44,253,48],[253,49,253,54],[253,55,253,60],[248,0,248,27],[248,28,248,32],[248,33,248,37],[248,38,248,43],[248,44,248,48],[248,49,248,54],[248,55,248,60],[249,0,249,27],[249,28,249,37],[249,38,249,48],[249,49,249,60],[250,0,250,27],[250,28,250,32],[250,33,250,37],[250,38,250,43],[250,44,250,48],[250,49,250,54],[250,55,250,60],[245,0,245,27],[245,28,245,32],[245,33,245,37],[245,38,245,43],[245,44,245,48],[245,49,245,54],[245,55,245,60],[246,0,246,27],[246,28,246,32],[246,33,246,37],[246,38,246,43],[246,44,246,48],[246,49,246,54],[246,55,246,60],[247,0,247,27],[247,28,247,32],[247,33,247,37],[247,38,247,43],[247,44,247,48],[247,49,247,54],[247,55,247,60],[242,0,242,27],[242,28,242,32],[242,33,242,37],[242,38,242,43],[242,44,242,48],[242,49,242,54],[242,55,242,60],[243,0,243,27],[243,28,243,32],[243,33,243,37],[243,38,243,43],[243,44,243,48],[243,49,243,54],[243,55,243,60],[244,0,244,27],[244,28,244,43],[244,44,244,48],[244,49,244,54],[244,55,244,60],[239,0,239,27],[239,28,239,43],[239,44,239,48],[239,49,239,54],[239,55,239,60],[240,0,240,27],[240,28,240,32],[240,33,240,37],[240,38,240,43],[240,44,240,48],[240,49,240,54],[240,55,240,60],[241,0,241,27],[241,28,241,32],[241,33,241,37],[241,38,241,43],[241,44,241,48],[241,49,241,54],[241,55,241,60],[236,0,236,27],[236,28,236,32],[236,33,236,37],[236,38,236,43],[236,44,236,48],[236,49,236,54],[236,55,236,60],[237,0,237,27],[237,28,237,32],[237,33,237,37],[237,38,237,43],[237,44,237,48],[237,49,237,54],[237,55,237,60],[238,0,238,27],[238,28,238,32],[238,33,238,37],[238,38,238,43],[238,44,238,48],[238,49,238,54],[238,55,238,60],[233,0,233,27],[233,28,233,32],[233,33,233,37],[233,38,233,43],[233,44,233,48],[233,49,233,54],[233,55,233,60],[234,0,234,27],[234,28,234,32],[234,33,234,37],[234,38,234,43],[234,44,234,48],[234,49,234,54],[234,55,234,60],[235,0,235,27],[235,28,235,32],[235,33,235,37],[235,38,235,43],[235,44,235,48],[235,49,235,54],[235,55,235,60],[230,0,230,27],[230,28,230,32],[230,33,230,37],[230,38,230,43],[230,44,230,48],[230,49,230,54],[230,55,230,60],[231,0,231,27],[231,28,231,32],[231,33,231,37],[231,38,231,43],[231,44,231,48],[231,49,231,54],[231,55,231,60],[232,0,232,27],[232,28,232,32],[232,33,232,37],[232,38,232,43],[232,44,232,48],[232,49,232,54],[232,55,232,60],[227,0,227,27],[227,28,227,32],[227,33,227,37],[227,38,227,43],[227,44,227,48],[227,49,227,54],[227,55,227,60],[228,0,228,27],[228,28,228,32],[228,33,228,37],[228,38,228,43],[228,44,228,48],[228,49,228,54],[228,55,228,60],[229,0,229,27],[229,28,229,32],[229,33,229,37],[229,38,229,43],[229,44,229,48],[229,49,229,54],[229,55,229,60],[224,0,224,27],[224,28,224,43],[224,44,224,60],[225,0,225,27],[225,28,225,32],[225,33,225,37],[225,38,225,43],[225,44,225,48],[225,49,225,54],[225,55,225,60],[226,0,226,27],[226,28,226,32],[226,33,226,37],[226,38,226,43],[226,44,226,48],[226,49,226,54],[226,55,226,60],[221,0,221,27],[221,28,221,32],[221,33,221,37],[221,38,221,43],[221,44,221,48],[221,49,221,54],[221,55,221,60],[222,0,222,27],[222,28,222,32],[222,33,222,37],[222,38,222,43],[222,44,222,48],[222,49,222,54],[222,55,222,60],[223,0,223,27],[223,28,223,32],[223,33,223,37],[223,38,223,43],[223,44,223,48],[223,49,223,54],[223,55,223,60],[218,0,218,27],[218,28,218,32],[218,33,218,37],[218,38,218,43],[218,44,218,48],[218,49,218,54],[218,55,218,60],[219,0,219,27],[219,28,219,32],[219,33,219,37],[219,38,219,43],[219,44,219,48],[219,49,219,54],[219,55,219,60],[220,0,220,27],[220,28,220,32],[220,33,220,37],[220,38,220,43],[220,44,220,48],[220,49,220,54],[220,55,220,60],[215,0,215,27],[215,28,215,32],[215,33,215,37],[215,38,215,43],[215,44,215,48],[215,49,215,54],[215,55,215,60],[216,0,216,27],[216,28,216,32],[216,33,216,37],[216,38,216,43],[216,44,216,48],[216,49,216,54],[216,55,216,60],[217,0,217,27],[217,28,217,32],[217,33,217,37],[217,38,217,43],[217,44,217,48],[217,49,217,54],[217,55,217,60],[212,0,212,27],[212,28,212,32],[212,33,212,37],[212,38,212,43],[212,44,212,48],[212,49,212,54],[212,55,212,60],[213,0,213,27],[213,28,213,32],[213,33,213,37],[213,38,213,43],[213,44,213,48],[213,49,213,54],[213,55,213,60],[214,0,214,27],[214,28,214,32],[214,33,214,37],[214,38,214,43],[214,44,214,48],[214,49,214,54],[214,55,214,60],[203,0,203,34],[203,35,203,43],[203,44,203,51],[203,52,203,60],[204,0,204,60],[206,0,207,14],[206,16,206,18],[206,20,206,24],[206,26,206,30],[206,32,206,47],[206,50,206,58],[207,28,207,60],[208,0,208,27],[208,28,208,43],[208,44,208,60],[211,33,211,37],[211,38,211,43],[211,44,211,48],[211,49,211,54],[211,55,211,60],[855,0,855,2],[855,5,855,60],[856,0,856,2],[856,3,856,60],[857,0,857,2],[857,3,857,60],[858,0,858,2],[858,3,858,60],[859,3,859,60],[860,0,860,30],[860,41,860,52],[861,1,861,31],[861,41,861,50],[846,0,846,2],[846,5,846,60],[847,0,847,2],[847,5,847,60],[848,0,848,2],[848,3,848,60],[849,0,849,2],[849,5,849,60],[850,0,850,2],[850,5,850,60],[851,0,851,2],[851,3,851,60],[852,0,852,2],[852,3,852,60],[853,0,853,2],[853,3,853,60],[854,0,854,2],[854,5,854,60],[837,0,837,2],[837,5,837,60],[838,0,838,2],[838,5,838,60],[839,1,839,2],[839,5,839,60],[840,0,840,2],[840,3,840,60],[841,0,841,2],[841,3,841,60],[842,0,842,2],[842,3,842,60],[843,0,843,2],[843,5,843,60]],"merged_total":3465,"flags":["merged_cut"]}
[]
[]
[null,null,null,null,null,null,null,null,null,null,null,null,null,null,null,null,null,null,null,null,null,null,null,null,null,null,null,null,null,null,null,null,null,null,null,null,null,null,null,null,null,null,null,null,null,null,null,null,null,null,null,null,null,null,null,4,null,null,null,5]
[]
[null,null,null,null,null,null,null,null,null,null,null,null,null,null,null,null,null,null,null,null,null,null,null,null,null,null,null,null,null,null,null,null,null,null,null,null,null,null,null,null,null,null,null,null,null,null,null,null,null,"V01 - octombrie 2017"]
[null,null,null,null,null,null,"MINISTERUL AGRICULTURII ŞI DEZVOLTĂRII RURALE"]
[null,null,null,null,null,null,"AGENŢIA PENTRU FINANŢAREA INVESTIŢIILOR RURALE"]
[null,null,null,null,null,null,null,null,null,null,null,null,null,null,null,null,null,null,null,null,null,null,null,null,null,null,null,null,null,null,null,null,null,null,null,null,null,null,null,null,null,null,null,null,null,null,null,null,null,null,null,null,null,null,null,3,3,null,1,2,10]
[null,null,null,null,null,null,null,null,null,null,null,null,null,null,null,null,null,null,null,null,null,null,null,null,null,null,null,null,null,null,null,null,null,null,null,null,null,null,null,null,null,null,"SECŢIUNE GENERALĂ"]
[]
["DATE DE ÎNREGISTRARE",null,null,null,null,null,null,null,null,null,null,null,null,null,null,null,null,null,null,null,null,null,null,null,null,null,null,null,null,null,null,null,null,null,null,null,"NUME ŞI PRENUME DIRECTOR OJFIR/"]
[null,null,null,null,null,null,null,null,null,null,null,null,null,null,null,null,null,null,null,null,null,null,null,null,null,null,null,null,null,null,null,null,null,null,null,null,"DIRECTOR GENERAL ADJUNCT CRFIR"]
["Se completeaza de catre Agentia pentru Finantarea Investițiilor Rurale-Oficiul Judetean/"]
["Centrul Regional – Schema de ajutor de stat GBER aferentă Masurii M1/2A"]
["OJFIR/CRFIR",null,null,null,null,null,null,null,null,null,null,null,null,null,null,null,null,null,null,null,null,null,null,null,null,null,null,null,null,null,null,null,null,null,null,null,"SEMNATURA Director OJFIR/Director General\nAdjunct CRFIR\nStampila OJFIR/CRFIR"]
[null,null,null,null,null,null,null,null,null,null,null,null,null,null,null,null,null,null,null,null,null,null,null,null,null,null,null,null,null,null,null,null,null,null,null,null,"Adjunct CRFIR"]
["Număr "]
["înregistrare",null,null,null,null,null,null,null,null,null,null,null,null,null,null,null,null,null,null,null,null,null,null,null,null,null,null,null,null,null,null,null,null,null,null,null,"Stampila OJFIR/CRFIR"]
[]
[]
[]
[]
["Data Înregistrării"]
["Numele şi prenumele persoanei care înregistrează"]
["Semnătura:"]
["Data primirii cererii de finanţare la contractare:"]
["Se completează de către solicitant"]
["PREZENTARE GENERALĂ PROIECT"]
[]
["A1 Sub-măsura 19.2 - denumirea măsurii din SDL:         Masura M1/2A Exploatatii agricole si procesare"]
[]
[null,"Domeniul \nde interventie",null,null,null,null,null,null,null,null,null,null,null,"2A) Imbunatatirea performantei economice a tuturor exploatatiilor agricole si facilitarea \nrestructurarii si modernizarii exploatatiilor, in special in vederea cresterii participarii pe piata si a orientarii spre piata, precum si a diversificarii activitatilor agricole"]
[]
[null,"A2 Denumire solicitant:"]
[]
["  A3 Titlu proiect2:"]
[]
[null,"A4 Descrierea succintă a proiectului:"]
[]
[]
[]
[null,null,"A5. Amplasarea investiţiei:"]
[]
["Regiunea de dezvoltare:",null,null,null,null,null,null,null,null,null,null,null,null,null,null,null,null,null,null,null,null,null,null,null,null,null,null,"Judeţ:"]
[]
[null,"Valoarea eligibilă GBER /\nvaloarea eligibilă GBER a\ncomponentei investiţionale\n(euro)",null,null,null,null,null,null,null,null,null,null,null,null,null,"Judeţ",null,null,null,null,null,null,null,null,null,null,null,"Comună/Oraş",null,null,null,null,null,null,null,null,null,null,null,"Sat",null,null,null,null,null,null,null,null,null,null,"Sat"]
[]
[]
[]
[]
[]
[]
[]
[]
[]
[]
[]
[]
[]
[]
[]
[]
[]
[null,"A6 - INFORMATII privind: tipul proiectului, investitiei, intreprinderii şi tipul de ajutor de stat"]
[null,"A 6.1 Tip proiect"]
[null,null,null,null,null,"Proiect cu construcţii-montaj",null,null,null,null,null,null,null,null,null,null,null,null,null,null,null,null,null,"Proiect fără construcţii-montaj"]
[null,"A 6.2 Tip investiţie vizata prin proiect"]
[null,"INVESTIŢIE INIŢIALĂ, privind:",null,null,null,null,null,null,null,null,null,null,null,null,null,null,null,null,null,null,null,null,null,null,null,null,null,null,null,"INVESTIŢIE INIŢIALĂ PENTRU \nO NOUA ACTIVITATE ECONOMICĂ, privind:"]
[]
[null,null,null,"- înfiinţarea unei noi unităţi de producție",null,null,null,null,null,null,null,null,null,null,null,null,null,null,null,null,null,null,null,null,null,null,null,null,null,null,null,null,"- înfiinţarea unei noi unităţi de producție"]
[null,null,null,"- extinderea capacităţii unei unităţi de producție existente",null,null,null,null,null,null,null,null,null,null,null,null,null,null,null,null,null,null,null,null,null,null,null,null,null,null,null,null,"- diversificarea activităţii unei unităţi de producție, cu condiţia ca noua activitate eligibilă să nu fie identică "]
[null,null,null,"- diversificarea producţiei unei unităţi de producție prin produse care nu au fost fabricate anterior în unitate",null,null,null,null,null,null,null,null,null,null,null,null,null,null,null,null,null,null,null,null,null,null,null,null,null,null,null,null,"sau similară cu activitatea desfăşurată anterior în unitatea respectivă"]
[null,null,null,"-schimbarea fundamentală a procesului general de producţie al unei unităţi de producție existente"]
[null,null,null,"- extinderea capacităţii unei unităţi de producție existente ȘI diversificarea producţiei unei unităţi prin produse care nu au fost fabricate in unitatea de productie, anterior depunerii proiectului"]
[]
[]
[]
[null,"A 6.3 BENEFICIAR PRIVAT - TIP INTREPRINDERE"]
[null,"Investitiile vizate prin proiect"]
[null,null,null,"FĂRĂ lanț alimentar integrat",null,null,null,null,null,null,null,null,null,null,null,null,null,null,null,null,null,null,null,null,null,null,null,null,"Investitiile vizate prin proiect"]
[null,null,null,null,null,null,null,null,null,null,null,null,null,null,null,null,null,null,null,null,null,null,null,null,null,null,null,null,"FĂRĂ lanț alimentar integrat"]
[]
[]
[]
[null,"Alte intreprinderi, respectiv \nIntreprinderi care Nu sunt IMM",null,null,null,null,null,null,null,null,null,null,null,null,null,null,null,"Intreprinderi mici si mijlocii (IMM)"]
[]
[null,"MARE",null,null,null,null,null,null,null,null,null,null,null,null,null,null,null,"MIJLOCIE",null,null,null,null,null,null,null,null,null,null,null,null,null,"MICĂ",null,null,null,null,null,null,null,null,null,null,null,null,null,null,"MICRO"]
[null,"Intreprindere mare",null,null,null,null,null,null,null,null,null,null,null,null,null,null,null,"Intreprindere mijlocie",null,null,null,null,null,null,null,null,null,null,null,null,null,"Intreprindere mică",null,null,null,null,null,null,null,null,null,null,null,null,null,null,"Microintreprindere"]
[null,"Cooperativă **",null,null,null,null,null,null,null,null,null,null,null,null,null,null,null,"Cooperativă",null,null,null,null,null,null,null,null,null,null,null,null,null,"Cooperativă",null,null,null,null,null,null,null,null,null,null,null,null,null,null,"Cooperativă"]
[null,"Grup de producători**",null,null,null,null,null,null,null,null,null,null,null,null,null,null,null,"Grup de producători ",null,null,null,null,null,null,null,null,null,null,null,null,null,"Grup de producători ",null,null,null,null,null,null,null,null,null,null,null,null,null,null,"Grup de producători "]
[null,"Investitiile vizate prin proiect"]
[null,null,null,"CU lanț alimentar integrat",null,null,null,null,null,null,null,null,null,null,null,null,null,null,null,null,null,null,null,null,null,null,null,null,"Investitiile vizate prin proiect"]
[null,null,null,null,null,null,null,null,null,null,null,null,null,null,null,null,null,null,null,null,null,null,null,null,null,null,null,null,"CU lanț alimentar integrat"]
[]
[]
[]
[]
[null,null,"A 6.4 Prescorare5",null,null,null,null,null,null,null,null,null,null,null,null,null,null,null,null,null,null,null,null,null,null,"A 6.5 Domenii de intervenţie:"]
[]
[null,null,"A 6.6 Tipul de ajutor:",null,null,null,null,null,null,null,null,"Conform SDL Meleagurile Cricovului",null,null,null,null,null,null,null,null,null,null,null,null,null,null,null,null,"(DI 3A) Dezvoltarea unor capacităţi de procesare şi\ncomercializare prin investitii iniţiale legate de extinderea"]
[]
[null,null,null,null,null,null,null,null,null,null,null,null,null,null,null,null,null,null,null,null,null,null,null,null,null,null,null,null,"capacității / diversificarea producţiei/diversificarea activitatii / schimbarea fundamentala care conduc la dezvoltarea unor capacităţi de procesare şi comercializare."]
[]
[null,null,null,null,null,null,null,null,null,null,null,null,null,null,null,null,null,null,null,null,null,null,null,null,null,null,null,null,"(DI 6A) înfiinţarea unei noi unităţi de productie."]
[]
[null,null,"Detaliere criterii de selecţie îndeplinite de solicitant:"]
[]
[]
[null,null,"Denumire consultant:",null,null,null,null,null,null,null,null,null,null,null,null,null,null,null,null,null,null,null,null,null,null,null,null,null,null,null,null,null,"Consultant - Cod Unic de Înregistrare (CUI):"]
[]
[null,null,null,null,null,null,null,null,null,null,null,null,null,null,null,null,null,null,null,null,null,null,null,null,null,null,null,null,null,null,null,null,"Consultant - Număr înregistrare la ONRC:"]
[]
[]
[null,null,"Denumire proiectant:",null,null,null,null,null,null,null,null,null,null,null,null,null,null,null,null,null,null,null,null,null,null,null,null,null,null,null,null,null,"Proiectant - Cod Unic de Înregistrare (CUI):"]
[]
[null,null,null,null,null,null,null,null,null,null,null,null,null,null,null,null,null,null,null,null,null,null,null,null,null,null,null,null,null,null,null,null,"Proiectant - Număr înregistrare la ONRC:"]
[]
[]
[]
[]
["B INFORMAŢII PRIVIND SOLICITANTUL"]
["B1 Descrierea solicitantului"]
[null,"B1.1 Informaţii privind solicitantul"]
[null,null,null,null,null,null,null,null,null,null,null,null,null,null,null,null,null,null,null,"Cod Unic de Înregistrare și/sau Codul de"]
[null,null,"Data de înfiinţare",null,null,null,null,null,null,null,null,null,null,null,null,null,null,null,null,"Înregistrare Fiscală",null,null,null,null,null,null,null,null,null,null,null,null,null,null,null,null,null,null,null,null,null,"Statutul juridic al solicitantului"]
[]
[]
[null,null,"Număr de înregistrare la registrul comerţului"]
[]
[null,null,"Codul CAEN al activităţii vizat de proiect:"]
[]
[null,null,"* Codul unic de înregistrare APIA",null,null,null,null,null,null,null,null,null,null,null,null,null,null,null,null,null,null,null,null,null,null,null,null,null,null,null,null,null,null,null,null,null,null,"Anul atribuirii codului: "]
[]
[null,"B1.2 Sediul social  / Reşedinţa din România"]
[null,"Judeţ",null,null,null,null,null,null,null,null,null,null,null,null,null,null,null,null,null,null,null,null,"Localitate",null,null,null,null,null,null,null,null,null,null,null,null,null,null,null,null,null,null,null,"Sat"]
[]
[null,"Cod Poştal",null,null,null,null,null,null,null,null,null,null,null,null,null,"Strada",null,null,null,null,null,null,null,null,null,null,null,null,null,null,null,null,null,null,null,null,null,null,null,null,null,null,null,null,null,null,null,null,null,null,null,null,"Nr."]
[]
[null,"Bloc",null,null,null,null,null,null,null,null,null,null,null,null,null,null,null,"Scara",null,null,null,null,null,null,null,null,null,null,null,null,null,null,"Etaj",null,null,null,null,null,null,null,null,null,null,null,"Apartament"]
[]
[null,"Telefon fix",null,null,null,null,null,null,null,null,null,null,null,"Telefon mobil",null,null,null,null,null,null,null,null,null,null,null,null,null,"Fax",null,null,null,null,null,null,null,null,null,null,null,null,null,"E-mail"]
[]
[]
[null,"B1.3 Numele şi prenumele reprezentantului legal şi funcţia acestuia în cadrul organizaţiei, precum şi"]
[null,"specimenul de semnatură:"]
[]
[null,null,null,"Numele",null,null,null,null,null,null,null,null,null,null,"Prenumele",null,null,null,null,null,null,null,null,null,null,"Funcţia",null,null,null,null,null,null,null,null,null,null,"Reprezentant legal",null,null,null,null,null,null,null,null,null,null,"Specimen de"]
[null,null,null,null,null,null,null,null,null,null,null,null,null,null,null,null,null,null,null,null,null,null,null,null,null,null,null,null,null,null,null,null,null,null,null,null,null,null,null,null,null,null,null,null,null,null,null,"semnătură"]
[]
[null,null,null,null,null,null,null,null,null,null,null,null,null,null,null,null,null,null,null,null,null,null,null,null,null,null,null,null,null,null,null,null,null,null,null,null,"LEGAL"]
[]
[]
["B2 Informaţii referitoare la reprezentantul legal de proiect"]
[null,"B2.1 Date de identitate ale reprezentantului legal de proiect"]
[]
[null,null,null,"Data naşterii",null,null,null,null,null,null,null,null,null,null,null,null,null,null,null,null,null,null,null,null,"Cod numeric personal"]
[]
[]
[]
[]
[null,null,null,null,"Act de identitate",null,null,null,null,null,null,null,null,null,null,null,null,null,"Seria",null,null,"Nr.",null,null,null,null,null,null,"Eliberat la data de",null,null,null,null,null,null,null,null,"de:",null,null,null,null,null,null,null,null,null,null,null,null,null,"Valabil până la:"]
[null,null,null,null,"B.I.",null,null,"C.I.",null,null,"Paşaport"]
[]
[]
[]
[null,"B2.2 Domiciliul stabil al reprezentantului legal de proiect"]
[null,"Judeţ",null,null,null,null,null,null,null,null,null,null,null,null,null,null,null,null,null,null,null,null,"Localitate",null,null,null,null,null,null,null,null,null,null,null,null,null,null,null,null,null,null,null,"Sat"]
[]
[null,"Cod Poştal",null,null,null,null,null,null,null,null,null,null,"Strada",null,null,null,null,null,null,null,null,null,null,null,null,null,null,null,null,null,"Nr.",null,null,null,null,null,"Bloc",null,null,null,null,null,null,null,null,null,null,null,"Scara",null,null,null,null,null,"Ap."]
[]
[null,"Telefon fix",null,null,null,null,null,null,null,null,null,null,null,null,null,null,null,null,null,null,"Telefon mobil",null,null,null,null,null,null,null,null,null,null,null,null,null,null,null,null,null,"Fax"]
[]
[null,"E-mail"]
[]
[]
["B3 Informaţii privind contul bancar pentru proiect F.E.A.D.R."]
[]
[null,null,"B3.1 Denumirea Băncii",null,null,null,null,null,null,null,null,null,null,null,null,null,null,null,null,null,null,null,null,null,null,null,null,null,null,null,null,"Denumirea Sucursalei/Filialei"]
[]
[]
[null,null,"B3.2 Adresa Băncii/Sucursalei"]
[]
[]
[null,null,"B3.3 Cod IBAN",null,null,null,null,null,null,null,null,null,null,null,null,null,null,null,null,null,null,null,null,null,null,null,null,null,null,null,null,"B3.4 Titularul contului bancar"]
[]
[]
[]
["REGULI DE COMPLETARE"]
["1. Câmpurile \"Numele şi prenumele persoanei care înregistrează. Semnătura\", se vor completa după data primirii cererii de finantare împreună cu documentele justificative.\n\n2. Câmpul \"A3 Titlu proiect\" include obligatoriu tipul investiţiei iniţiale sau după caz tipul investiţiei iniţiale pentru o nouă activitate economică şi cuvântul schema GBER. Exemplu: \"Investíţie initiala pe schema GBER (M1/2A) privind extinderea capacităţii de producţie la SRL ...\" \n"]
["3. Valoarea eligibila a proiectului include TVA numai in cazul in care TVA este eligibil ( pentru neplatitorii de TVA)."]
["4. Completarea secţiunii \"Amplasarea investiției\", la punctul A5, se face obligatoriu pe prima linie din tabel.\n\n\n"]
["Atentie! In cazul proiectelor care prevad doar operatiuni de montaj a utilajelor, fara a fi necesare lucrari de constructii, se bifeaza la A6.1 Proiect cu constructii-montaj."]
["5. Cererea de ajutor trebuie să conțină obligatoriu BIFE si informații pentru urmatoarele: Câmpurile A2, A4, A5, tip intreprindere (IMM/intreprindere mare) din A6.3, nr. luni de implementare( Sectiunea D), A6.5. Domenii de interventie si campul A6.4 Prescorare. "]
["Incadrarea greșita a proiectului din punct de vedere al alocării financiare, aferenta alocarii distincte pe domenii de interventie DI3A sau DI6A poate determina neconformitatea proiectului."]
["6. Costurile activelor necorporale sunt eligibile numai până la un plafon de MAX 20 % din costurile totale eligibile ale investiției GBER.\n"]
["7. Trebuie bifate si anexate toate documentele de pe coloana DEPUNERE \"Obligatoriu pentru toate proiectele\" din sectiunea E - Lista documentelor anexate."]
["8. Solicitantul are posibilitatea să opteze pentru Buget indicativ şi anexe conform HG 907/2016 sau pentru Buget indicativ şi anexe conform HG 28/2008. Completaţi Devizul general, devizele aferente capitolelor de cheltuieli, defalcat pe cheltuieli eligibile şi neeligibile.\n\n9. Pentru toti solicitantii GBER(M1/2A) cheltuielile cap.3”Costuri generale proiect”sunt cheltuieli neeligibile pe GBER(M1/2A), evidentiate in ANEXA 1\"Deviz financiar_cap3\" pe neeligibil.\n"]
[]
["10. Valoarea ajutorului de stat schema GBER (cumulată cu valoare ajutorului de minimis, daca este cazul) nu trebuie să depăşească nici valoarea plafoanelor/proiect şi nici intensitatea max. admisibilă a ajutorului de stat aferent zonei de dezvoltare regională (județ) în care este amplasată investiţia (intensitatea max. admisibilă a ajutorului de stat se verifica automat in ultima linie din planul financiar prin raportarea ajutorului de stat schema GBER cumulată cu valoare ajutorului de minimis la valoarea eligibila pe schema GBER + valoarea eligibila pe optiunea de minimis).\n\nANEXA 2 \"Devize obiect\" cuprinde formatul cadru al devizului pe obiect, iar solicitantul va completa atâtea devize pe obiect câte obiecte de investiţie sunt incluse în proiect. Suma tuturor devizelor pe obiect trebuie să se regăsească atât în Bugetul Indicativ (\"Buget indicativ\" din cererea de finanţare) cât şi în Dezivul General din Studiul de Fezabilitate.În cazul în care proiectul de investiţii presupune mai multe devize pe obiect, solicitantul va crea în documentul curent câte o copie a tabelului \"Devize obiect\" pentru fiecare deviz pe obiect şi va detalia cheltuielile eligibile şi neeligibile.\n"]
["In cazul investitiilor initiale de tipul “ extinderea capacitatii de productie a unei unitati existente si diversificarea productiei prin produse care nu au fost fabricate anterior” se intocmesc OBLIGATORIU devize pe obiecte cu înscrierea denumirii obiectului de construcţie sau intervenţie DISTINCT pentru fiecare din cele 2 tipuri de investitii initiale , respectiv extindere si diversificare.\nDe asemenea în denumirea devizului trebuie să se identifice:\n- regiunea de dezvoltare în care este amplasată investiţia;\n- pct. de lucru;\n\nANEXA 3 cuprinde cheltuieli aferente capitolelor 2 şi 5 şi trebuie să se regăsească atât în Bugetul Indicativ (\"Buget indicativ\" din cererea de finanţare, partea specifică) cât şi Dezivul General din Studiul de Fezabilitate.\nLinia 5.3 diverse și neprevăzute se încadrează în maxim 10% (cap.1 + cap.2 + cap.4).\nAtenție! Toate documentele care nu sunt emise de instituții din România trebuie să fie depuse împreună cu traducerea autorizată a acestora.\nAtenţie! Evaluarea Cererii de finanțare din punct de vedere al eligibilităţii şi al verificării criteriilor de selecţie va include şi consultarea informaţilor referitoare la solicitant şi la punctul de lucru, după caz, emise de instituţiile abilitate (ex: ANSVSA, APIA, MADR, ONRC etc).\n"]
[]
[null,"Buget Indicativ - HG 28/2008"]
["MINISTERUL AGRICULTURII ŞI DEZVOLTĂRII RURALE"]
["AGENŢIA PENTRU FINANŢAREA INVESTIŢIILOR RURALE"]
[]
[]
["Procentul MAX admisibil aferent intensităţii corelat cu tipul intreprinderii, tipul investiţiei\nşi zone de dezv. regională (judeţ)",null,null,null,null,null,null,null,null,null,null,null,null,null,null,null,null,null,null,null,"Curs EURO",null,null,null,null,null,null,null,null,null,null,null,"Data întocmirii Studiului de Fezabilitate"]
[null,null,null,null,null,null,null,null,null,null,null,null,null,null,null,null,null,null,null,null,null,null,null,null,null,null,null,null,"CU OPTIUNE DE MINIMIS"]
["Schema GBER (M1/2A)",null,null,null,null,null,null,null,null,null,null,null,null,null,null,null,null,null,null,null,null,null,null,null,null,null,null,null,"GBER",null,null,null,null,null,null,null,null,null,null,null,null,null,null,null,"MINIMIS"]
["Denumirea capitolelor de cheltuieli",null,null,null,null,null,null,null,null,null,null,null,null,null,null,null,null,null,null,null,null,null,null,null,null,null,null,null,"Cheltuieli eligibile",null,null,null,null,"Cheltuieli neeligibile",null,null,null,null,"TOTAL",null,null,null,null,null,"Cheltuieli eligibile",null,null,null,null,"Cheltuieli neeligibile",null,null,null,null,null,"TOTAL"]
[null,null,null,null,null,null,null,null,null,null,null,null,null,null,null,null,null,null,null,null,null,null,null,null,null,null,null,null,"EURO",null,null,null,null,"EURO",null,null,null,null,"EURO",null,null,null,null,null,"EURO",null,null,null,null,"EURO",null,null,null,null,null," EURO"]
[1,null,null,null,null,null,null,null,null,null,null,null,null,null,null,null,null,null,null,null,null,null,null,null,null,null,null,null,2,null,null,null,null,3,null,null,null,null,4,null,null,null,null,null,5,null,null,null,null,6,null,null,null,null,null,7]
["Capitolul 1 Cheltuieli pentru obtinerea şi amenajarea terenului - total, din care:",null,null,null,null,null,null,null,null,null,null,null,null,null,null,null,null,null,null,null,null,null,null,null,null,null,null,null,null,null,null,null,null,null,null,null,null,null,null,null,null,null,null,null,null,null,null,null,null,null,null,null,null,null,null,{"$f":"SUM(AS213:BC213)","v":0}]
["1.1 Cheltuieli pentru obţinerea terenului",null,null,null,null,null,null,null,null,null,null,null,null,null,null,null,null,null,null,null,null,null,null,null,null,null,null,null,null,null,null,null,null,null,null,null,null,null,null,null,null,null,null,null,null,null,null,null,null," ",null,null,null,null,null,{"$f":"SUM(AS214:BC214)","v":0}]
["1.2 Cheltuieli pentru amenajarea terenului",null,null,null,null,null,null,null,null,null,null,null,null,null,null,null,null,null,null,null,null,null,null,null,null,null,null,null,null,null,null,null,null,null,null,null,null,null,null,null,null,null,null,null,null,null,null,null,null,null,null,null,null,null,null,0]
["1.3 Cheltuieli cu amenajari pentru protecţia mediului şi aducerea la starea iniţială",null,null,null,null,null,null,null,null,null,null,null,null,null,null,null,null,null,null,null,null,null,null,null,null,null,null,null,null,null,null,null,null,null,null,null,null,null,null,null,null,null,null,null,null,null,null,null,null,null,null,null,null,null,null,0]
["Capitolul 2 Cheltuieli pentru asigurarea utilităţilor necesare obiectivului",null,null,null,null,null,null,null,null,null,null,null,null,null,null,null,null,null,null,null,null,null,null,null,null,null,null,null,null,null,null,null,null,null,null,null,null,null,null,null,null,null,null,null,null,null,null,null,null,null,null,null,null,null,null,0]
["Capitolul 3 Cheltuieli pentru proiectare şi asistenţă tehnică - total, din care:",null,null,null,null,null,null,null,null,null,null,null,null,null,null,null,null,null,null,null,null,null,null,null,null,null,null,null," ",null,null,null,null," ",null,null,null,null," "]
["3.1 Studii de teren",null,null,null,null,null,null,null,null,null,null,null,null,null,null,null,null,null,null,null,null,null,null,null,null,null,null,null," ",null,null,null,null," ",null,null,null,null," "]
["3.2 Obţinerea de avize, acorduri şi autorizaţii",null,null,null,null,null,null,null,null,null,null,null,null,null,null,null,null,null,null,null,null,null,null,null,null,null,null,null," ",null,null,null,null," ",null,null,null,null," "]
["3.3 Proiectare şi inginerie",null,null,null,null,null,null,null,null,null,null,null,null,null,null,null,null,null,null,null,null,null,null,null,null,null,null,null," ",null,null,null,null," ",null,null,null,null," "]
["3.4 Organizarea procedurilor de achiziţie",null,null,null,null,null,null,null,null,null,null,null,null,null,null,null,null,null,null,null,null,null,null,null,null,null,null,null," ",null,null,null,null," ",null,null,null,null," "]
["3.5 Consultanţă",null,null,null,null,null,null,null,null,null,null,null,null,null,null,null,null,null,null,null,null,null,null,null,null,null,null,null," ",null,null,null,null," ",null,null,null,null," "]
["3.6 Asistenţă tehnică",null,null,null,null,null,null,null,null,null,null,null,null,null,null,null,null,null,null,null,null,null,null,null,null,null,null,null," ",null,null,null,null," ",null,null,null,null," "]
["Verificare încadrare cheltuieli capitolul 3",null,null,null,null,null,null,null,null,null,null,null,null,null,null,null,null,null,null,null,null,null,null,null,null,null,null,null,{"$f":"IF(BD207=\"NU\",\"nu este cazul verificarii\", \"\")","v":""},null,null,null,null,null,null,null,null,null,null,null,null,null,null,null,{"$f":"IF(AS218>SUM(AC213,AC217,AC226)*BI8/100,\"cheltuieli capitol 3 > \"&BI8&\"% \",\"cheltuieli capitol 3 < \"&BI8&\"% \")","v":"cheltuieli capitol 3 < 10% "}]
["Capitolul 4 Cheltuieli pentru investiţia de bază - total, din care:"]
["Constructii, din care:"]
["4.1 Construcţii şi instalaţii",null,null,null,null,null,null,null,null,null,null,null,null,null,null,null,null,null,null,null,null,null,null,null,null,null,null,null," "]
["4.2 Montaj utilaj tehnologic",null,null,null,null,null,null,null,null,null,null,null,null,null,null,null,null,null,null,null,null,null,null,null,null,null,null,null," "]
["4.3 Utilaje, echipamente tehnologice şi funcţionale cu montaj (procurare)"]
["4.4 Utilaje şi echipamente fară montaj, mijloace de transport, alte achiziţii specifice"]
["4.5 Dotări",null,null,null,null,null,null,null,null,null,null,null,null,null,null,null,null,null,null,null,null,null,null,null,null,null,null,null," "]
["4.6 Active necorporale",null,null,null,null,null,null,null,null,null,null,null,null,null,null,null,null,null,null,null,null,null,null,null,null,null,null,null," "]
["Capitolul 5 Alte cheltuieli - total, din care:"]
["5.1 Organizare de şantier"]
["      5.1.1 lucrări de construcţii şi instalaţii aferente organizării de şantier"]
["      5.1.2 cheltuieli conexe orgănizării şantierului"]
["5.2 Comisioane, taxe, costul creditului"]
["5.3 Cheltuieli diverse şi neprevăzute"]
["Procent cheltuieli diverse şi neprevăzute",null,null,null,null,null,null,null,null,null,null,null,null,null,null,null,null,null,null,null,null,null,null,null,null,null,null,null,{"$f":"IF(AC239>0,AC239/SUM(AC226,AC217,AC213),0)","v":0}]
["Capitolul 6 Cheltuieli pentru darea în exploatare - total, din care:"]
["6.1 Pregătirea personalului de exploatare",null,null,null,null,null,null,null,null,null,null,null,null,null,null,null,null,null,null,null,null,null,null,null,null,null,null,null," "]
["6.2 Probe tehnologice şi teste"]
["TOTAL GENERAL"]
["Verificare actualizare",null,null,null,null,null,null,null,null,null,null,null,null,null,null,null,null,null,null,null,null,null,null,null,null,null,null,null,{"$f":"IF(AC246/AC244*100>5,\"actualizare mai mare de 5%\",\"actualizare mai mica de 5%\")","v":{"$error":"#DIV/0!"}}]
["ACTUALIZARE Cheltuieli Eligibile (max 5%)",null,null,null,null,null,null,null,null,null,null,null,null,null,null,null,null,null,null,null,null,null,null,null,null,null,null,null,null,null,null,null,null," "]
["TOTAL GENERAL CU ACTUALIZARE"]
["Valoare TVA"]
["TOTAL GENERAL inclusiv TVA"]
[null,null,null,null,null,null,null,null,null,null,null,null,null,null,null,null,null,null,null,null,null,null,null,null,null,null,null,null,"GBER",null,null,null,null,null,null,null,null,null,"MINIMIS",null,null,null,null,null,null,null,null,null,null,"Total (GBER+MINIMIS)"]
[null,null,null,null,null,null,null,null,null,null,null,null,null,null,null,null,null,null,null,null,null,null,null,null,null,null,null,null,"LEI",null,null,null,null,"EURO",null,null,null,null,"LEI",null,null,null,null,null,"EURO",null,null,null,null,"LEI",null,null,null,null,null,"EURO"]
["VALOARE TOTALĂ"]
["VALOARE ELIGIBILĂ"]
["VALOARE NEELIGIBILĂ"]
["PLAN FINANCIAR\n (EURO)",null,null,null,null,null,null,null,null,null,null,null,null,null,null,null,null,null,null,null,null,null,null,null,null,null,null,null,"GBER",null,null,null,null,null,null,null,null,null,"MINIMIS",null,null,null,null,null,null,null,null,null,null,"Total (GBER+MINIMIS)"]
[null,null,null,null,null,null,null,null,null,null,null,null,null,null,null,null,null,null,null,null,null,null,null,null,null,null,null,null,"Cheltuieli eligibile",null,null,null,null,"Cheltuieli neeligibile",null,null,null,null,"Cheltuieli eligibile",null,null,null,null,null,"Cheltuieli neeligibile",null,null,null,null,"EURO"]
["Ajutor public nerambursabil (contribuţie UE şi cofinanţare naţională)"]
["Cofinantare privata, din care:"]
[" - autofinantare"]
["- imprumuturi"]
["TOTAL PROIECT"]
["Procent contribuţie publică",null,null,null,null,null,null,null,null,null,null,null,null,null,null,null,null,null,null,null,null,null,null,null,null,null,null,null,{"$f":"AC257/AC261","v":{"$error":"#DIV/0!"}},null,null,null,null,null,null,null,null,null,{"$f":"AM257/AM261","v":{"$error":"#DIV/0!"}},null,null,null,null,null,null,null,null,null,null,null,null,null,null,null,null," "]
["Avans solicitat",null,null,null,null,null,null,null,null,null,null,null,null,null,null,null,null,null,null,null,null,null,null,null,null,null,null,null,null,null,null,null,null,null,null,null,null,null,null,null,null,null,null,null,null,null,null,null,null,null,null,null,null,null,null," "]
["Procent avans solicitat ca procent din ajutorul public\nnerambursabil",null,null,null,null,null,null,null,null,null,null,null,null,null,null,null,null,null,null,null,null,null,null,null,null,null,null,null,{"$f":"AC263/AC257","v":{"$error":"#DIV/0!"}},null,null,null,null,{"$f":"IF(AC263>AC257/2,\"Avansul solicitat depaseste 50% din Valoare sprijin\",\"Avansul solicitat nu depaseste 50% din valoare sprijin\")","v":"Avansul solicitat nu depaseste 50% din valoare sprijin"}]
[null,"Buget Indicativ - HG 28/2008"]
["MINISTERUL AGRICULTURII ŞI DEZVOLTĂRII RURALE"]
["AGENŢIA PENTRU FINANŢAREA INVESTIŢIILOR RURALE"]
[]
[]
["Procentul MAX admisibil aferent intensităţii corelat cu tipul intreprinderii, tipul investiţiei\nşi zone de dezv. regională (judeţ)",null,null,null,null,null,null,null,null,null,null,null,null,null,null,null,null,null,null,null,"Curs EURO",null,null,null,null,null,null,null,null,null,null,null,"Data întocmirii Studiului de Fezabilitate"]
[null,null,null,null,null,null,null,null,null,null,null,null,null,null,null,null,null,null,null,null,null,null,null,null,null,null,null,null,"FARA OPTIUNE DE MINIMIS"]
["Schema GBER (M1/2A)",null,null,null,null,null,null,null,null,null,null,null,null,null,null,null,null,null,null,null,null,null,null,null,null,null,null,null,"GBER",null,null,null,null,null,null,null,null,null,null,null,null,null,null,null,"MINIMIS"]
["Denumirea capitolelor de cheltuieli",null,null,null,null,null,null,null,null,null,null,null,null,null,null,null,null,null,null,null,null,null,null,null,null,null,null,null,"Cheltuieli eligibile",null,null,null,null,"Cheltuieli neeligibile",null,null,null,null,"TOTAL",null,null,null,null,null,"Cheltuieli eligibile",null,null,null,null,"Cheltuieli neeligibile",null,null,null,null,null,"TOTAL"]
[null,null,null,null,null,null,null,null,null,null,null,null,null,null,null,null,null,null,null,null,null,null,null,null,null,null,null,null,"EURO",null,null,null,null,"EURO",null,null,null,null,"EURO",null,null,null,null,null,"EURO",null,null,null,null,"EURO",null,null,null,null,null," EURO"]
[1,null,null,null,null,null,null,null,null,null,null,null,null,null,null,null,null,null,null,null,null,null,null,null,null,null,null,null,2,null,null,null,null,3,null,null,null,null,4,null,null,null,null,null,5,null,null,null,null,6,null,null,null,null,null,7]
["Capitolul 1 Cheltuieli pentru obtinerea şi amenajarea terenului - total, din care:",null,null,null,null,null,null,null,null,null,null,null,null,null,null,null,null,null,null,null,null,null,null,null,null,null,null,null,null,null,null,null,null,null,null,null,null,null,null,null,null,null,null,null,null,null,null,null,null,null,null,null,null,null,null,{"$f":"SUM(AS276:BC276)","v":0}]
["1.1 Cheltuieli pentru obţinerea terenului",null,null,null,null,null,null,null,null,null,null,null,null,null,null,null,null,null,null,null,null,null,null,null,null,null,null,null,null,null,null,null,null,null,null,null,null,null,null,null,null,null,null,null,null,null,null,null,null," ",null,null,null,null,null,{"$f":"SUM(AS277:BC277)","v":0}]
["1.2 Cheltuieli pentru amenajarea terenului",null,null,null,null,null,null,null,null,null,null,null,null,null,null,null,null,null,null,null,null,null,null,null,null,null,null,null,null,null,null,null,null,null,null,null,null,null,null,null,null,null,null,null,null,null,null,null,null,null,null,null,null,null,null,0]
["1.3 Cheltuieli cu amenajari pentru protecţia mediului şi aducerea la starea iniţială",null,null,null,null,null,null,null,null,null,null,null,null,null,null,null,null,null,null,null,null,null,null,null,null,null,null,null,null,null,null,null,null,null,null,null,null,null,null,null,null,null,null,null,null,null,null,null,null,null,null,null,null,null,null,0]
["Capitolul 2 Cheltuieli pentru asigurarea utilităţilor necesare obiectivului",null,null,null,null,null,null,null,null,null,null,null,null,null,null,null,null,null,null,null,null,null,null,null,null,null,null,null,null,null,null,null,null,null,null,null,null,null,null,null,null,null,null,null,null,null,null,null,null,null,null,null,null,null,null,0]
["Capitolul 3 Cheltuieli pentru proiectare şi asistenţă tehnică - total, din care:",null,null,null,null,null,null,null,null,null,null,null,null,null,null,null,null,null,null,null,null,null,null,null,null,null,null,null," ",null,null,null,null,null,null,null,null,null,null,null,null,null,null,null,null,null,null,null,null,null,null,null,null,null,null,0]
["3.1 Studii de teren",null,null,null,null,null,null,null,null,null,null,null,null,null,null,null,null,null,null,null,null,null,null,null,null,null,null,null," ",null,null,null,null,null,null,null,null,null,null,null,null,null,null,null,null,null,null,null,null,null,null,null,null,null,null,0]
["3.2 Obţinerea de avize, acorduri şi autorizaţii",null,null,null,null,null,null,null,null,null,null,null,null,null,null,null,null,null,null,null,null,null,null,null,null,null,null,null," ",null,null,null,null,null,null,null,null,null,null,null,null,null,null,null,null,null,null,null,null,null,null,null,null,null,null,0]
["3.3 Proiectare şi inginerie",null,null,null,null,null,null,null,null,null,null,null,null,null,null,null,null,null,null,null,null,null,null,null,null,null,null,null," ",null,null,null,null,null,null,null,null,null,null,null,null,null,null,null,null,null,null,null,null,null,null,null,null,null,null,0]
["3.4 Organizarea procedurilor de achiziţie",null,null,null,null,null,null,null,null,null,null,null,null,null,null,null,null,null,null,null,null,null,null,null,null,null,null,null," ",null,null,null,null,null,null,null,null,null,null,null,null,null,null,null,null,null,null,null,null,null,null,null,null,null,null,0]
["3.5 Consultanţă",null,null,null,null,null,null,null,null,null,null,null,null,null,null,null,null,null,null,null,null,null,null,null,null,null,null,null," ",null,null,null,null,null,null,null,null,null,null,null,null,null,null,null,null,null,null,null,null,null,null,null,null,null,null,0]
["3.6 Asistenţă tehnică",null,null,null,null,null,null,null,null,null,null,null,null,null,null,null,null,null,null,null,null,null,null,null,null,null,null,null," ",null,null,null,null,null,null,null,null,null,null,null,null,null,null,null,null,null,null,null,null,null,null,null,null,null,null,0]
["Verificare încadrare cheltuieli capitolul 3",null,null,null,null,null,null,null,null,null,null,null,null,null,null,null,null,null,null,null,null,null,null,null,null,null,null,null,{"$f":"\"nu este cazul verificarii\"","v":"nu este cazul verificarii"},null,null,null,null,null,null,null,null,null,null,null,null,null,null,null,null,null,null,null,null,null,null,null,null,null,null,0]
["Capitolul 4 Cheltuieli pentru investiţia de bază - total, din care:"]
["Constructii, din care:"]
["4.1 Construcţii şi instalaţii",null,null,null,null,null,null,null,null,null,null,null,null,null,null,null,null,null,null,null,null,null,null,null,null,null,null,null," "]
["4.2 Montaj utilaj tehnologic",null,null,null,null,null,null,null,null,null,null,null,null,null,null,null,null,null,null,null,null,null,null,null,null,null,null,null," "]
["4.3 Utilaje, echipamente tehnologice şi funcţionale cu montaj (procurare)"]
["4.4 Utilaje şi echipamente fară montaj, mijloace de transport, alte achiziţii specifice"]
["4.5 Dotări",null,null,null,null,null,null,null,null,null,null,null,null,null,null,null,null,null,null,null,null,null,null,null,null,null,null,null," "]
["4.6 Active necorporale",null,null,null,null,null,null,null,null,null,null,null,null,null,null,null,null,null,null,null,null,null,null,null,null,null,null,null," "]
["Capitolul 5 Alte cheltuieli - total, din care:"]
["5.1 Organizare de şantier"]
["      5.1.1 lucrări de construcţii şi instalaţii aferente organizării de şantier"]
["      5.1.2 cheltuieli conexe orgănizării şantierului"]
["5.2 Comisioane, taxe, costul creditului"]
["5.3 Cheltuieli diverse şi neprevăzute"]
["Procent cheltuieli diverse şi neprevăzute",null,null,null,null,null,null,null,null,null,null,null,null,null,null,null,null,null,null,null,null,null,null,null,null,null,null,null,{"$f":"IF(AC302>0,AC302/SUM(AC289,AC280,AC276),0)","v":0}]
["Capitolul 6 Cheltuieli pentru darea în exploatare - total, din care:"]
["6.1 Pregătirea personalului de exploatare"]
["6.2 Probe tehnologice şi teste"]
["TOTAL GENERAL"]
["Verificare actualizare",null,null,null,null,null,null,null,null,null,null,null,null,null,null,null,null,null,null,null,null,null,null,null,null,null,null,null,{"$f":"IF(AC309/AC307*100>5,\"actualizare mai mare de 5%\",\"actualizare mai mica de 5%\")","v":{"$error":"#DIV/0!"}}]
["ACTUALIZARE Cheltuieli Eligibile (max 5%)"]
["TOTAL GENERAL CU ACTUALIZARE"]
["Valoare TVA"]
["TOTAL GENERAL inclusiv TVA"]
[null,null,null,null,null,null,null,null,null,null,null,null,null,null,null,null,null,null,null,null,null,null,null,null,null,null,null,null,"GBER",null,null,null,null,null,null,null,null,null,"MINIMIS",null,null,null,null,null,null,null,null,null,null,"Total (GBER+MINIMIS)"]
[null,null,null,null,null,null,null,null,null,null,null,null,null,null,null,null,null,null,null,null,null,null,null,null,null,null,null,null,"LEI",null,null,null,null,"EURO",null,null,null,null,"LEI",null,null,null,null,null,"EURO",null,null,null,null,"LEI",null,null,null,null,null,"EURO"]
["VALOARE TOTALĂ"]
["VALOARE ELIGIBILĂ"]
["VALOARE NEELIGIBILĂ"]
["PLAN FINANCIAR\n (EURO)",null,null,null,null,null,null,null,null,null,null,null,null,null,null,null,null,null,null,null,null,null,null,null,null,null,null,null,"GBER",null,null,null,null,null,null,null,null,null,"MINIMIS",null,null,null,null,null,null,null,null,null,null,"Total (GBER+MINIMIS)"]
[null,null,null,null,null,null,null,null,null,null,null,null,null,null,null,null,null,null,null,null,null,null,null,null,null,null,null,null,"Cheltuieli eligibile",null,null,null,null,"Cheltuieli neeligibile",null,null,null,null,"Cheltuieli eligibile",null,null,null,null,null,"Cheltuieli neeligibile",null,null,null,null,"EURO"]
["Ajutor public nerambursabil (contribuţie UE şi cofinanţare naţională)"]
["Cofinantare privata, din care:"]
[" - autofinantare"]
["- imprumuturi"]
["TOTAL PROIECT"]
["Procent contribuţie publică",null,null,null,null,null,null,null,null,null,null,null,null,null,null,null,null,null,null,null,null,null,null,null,null,null,null,null,{"$f":"AC320/AC324","v":{"$error":"#DIV/0!"}},null,null,null,null,null,null,null,null,null,{"$f":"AM320/AM324","v":{"$error":"#DIV/0!"}},null,null,null,null,null,null,null,null,null,null,null,null,null,null,null,null," "]
["Avans solicitat",null,null,null,null,null,null,null,null,null,null,null,null,null,null,null,null,null,null,null,null,null,null,null,null,null,null,null,null,null,null,null,null,null,null,null,null,null,null,null,null,null,null,null,null,null,null,null,null,null,null,null,null,null,null," "]
["Procent avans solicitat ca procent din ajutorul public\nnerambursabil",null,null,null,null,null,null,null,null,null,null,null,null,null,null,null,null,null,null,null,null,null,null,null,null,null,null,null,{"$f":"AC326/AC320","v":{"$error":"#DIV/0!"}},null,null,null,null,{"$f":"IF(AC326>AC320/2,\"Avansul solicitat depaseste 50% din Valoare sprijin\",\"Avansul solicitat nu depaseste 50% din valoare sprijin\")","v":"Avansul solicitat nu depaseste 50% din valoare sprijin"}]
[" "]
[]
[null,null,null,null,null,null,null,"MINISTERUL AGRICULTURII ŞI DEZVOLTĂRII RURALE"]
[null,null,null,null,null,null,null,null,null,null,null,null,null,null,null,null,null,null,null,null,null,null,null,null,null,null,null,null,null,null,null,null,null,null,null,null,null,null,null,null,null,null,"Anexa A1 HG_28"]
[null,null,null,null,null,null,null,"AGENŢIA PENTRU FINANŢAREA INVESTIŢIILOR RURALE"]
[null,null,null,null,null,null,null,null,null,null,null,null,null,null,null,null,null,null,null,null,null,null,null,null,null,null,null,null,null,null,null,null,null,null,null,null,null,null,null,null,null,null,"…………..2017",null,null,null,null,null,null,null,null,"Nr.1"]
[null,null,null,null,null,null,null,"Deviz financiar- Capitolul 3 - Cheltuieli pentru proiectare şi asistenţa tehnică - EURO"]
[]
[]
["(Titlu deviz)"]
["Nr.crt",null,null,null,"Specificaţie",null,null,null,null,null,null,null,null,null,null,null,null,null,null,null,null,null,null,null,null,null,null,null,null,null,null,null,null,null,null,null,null,null,null,null,null,null,"Valoare eligibilă",null,null,null,null,null,null,null,null,"Valoare\nneeligibilă"]
[1,null,null,null,"Cheltuieli pentru studii de teren (geotehnice, geologice, hidrologice, hidrogeologice, fotogrammetrice, topografice şi de stabilitate a terenului pe care se amplasează obiectivul de investiţie)"]
[2,null,null,null,"Cheltuieli pentru obţinere de avize, acorduri şi autorizaţii - total, din care:",null,null,null,null,null,null,null,null,null,null,null,null,null,null,null,null,null,null,null,null,null,null,null,null,null,null,null,null,null,null,null,null,null,null,null,null,null,{"$f":"SUM(AQ341:AY350)","v":0},null,null,null,null,null,null,null,null,{"$f":"SUM(AZ341:BI350)","v":0}]
[null,null,null,null,"1. obţinerea/prelungirea valabilităţii ceritificatului de urbanism"]
[null,null,null,null,"2. obţinerea/prelungirea valabilităţii autorizaţiei de construire/desfiinţare, obţinere autorizaţii de scoatere din circuitul agricol"]
[null,null,null,null,"3. obţinerea avizelor şi acordurilor pentru racorduri şi branşamente la reţelele publice de apă, canalizare, gaze, termoficare, energie electrică, telefonie etc."]
[null,null,null,null,"4. obţinere aviz sanitar, sanitar-veterinar şi fitosanitar"]
[null,null,null,null,"5. obţinerea certificatului de nomenclatură stradală şi adresa"]
[null,null,null,null,"6. întocmirea documentaţiei, obţinerea numărului Cadastral provizoriu şi înregistrarea terenului în Cartea Funciară"]
[null,null,null,null,"7. obţinerea avizului PSI"]
[null,null,null,null,"8. obţinerea acordului de mediu"]
[null,null,null,null,"9. căi ferate"]
[null,null,null,null,"10. alte avize, acorduri şi autorizaţii solicitate prin lege"]
[3,null,null,null,"3 Proiectare şi inginerie - total, din care:",null,null,null,null,null,null,null,null,null,null,null,null,null,null,null,null,null,null,null,null,null,null,null,null,null,null,null,null,null,null,null,null,null,null,null,null,null,{"$f":"AQ352+AQ359+AQ360+AQ361","v":0},null,null,null,null,null,null,null,null,{"$f":"AZ352+AZ359+AZ360+AZ361","v":0}]
[null,null,null,null,"1. Cheltuieli pentru elaborarea tuturor fazelor de proiectare - total, din care:",null,null,null,null,null,null,null,null,null,null,null,null,null,null,null,null,null,null,null,null,null,null,null,null,null,null,null,null,null,null,null,null,null,null,null,null,null,{"$f":"SUM(AQ353:AY358)","v":0},null,null,null,null,null,null,null,null,{"$f":"SUM(AZ353:BI358)","v":0}]
[null,null,null,null,null,null,"a. studiu de prefezabilitate"]
[null,null,null,null,null,null,"b. studiu de fezabilitate"]
[null,null,null,null,null,null,"c. proiect tehnic"]
[null,null,null,null,null,null,"d. detalii de execuţie"]
[null,null,null,null,null,null,"e. verificarea tehnică a proiectării"]
[null,null,null,null,null,null,"f. elaborarea certificatului de performanţa energetică a clădirii"]
[null,null,null,null,"2. Documentaţii necesare pentru obţinerea acordurilor, avizelor şi autorizaţiilor aferente obiectivului de investitii"]
[null,null,null,null,"3. Cheltuielile pentru expertiza tehnică efectuată pentru construcţii începute şi neterminate sau care urmează a fi modificate prin proiect (modernizări, consolidări etc.)"]
[null,null,null,null,"4. Cheltuielile pentru efectuarea auditului energetic"]
[4,null,null,null,"Organizarea procedurilor de achiziţie"]
[5,null,null,null,"Cheltuieli pentru consultanţă - total, din care:",null,null,null,null,null,null,null,null,null,null,null,null,null,null,null,null,null,null,null,null,null,null,null,null,null,null,null,null,null,null,null,null,null,null,null,null,null,{"$f":"SUM(AQ364:AY365)","v":0},null,null,null,null,null,null,null,null,{"$f":"SUM(AZ364:BI365)","v":0}]
[null,null,null,null,"1. plata serviciilor de consultanţă la elaborarea memoriului justificativ, studiilor de piaţă, de evaluare, la întocmirea cererii de finanţare"]
[null,null,null,null,"2. plata serviciilor de consultanţă în domeniul managementului investiţiei sau administrarea contractului de execuţie"]
[6,null,null,null,"Cheltuieli pentru asistenţa tehnică - total, din care:",null,null,null,null,null,null,null,null,null,null,null,null,null,null,null,null,null,null,null,null,null,null,null,null,null,null,null,null,null,null,null,null,null,null,null,null,null,{"$f":"SUM(AQ367:AY368)","v":0},null,null,null,null,null,null,null,null,{"$f":"SUM(AZ367:BI368)","v":0}]
[null,null,null,null,"1. asistenţa tehnică din partea proiectantului în cazul când aceasta nu intră în tarifarea proiectării"]
[null,null,null,null,"2. plata diriginţilor de şantier desemnaţi de autoritatea contractantă, autorizaţi conform prevederilor legale pentru verificarea execuţiei lucrărilor de construcţii şi instalaţii"]
[null,null,null,null,"Total valoare fără TVA",null,null,null,null,null,null,null,null,null,null,null,null,null,null,null,null,null,null,null,null,null,null,null,null,null,null,null,null,null,null,null,null,null,null,null,null,null,{"$f":"AQ366+AQ363+AQ351+AQ340+AQ339","v":0},null,null,null,null,null,null,null,null,{"$f":"AZ366+AZ363+AZ362+AZ351+AZ340+AZ339","v":0}]
[null,null,null,null,"Valoare TVA (aferentă cheltuielilor eligibile şi neeligibile)"]
["TOTAL DEVIZ FINANCIAR 1 (inclusiv TVA)",null,null,null,null,null,null,null,null,null,null,null,null,null,null,null,null,null,null,null,null,null,null,null,null,null,null,null,null,null,null,null,null,null,null,null,null,null,null,null,null,null,{"$f":"AQ369+AZ369+AQ370+AZ370","v":0}]
["Notă: Pentru a adăuga o nouă anexă accesaţi foaia (sheet) corespunzătoare sau click aici"]
[]
[]
[null,null,null,null,null,null,null,"MINISTERUL AGRICULTURII ŞI DEZVOLTĂRII RURALE"]
[null,null,null,null,null,null,null,null,null,null,null,null,null,null,null,null,null,null,null,null,null,null,null,null,null,null,null,null,null,null,null,null,null,null,null,null,null,null,null,null,null,null,"Anexa A2 HG_28"]
[null,null,null,null,null,null,null,"AGENŢIA PENTRU FINANŢAREA INVESTIŢIILOR RURALE"]
[null,null,null,null,null,null,null,null,null,null,null,null,null,null,null,null,null,null,null,null,null,null,null,null,null,null,null,null,null,null,null,null,null,null,null,null,null,null,null,null,null,null,null,null,null,null,null,null,null,null,null,"Nr.1"]
[null,null,null,null,null,null,null,"DEVIZ PE OBIECT *"]
[]
[]
["(Descriere obiect de construcţie)"]
["Nr. crt.",null,null,null,"Denumire",null,null,null,null,null,null,null,null,null,null,null,null,null,null,null,null,null,null,null,null,null,null,null,null,null,null,null,null,null,null,null,null,null,null,null,null,null,"Valoarea pe categorii de lucrări, fară TVA - EURO"]
[null,null,null,null,null,null,null,null,null,null,null,null,null,null,null,null,null,null,null,null,null,null,null,null,null,null,null,null,null,null,null,null,null,null,null,null,null,null,null,null,null,null,"Valoare eligibilă",null,null,null,null,null,null,null,null,"Valoare\nneeligibilă"]
["I - LUCRĂRI DE CONSTRUCŢII ŞI INSTALAŢII"]
[1,null,null,null,"Terasamente"]
[2,null,null,null,"Construcţii : rezistenţă (fundaţii, structură de rezistenţă) şi arhitectură (închideri exterioare, compartimentări, finisaje)"]
[3,null,null,null,"Izolaţii"]
[4,null,null,null,"Instalaţii electrice"]
[5,null,null,null,"Instalaţii sanitare"]
[6,null,null,null,"Instalaţii de încălzire, ventilare, climatizare. PSI, radio-tv, intranet"]
[7,null,null,null,"Instalaţii de alimentare cu gaze naturale"]
[8,null,null,null,"Instalaţii de telecomunicaţii"]
[null,null,null,null,"TOTAL I ( fără TVA)",null,null,null,null,null,null,null,null,null,null,null,null,null,null,null,null,null,null,null,null,null,null,null,null,null,null,null,null,null,null,null,null,null,null,null,null,null,{"$f":"SUM(AQ386:AY393)","v":0},null,null,null,null,null,null,null,null,{"$f":"SUM(AZ386:BI393)","v":0}]
["II - MONTAJ"]
[9,null,null,null,"Montaj utilaje şi echipamente tehnologice"]
[null,null,null,null,"TOTAL II ( fără TVA)",null,null,null,null,null,null,null,null,null,null,null,null,null,null,null,null,null,null,null,null,null,null,null,null,null,null,null,null,null,null,null,null,null,null,null,null,null,{"$f":"SUM(AQ396)","v":0},null,null,null,null,null,null,null,null,{"$f":"SUM(AZ396)","v":0}]
["III - PROCURARE"]
[10,null,null,null,"Utilaje şi echipamente tehnologice"]
[11,null,null,null,"Utilaje şi echipamente de transport, utilaje şi echipamente fară montaj, mijloace de transport, alte achiziţii specifice"]
[12,null,null,null,"Dotări"]
[null,null,null,null,"TOTAL III ( fără TVA)",null,null,null,null,null,null,null,null,null,null,null,null,null,null,null,null,null,null,null,null,null,null,null,null,null,null,null,null,null,null,null,null,null,null,null,null,null,{"$f":"SUM(AQ399:AY401)","v":0},null,null,null,null,null,null,null,null,{"$f":"SUM(AZ399:BI401)","v":0}]
["TOTAL ( TOTAL I + TOTAL II +TOTAL III) fără TVA",null,null,null,null,null,null,null,null,null,null,null,null,null,null,null,null,null,null,null,null,null,null,null,null,null,null,null,null,null,null,null,null,null,null,null,null,null,null,null,null,null,{"$f":"AQ402+AQ397+AQ394","v":0},null,null,null,null,null,null,null,null,{"$f":"AZ402+AZ397+AZ394","v":0}]
["TVA aferent cheltuielilor eligibile şi neeligibile"]
["TOTAL DEVIZ PE OBIECT (inclusiv TVA)",null,null,null,null,null,null,null,null,null,null,null,null,null,null,null,null,null,null,null,null,null,null,null,null,null,null,null,null,null,null,null,null,null,null,null,null,null,null,null,null,null,{"$f":"AQ403+AZ403+AQ404+AZ404","v":0}]
["Notă: Pentru a adăuga o nouă anexă accesaţi foaia (sheet) corespunzătoare sau click aici"]
[]
[]
[null,null,null,null,null,null,null,"MINISTERUL AGRICULTURII ŞI DEZVOLTĂRII RURALE",null,null,null,null,null,null,null,null,null,null,null,null,null,null,null,null,null,null,null,null,null,null,null,null,null,null,null,null,null,null,null,null,null,null,"Anexa A3 HG_28"]
[]
[null,null,null,null,null,null,null,"AGENŢIA PENTRU FINANŢAREA INVESTIŢIILOR RURALE",null,null,null,null,null,null,null,null,null,null,null,null,null,null,null,null,null,null,null,null,null,null,null,null,null,null,null,null,null,null,null,null,null,null,null,null,null,null,null,null,null,null,null,"Nr.1"]
[]
[]
[]
["(Titlu deviz)"]
["Deviz capitolul 2- Cheltuieli pentru asigurarea utilităţilor necesare obiectivului - EURO"]
["Nr.crt",null,null,null,"Specificaţie",null,null,null,null,null,null,null,null,null,null,null,null,null,null,null,null,null,null,null,null,null,null,null,null,null,null,null,null,null,null,null,null,null,null,null,null,null,"Valoare eligibilă",null,null,null,null,null,null,null,null,"Valoare\nneeligibilă"]
[1,null,null,null,"Alimentare cu apă"]
[2,null,null,null,"Canalizare"]
[3,null,null,null,"Alimentare cu gaze naturale"]
[4,null,null,null,"Alimentare cu agent termic"]
[5,null,null,null,"Alimentare cu energie electrică"]
[6,null,null,null,"Telecomunicaţii (telefonie, radio-tv,etc)"]
[7,null,null,null,"Alte tipuri de reţele exterioare"]
[8,null,null,null,"Drumuri de acces"]
[null,null,null,null,"Total valoare fără TVA",null,null,null,null,null,null,null,null,null,null,null,null,null,null,null,null,null,null,null,null,null,null,null,null,null,null,null,null,null,null,null,null,null,null,null,null,null,{"$f":"SUM(AQ418:AY425)","v":0},null,null,null,null,null,null,null,null,{"$f":"SUM(AZ418:BI425)","v":0}]
[null,null,null,null,"Valoare TVA aferentă cheltuielilor eligibile şi neeligibile"]
["TOTAL DEVIZ CAPITOLUL 2 (inclusiv TVA)",null,null,null,null,null,null,null,null,null,null,null,null,null,null,null,null,null,null,null,null,null,null,null,null,null,null,null,null,null,null,null,null,null,null,null,null,null,null,null,null,null,{"$f":"AQ426+AZ426+AQ427+AZ427","v":0}]
[]
[" Deviz capitolul 5 - Alte cheltuieli - EURO"]
["Nr.crt",null,null,null,"Specificaţie",null,null,null,null,null,null,null,null,null,null,null,null,null,null,null,null,null,null,null,null,null,null,null,null,null,null,null,null,null,null,null,null,null,null,null,null,null,"Valoare eligibilă",null,null,null,null,null,null,null,null,"Valoare\nneeligibilă"]
[]
["5.1 ",null,null,null,"Organizare de şantier",null,null,null,null,null,null,null,null,null,null,null,null,null,null,null,null,null,null,null,null,null,null,null,null,null,null,null,null,null,null,null,null,null,null,null,null,null,{"$f":"SUM(AQ434:AY435)","v":0},null,null,null,null,null,null,null,null,{"$f":"SUM(AZ434:BI435)","v":0}]
["5.1.1",null,null,null,"lucrări de construcţii şi instalaţii aferente organizării de şantier"]
["5.1.2",null,null,null,"cheltuieli conexe organizării de şantier"]
["5.2",null,null,null,"Comisioane, taxe",null,null,null,null,null,null,null,null,null,null,null,null,null,null,null,null,null,null,null,null,null,null,null,null,null,null,null,null,null,null,null,null,null,null,null,null,null,{"$f":"SUM(AQ438:AY441)","v":0},null,null,null,null,null,null,null,null,{"$f":"SUM(AZ437:BI443)","v":0}]
[null,null,null,null,"comisionul băncii finanţatoare"]
[null,null,null,null,"cota aferentă Inspectoratului de Stat în Construcţii pentru controlul calităţii lucrărilor de construcţii"]
[null,null,null,null,"cota pentru controlul statului în amenajarea teritoriului, urbanism şi pentru autorizarea lucrărilor de construcţii"]
[null,null,null,null,"prime de asigurare din sarcina autorităţii contractante"]
[null,null,null,null,"alte cheltuieli de aceeaşi natură, stabilite în condiţiile legii"]
[null,null,null,null,"cota aferentă Casei Sociale a Constructorilor"]
["5.3",null,null,null," Cheltuieli diverse si neprevazute"]
[null,null,null,null,"TOTAL DEVIZ CAPITOLUL 5",null,null,null,null,null,null,null,null,null,null,null,null,null,null,null,null,null,null,null,null,null,null,null,null,null,null,null,null,null,null,null,null,null,null,null,null,null,{"$f":"AQ433+AQ436","v":0},null,null,null,null,null,null,null,null,{"$f":"AZ433+AZ436+AZ443","v":0}]
[null,null,null,null,"VALOARE TVA aferentă cheltuielilor eligibile şi neeligibile"]
[null,null,null,null,"TOTAL DEVIZ CAPITOLUL 5 ( inclusiv TVA)",null,null,null,null,null,null,null,null,null,null,null,null,null,null,null,null,null,null,null,null,null,null,null,null,null,null,null,null,null,null,null,null,null,null,null,null,null,{"$f":"AQ444+AZ444+AQ445+AZ445","v":0}]
["Notă: Pentru a adăuga o nouă anexă accesaţi foaia (sheet) corespunzătoare sau click aici"]
[]
[null,"Buget Indicativ - HG 907/2016"]
["MINISTERUL AGRICULTURII ŞI DEZVOLTĂRII RURALE"]
["AGENŢIA PENTRU FINANŢAREA INVESTIŢIILOR RURALE"]
[]
[]
["Procentul MAX admisibil aferent intensităţii corelat cu tipul intreprinderii, tipul investiţiei\nşi zone de dezv. regională (judeţ)",null,null,null,null,null,null,null,null,null,null,null,null,null,null,null,null,null,null,null,"Curs EURO",null,null,null,null,null,null,null,null,null,null,null,"Data întocmirii Studiului de Fezabilitate"]
[null,null,null,null,null,null,null,null,null,null,null,null,null,null,null,null,null,null,null,null,null,null,null,null,null,null,null,null,"CU OPTIUNE DE MINIMIS"]
["Schema GBER (M1/2A)",null,null,null,null,null,null,null,null,null,null,null,null,null,null,null,null,null,null,null,null,null,null,null,null,null,null,null,"GBER",null,null,null,null,null,null,null,null,null,null,null,null,null,null,null,"MINIMIS"]
["Denumirea capitolelor de cheltuieli",null,null,null,null,null,null,null,null,null,null,null,null,null,null,null,null,null,null,null,null,null,null,null,null,null,null,null,"Cheltuieli eligibile",null,null,null,null,"Cheltuieli neeligibile",null,null,null,null,"TOTAL",null,null,null,null,null,"Cheltuieli eligibile",null,null,null,null,"Cheltuieli neeligibile",null,null,null,null,null,"TOTAL"]
[null,null,null,null,null,null,null,null,null,null,null,null,null,null,null,null,null,null,null,null,null,null,null,null,null,null,null,null,"EURO",null,null,null,null,"EURO",null,null,null,null,"EURO",null,null,null,null,null,"EURO",null,null,null,null,"EURO",null,null,null,null,null," EURO"]
[1,null,null,null,null,null,null,null,null,null,null,null,null,null,null,null,null,null,null,null,null,null,null,null,null,null,null,null,2,null,null,null,null,3,null,null,null,null,4,null,null,null,null,null,5,null,null,null,null,6,null,null,null,null,null,7]
["Capitolul 1 Cheltuieli pentru obtinerea şi amenajarea terenului - total, din care:",null,null,null,null,null,null,null,null,null,null,null,null,null,null,null,null,null,null,null,null,null,null,null,null,null,null,null,null,null,null,null,null,null,null,null,null,null,null,null,null,null,null,null,null,null,null,null,null,null,null,null,null,null,null,{"$f":"SUM(AS460:BC460)","v":0}]
["1.1 Obţinerea terenului ",null,null,null,null,null,null,null,null,null,null,null,null,null,null,null,null,null,null,null,null,null,null,null,null,null,null,null,null,null,null,null,null,null,null,null,null,null,null,null,null,null,null,null,null,null,null,null,null," ",null,null,null,null,null,{"$f":"SUM(AS461:BC461)","v":0}]
["1.2 Cheltuieli pentru amenajarea terenului",null,null,null,null,null,null,null,null,null,null,null,null,null,null,null,null,null,null,null,null,null,null,null,null,null,null,null,null,null,null,null,null,null,null,null,null,null,null,null,null,null,null,null,null,null,null,null,null,null,null,null,null,null,null,0]
["1.3 Cheltuieli pentru amenajarea terenului",null,null,null,null,null,null,null,null,null,null,null,null,null,null,null,null,null,null,null,null,null,null,null,null,null,null,null,null,null,null,null,null,null,null,null,null,null,null,null,null,null,null,null,null,null,null,null,null,null,null,null,null,null,null,0]
["1.4 Cheltuieli cu amenajari pentru protecţia mediului şi aducerea la starea iniţială",null,null,null,null,null,null,null,null,null,null,null,null,null,null,null,null,null,null,null,null,null,null,null,null,null,null,null,null,null,null,null,null,null,null,null,null,null,null,null,null,null,null,null,null,null,null,null,null,null,null,null,null,null,null,0]
["Capitolul 2 Cheltuieli pentru asigurarea utilităţilor necesare obiectivului",null,null,null,null,null,null,null,null,null,null,null,null,null,null,null,null,null,null,null,null,null,null,null,null,null,null,null,null,null,null,null,null,null,null,null,null,null,null,null,null,null,null,null,null,null,null,null,null,null,null,null,null,null,null,0]
["Capitolul 3 Cheltuieli pentru proiectare şi asistenţă tehnică - total, din care:",null,null,null,null,null,null,null,null,null,null,null,null,null,null,null,null,null,null,null,null,null,null,null,null,null,null,null," ",null,null,null,null," "]
["3.1 Studii",null,null,null,null,null,null,null,null,null,null,null,null,null,null,null,null,null,null,null,null,null,null,null,null,null,null,null," ",null,null,null,null," "]
["     3.1.1 Studii de teren",null,null,null,null,null,null,null,null,null,null,null,null,null,null,null,null,null,null,null,null,null,null,null,null,null,null,null," ",null,null,null,null," "]
["     3.1.2. Raport privind impactul asupra mediului",null,null,null,null,null,null,null,null,null,null,null,null,null,null,null,null,null,null,null,null,null,null,null,null,null,null,null," ",null,null,null,null," "]
["     3.1.3. Alte studii specifice",null,null,null,null,null,null,null,null,null,null,null,null,null,null,null,null,null,null,null,null,null,null,null,null,null,null,null," ",null,null,null,null," "]
["3.2 Documentaţii-suport şi cheltuieli pentru obţinerea de avize, acorduri şi autorizaţii",null,null,null,null,null,null,null,null,null,null,null,null,null,null,null,null,null,null,null,null,null,null,null,null,null,null,null," ",null,null,null,null," "]
["3.3 Expertizare tehnică",null,null,null,null,null,null,null,null,null,null,null,null,null,null,null,null,null,null,null,null,null,null,null,null,null,null,null," ",null,null,null,null," "]
["3.4 Certificarea performanţei energetice şi auditul energetic al clădirilor",null,null,null,null,null,null,null,null,null,null,null,null,null,null,null,null,null,null,null,null,null,null,null,null,null,null,null," ",null,null,null,null," "]
["3.5 Proiectare",null,null,null,null,null,null,null,null,null,null,null,null,null,null,null,null,null,null,null,null,null,null,null,null,null,null,null," ",null,null,null,null," "]
["     3.5.1. Temă de proiectare",null,null,null,null,null,null,null,null,null,null,null,null,null,null,null,null,null,null,null,null,null,null,null,null,null,null,null," ",null,null,null,null," "]
["     3.5.2. Studiu de prefezabilitate",null,null,null,null,null,null,null,null,null,null,null,null,null,null,null,null,null,null,null,null,null,null,null,null,null,null,null," ",null,null,null,null," "]
["     3.5.3. Studiu de fezabilitate/documentaţie de avizare a lucrărilor de intervenţii şi deviz general",null,null,null,null,null,null,null,null,null,null,null,null,null,null,null,null,null,null,null,null,null,null,null,null,null,null,null," ",null,null,null,null," "]
["     3.5.4. Documentaţiile tehnice necesare în vederea obţinerii avizelor/acordurilor/autorizaţiilor",null,null,null,null,null,null,null,null,null,null,null,null,null,null,null,null,null,null,null,null,null,null,null,null,null,null,null," ",null,null,null,null," "]
["     3.5.5. Verificarea tehnică de calitate a proiectului tehnic şi a detaliilor de execuţie",null,null,null,null,null,null,null,null,null,null,null,null,null,null,null,null,null,null,null,null,null,null,null,null,null,null,null," ",null,null,null,null," "]
["     3.5.6. Proiect tehnic şi detalii de execuţie",null,null,null,null,null,null,null,null,null,null,null,null,null,null,null,null,null,null,null,null,null,null,null,null,null,null,null," ",null,null,null,null," "]
["3.6 Organizarea procedurilor de achiziţie",null,null,null,null,null,null,null,null,null,null,null,null,null,null,null,null,null,null,null,null,null,null,null,null,null,null,null," ",null,null,null,null," "]
["3.7 Consultanţă",null,null,null,null,null,null,null,null,null,null,null,null,null,null,null,null,null,null,null,null,null,null,null,null,null,null,null," ",null,null,null,null," "]
["     3.7.1. Managementul de proiect pentru obiectivul de investiţii",null,null,null,null,null,null,null,null,null,null,null,null,null,null,null,null,null,null,null,null,null,null,null,null,null,null,null," ",null,null,null,null," "]
["     3.7.2. Auditul financiar",null,null,null,null,null,null,null,null,null,null,null,null,null,null,null,null,null,null,null,null,null,null,null,null,null,null,null," ",null,null,null,null," "]
["3.8 Asistenţă tehnică",null,null,null,null,null,null,null,null,null,null,null,null,null,null,null,null,null,null,null,null,null,null,null,null,null,null,null," ",null,null,null,null," "]
["    3.8.1. Asistenţă tehnică din partea proiectantului",null,null,null,null,null,null,null,null,null,null,null,null,null,null,null,null,null,null,null,null,null,null,null,null,null,null,null," ",null,null,null,null," "]
["        3.8.1.1. pe perioada de execuţie a lucrărilor",null,null,null,null,null,null,null,null,null,null,null,null,null,null,null,null,null,null,null,null,null,null,null,null,null,null,null," ",null,null,null,null," "]
["        3.8.1.2. pentru participarea proiectantului la fazele incluse în programul de control al lucrărilor de execuţie, avizat de către Inspectoratul de Stat în Construcţii",null,null,null,null,null,null,null,null,null,null,null,null,null,null,null,null,null,null,null,null,null,null,null,null,null,null,null," ",null,null,null,null," "]
["    3.8.2. Dirigenţie de şantier",null,null,null,null,null,null,null,null,null,null,null,null,null,null,null,null,null,null,null,null,null,null,null,null,null,null,null," ",null,null,null,null," "]
["Verificare încadrare cheltuieli capitolul 3",null,null,null,null,null,null,null,null,null,null,null,null,null,null,null,null,null,null,null,null,null,null,null,null,null,null,null,{"$f":"IF(BD454=\"NU\",\"nu este cazul verificarii\", \"\")","v":""},null,null,null,null,null,null,null,null,null,null,null,null,null,null,null,{"$f":"IF(AS466>SUM(AC460,AC465,AC491)*BI8/100,\"cheltuieli capitol 3 > \"&BI8&\"% \",\"cheltuieli capitol 3 < \"&BI8&\"% \")","v":"cheltuieli capitol 3 < 10% "}]
["Capitolul 4 Cheltuieli pentru investiţia de bază - total, din care:"]
["Constructii, din care:"]
["4.1 Construcţii şi instalaţii"]
["4.2 Montaj utilaj tehnologic"]
["4.3 Utilaje, echipamente tehnologice şi funcţionale cu montaj (procurare)"]
["4.4 Utilaje şi echipamente fară montaj, mijloace de transport, alte achiziţii specifice"]
["4.5 Dotări"]
["4.6 Active necorporale",null,null,null,null,null,null,null,null,null,null,null,null,null,null,null,null,null,null,null,null,null,null,null,null,null,null,null," "]
["Capitolul 5 Alte cheltuieli - total, din care:"]
["5.1 Organizare de şantier  "]
["     5.1.1 Lucrări de construcţii şi instalaţii aferente organizării de şantier"]
["     5.1.2 Cheltuieli conexe organizării şantierului "]
["5.2 Comisioane, cote, taxe, costul creditului"]
["     5.2.1. Comisioanele şi dobânzile aferente creditului băncii finanţatoare"]
["     5.2.2. Cota aferentă ISC pentru controlul calităţii lucrărilor de construcţii"]
["     5.2.3. Cota aferentă ISC pentru controlul statului în amenajarea teritoriului, urbanism şi pentru autorizarea lucrărilor de construcţii"]
["     5.2.4. Cota aferentă Casei Sociale a Constructorilor - CSC"]
["     5.2.5. Taxe pentru acorduri, avize conforme şi autorizaţia de construire/desfiinţare"]
["5.3 Cheltuieli diverse şi neprevăzute "]
["5.4 Cheltuieli pentru informare şi publicitate"]
["Procent cheltuieli diverse şi neprevăzute",null,null,null,null,null,null,null,null,null,null,null,null,null,null,null,null,null,null,null,null,null,null,null,null,null,null,null,{"$f":"IF(AC509>0,AC509/SUM(AC491,AC465,AC460),0)","v":0}]
["Capitolul 6 Cheltuieli pentru darea în exploatare - total, din care:"]
["6.1 Pregătirea personalului de exploatare",null,null,null,null,null,null,null,null,null,null,null,null,null,null,null,null,null,null,null,null,null,null,null,null,null,null,null," "]
["6.2 Probe tehnologice şi teste"]
["TOTAL GENERAL",null,null,null,null,null,null,null,null,null,null,null,null,null,null,null,null,null,null,null,null,null,null,null,null,null,null,null,null,null,null,null,null,null,null,null,null,null,null,null,null,null,null,null,{"$f":"SUM(AS466)","v":0},null,null,null,null,{"$f":"SUM(AX466)","v":0},null,null,null,null,null,{"$f":"SUM(AX515,AS515)","v":0}]
["Verificare actualizare",null,null,null,null,null,null,null,null,null,null,null,null,null,null,null,null,null,null,null,null,null,null,null,null,null,null,null,{"$f":"IF(AC517/AC515*100>5,\"actualizare mai mare de 5%\",\"actualizare mai mica de 5%\")","v":{"$error":"#DIV/0!"}}]
["ACTUALIZARE Cheltuieli Eligibile (max 5%)",null,null,null,null,null,null,null,null,null,null,null,null,null,null,null,null,null,null,null,null,null,null,null,null,null,null,null,null,null,null,null,null," "]
["TOTAL GENERAL CU ACTUALIZARE"]
["Valoare TVA"]
["TOTAL GENERAL inclusiv TVA"]
[null,null,null,null,null,null,null,null,null,null,null,null,null,null,null,null,null,null,null,null,null,null,null,null,null,null,null,null,"GBER",null,null,null,null,null,null,null,null,null,"MINIMIS",null,null,null,null,null,null,null,null,null,null,"Total (GBER+MINIMIS)"]
[null,null,null,null,null,null,null,null,null,null,null,null,null,null,null,null,null,null,null,null,null,null,null,null,null,null,null,null,"LEI",null,null,null,null,"EURO",null,null,null,null,"LEI",null,null,null,null,null,"EURO",null,null,null,null,"LEI",null,null,null,null,null,"EURO"]
["VALOARE TOTALĂ"]
["VALOARE ELIGIBILĂ"]
["VALOARE NEELIGIBILĂ"]
["PLAN FINANCIAR\n (EURO)",null,null,null,null,null,null,null,null,null,null,null,null,null,null,null,null,null,null,null,null,null,null,null,null,null,null,null,"GBER",null,null,null,null,null,null,null,null,null,"MINIMIS",null,null,null,null,null,null,null,null,null,null,"Total (GBER+MINIMIS)"]
[null,null,null,null,null,null,null,null,null,null,null,null,null,null,null,null,null,null,null,null,null,null,null,null,null,null,null,null,"Cheltuieli eligibile",null,null,null,null,"Cheltuieli neeligibile",null,null,null,null,"Cheltuieli eligibile",null,null,null,null,null,"Cheltuieli neeligibile",null,null,null,null,"EURO"]
["Ajutor public nerambursabil (contribuţie UE şi cofinanţare naţională)"]
["Cofinantare privata, din care:"]
[" - autofinantare"]
["- imprumuturi"]
["TOTAL PROIECT"]
["Procent contribuţie publică",null,null,null,null,null,null,null,null,null,null,null,null,null,null,null,null,null,null,null,null,null,null,null,null,null,null,null,{"$f":"AC528/AC532","v":{"$error":"#DIV/0!"}},null,null,null,null,null,null,null,null,null,{"$f":"AM528/AM532","v":{"$error":"#DIV/0!"}},null,null,null,null,null,null,null,null,null,null,null,null,null,null,null,null," "]
["Avans solicitat",null,null,null,null,null,null,null,null,null,null,null,null,null,null,null,null,null,null,null,null,null,null,null,null,null,null,null,null,null,null,null,null,null,null,null,null,null,null,null,null,null,null,null,null,null,null,null,null,null,null,null,null,null,null," "]
["Procent avans solicitat ca procent din ajutorul public\nnerambursabil",null,null,null,null,null,null,null,null,null,null,null,null,null,null,null,null,null,null,null,null,null,null,null,null,null,null,null,{"$f":"AC534/AC528","v":{"$error":"#DIV/0!"}},null,null,null,null,{"$f":"IF(AC534>AC528/2,\"Avansul solicitat depaseste 50% din Valoare sprijin\",\"Avansul solicitat nu depaseste 50% din valoare sprijin\")","v":"Avansul solicitat nu depaseste 50% din valoare sprijin"}]
[" "]
[]
[null,"Buget Indicativ - HG 907/2016"]
["MINISTERUL AGRICULTURII ŞI DEZVOLTĂRII RURALE"]
["AGENŢIA PENTRU FINANŢAREA INVESTIŢIILOR RURALE"]
[]
[]
["Procentul MAX admisibil aferent intensităţii corelat cu tipul intreprinderii, tipul investiţiei\nşi zone de dezv. regională (judeţ)",null,null,null,null,null,null,null,null,null,null,null,null,null,null,null,null,null,null,null,"Curs EURO",null,null,null,null,null,null,null,null,null,null,null,"Data întocmirii Studiului de Fezabilitate"]
[null,null,null,null,null,null,null,null,null,null,null,null,null,null,null,null,null,null,null,null,null,null,null,null,null,null,null,null,"FARA OPTIUNE DE MINIMIS"]
["Schema GBER (M1/2A)",null,null,null,null,null,null,null,null,null,null,null,null,null,null,null,null,null,null,null,null,null,null,null,null,null,null,null,"GBER",null,null,null,null,null,null,null,null,null,null,null,null,null,null,null,"MINIMIS"]
["Denumirea capitolelor de cheltuieli",null,null,null,null,null,null,null,null,null,null,null,null,null,null,null,null,null,null,null,null,null,null,null,null,null,null,null,"Cheltuieli eligibile",null,null,null,null,"Cheltuieli neeligibile",null,null,null,null,"TOTAL",null,null,null,null,null,"Cheltuieli eligibile",null,null,null,null,"Cheltuieli neeligibile",null,null,null,null,null,"TOTAL"]
[null,null,null,null,null,null,null,null,null,null,null,null,null,null,null,null,null,null,null,null,null,null,null,null,null,null,null,null,"EURO",null,null,null,null,"EURO",null,null,null,null,"EURO",null,null,null,null,null,"EURO",null,null,null,null,"EURO",null,null,null,null,null," EURO"]
[1,null,null,null,null,null,null,null,null,null,null,null,null,null,null,null,null,null,null,null,null,null,null,null,null,null,null,null,2,null,null,null,null,3,null,null,null,null,4,null,null,null,null,null,5,null,null,null,null,6,null,null,null,null,null,7]
["Capitolul 1 Cheltuieli pentru obtinerea şi amenajarea terenului - total, din care:",null,null,null,null,null,null,null,null,null,null,null,null,null,null,null,null,null,null,null,null,null,null,null,null,null,null,null,null,null,null,null,null,null,null,null,null,null,null,null,null,null,null,null,null,null,null,null,null,null,null,null,null,null,null,{"$f":"SUM(AS549:BC549)","v":0}]
["1.1 Obţinerea terenului ",null,null,null,null,null,null,null,null,null,null,null,null,null,null,null,null,null,null,null,null,null,null,null,null,null,null,null,null,null,null,null,null,null,null,null,null,null,null,null,null,null,null,null,null,null,null,null,null," ",null,null,null,null,null,{"$f":"SUM(AS550:BC550)","v":0}]
["1.2 Cheltuieli pentru amenajarea terenului",null,null,null,null,null,null,null,null,null,null,null,null,null,null,null,null,null,null,null,null,null,null,null,null,null,null,null,null,null,null,null,null,null,null,null,null,null,null,null,null,null,null,null,null,null,null,null,null,null,null,null,null,null,null,0]
["1.2 Cheltuieli pentru amenajarea terenului",null,null,null,null,null,null,null,null,null,null,null,null,null,null,null,null,null,null,null,null,null,null,null,null,null,null,null,null,null,null,null,null,null,null,null,null,null,null,null,null,null,null,null,null,null,null,null,null,null,null,null,null,null,null,0]
["1.3 Cheltuieli cu amenajari pentru protecţia mediului şi aducerea la starea iniţială",null,null,null,null,null,null,null,null,null,null,null,null,null,null,null,null,null,null,null,null,null,null,null,null,null,null,null,null,null,null,null,null,null,null,null,null,null,null,null,null,null,null,null,null,null,null,null,null,null,null,null,null,null,null,0]
["Capitolul 2 Cheltuieli pentru asigurarea utilităţilor necesare obiectivului",null,null,null,null,null,null,null,null,null,null,null,null,null,null,null,null,null,null,null,null,null,null,null,null,null,null,null,null,null,null,null,null,null,null,null,null,null,null,null,null,null,null,null,null,null,null,null,null,null,null,null,null,null,null,0]
["Capitolul 3 Cheltuieli pentru proiectare şi asistenţă tehnică - total, din care:",null,null,null,null,null,null,null,null,null,null,null,null,null,null,null,null,null,null,null,null,null,null,null,null,null,null,null," ",null,null,null,null,null,null,null,null,null,null,null,null,null,null,null,null,null,null,null,null,null,null,null,null,null,null,0]
["3.1 Studii",null,null,null,null,null,null,null,null,null,null,null,null,null,null,null,null,null,null,null,null,null,null,null,null,null,null,null," ",null,null,null,null,null,null,null,null,null,null,null,null,null,null,null,null,null,null,null,null,null,null,null,null,null,null,0]
["     3.1.1 Studii de teren",null,null,null,null,null,null,null,null,null,null,null,null,null,null,null,null,null,null,null,null,null,null,null,null,null,null,null," ",null,null,null,null,null,null,null,null,null,null,null,null,null,null,null,null,null,null,null,null,null,null,null,null,null,null,0]
["     3.1.2. Raport privind impactul asupra mediului",null,null,null,null,null,null,null,null,null,null,null,null,null,null,null,null,null,null,null,null,null,null,null,null,null,null,null," ",null,null,null,null,null,null,null,null,null,null,null,null,null,null,null,null,null,null,null,null,null,null,null,null,null,null,0]
["     3.1.3. Alte studii specifice",null,null,null,null,null,null,null,null,null,null,null,null,null,null,null,null,null,null,null,null,null,null,null,null,null,null,null," ",null,null,null,null,null,null,null,null,null,null,null,null,null,null,null,null,null,null,null,null,null,null,null,null,null,null,0]
["3.2 Documentaţii-suport şi cheltuieli pentru obţinerea de avize, acorduri şi autorizaţii",null,null,null,null,null,null,null,null,null,null,null,null,null,null,null,null,null,null,null,null,null,null,null,null,null,null,null," ",null,null,null,null,null,null,null,null,null,null,null,null,null,null,null,null,null,null,null,null,null,null,null,null,null,null,0]
["3.3 Expertizare tehnică",null,null,null,null,null,null,null,null,null,null,null,null,null,null,null,null,null,null,null,null,null,null,null,null,null,null,null," ",null,null,null,null,null,null,null,null,null,null,null,null,null,null,null,null,null,null,null,null,null,null,null,null,null,null,0]
["3.4 Certificarea performanţei energetice şi auditul energetic al clădirilor",null,null,null,null,null,null,null,null,null,null,null,null,null,null,null,null,null,null,null,null,null,null,null,null,null,null,null," ",null,null,null,null,null,null,null,null,null,null,null,null,null,null,null,null,null,null,null,null,null,null,null,null,null,null,0]
["3.5 Proiectare",null,null,null,null,null,null,null,null,null,null,null,null,null,null,null,null,null,null,null,null,null,null,null,null,null,null,null," ",null,null,null,null,null,null,null,null,null,null,null,null,null,null,null,null,null,null,null,null,null,null,null,null,null,null,0]
["     3.5.1. Temă de proiectare",null,null,null,null,null,null,null,null,null,null,null,null,null,null,null,null,null,null,null,null,null,null,null,null,null,null,null," ",null,null,null,null,null,null,null,null,null,null,null,null,null,null,null,null,null,null,null,null,null,null,null,null,null,null,0]
["     3.5.2. Studiu de prefezabilitate",null,null,null,null,null,null,null,null,null,null,null,null,null,null,null,null,null,null,null,null,null,null,null,null,null,null,null," ",null,null,null,null,null,null,null,null,null,null,null,null,null,null,null,null,null,null,null,null,null,null,null,null,null,null,0]
["     3.5.3. Studiu de fezabilitate/documentaţie de avizare a lucrărilor de intervenţii şi deviz general",null,null,null,null,null,null,null,null,null,null,null,null,null,null,null,null,null,null,null,null,null,null,null,null,null,null,null," ",null,null,null,null,null,null,null,null,null,null,null,null,null,null,null,null,null,null,null,null,null,null,null,null,null,null,0]
["     3.5.4. Documentaţiile tehnice necesare în vederea obţinerii avizelor/acordurilor/autorizaţiilor",null,null,null,null,null,null,null,null,null,null,null,null,null,null,null,null,null,null,null,null,null,null,null,null,null,null,null," ",null,null,null,null,null,null,null,null,null,null,null,null,null,null,null,null,null,null,null,null,null,null,null,null,null,null,0]
["     3.5.5. Verificarea tehnică de calitate a proiectului tehnic şi a detaliilor de execuţie",null,null,null,null,null,null,null,null,null,null,null,null,null,null,null,null,null,null,null,null,null,null,null,null,null,null,null," ",null,null,null,null,null,null,null,null,null,null,null,null,null,null,null,null,null,null,null,null,null,null,null,null,null,null,0]
["     3.5.6. Proiect tehnic şi detalii de execuţie",null,null,null,null,null,null,null,null,null,null,null,null,null,null,null,null,null,null,null,null,null,null,null,null,null,null,null," ",null,null,null,null,null,null,null,null,null,null,null,null,null,null,null,null,null,null,null,null,null,null,null,null,null,null,0]
["3.6 Organizarea procedurilor de achiziţie",null,null,null,null,null,null,null,null,null,null,null,null,null,null,null,null,null,null,null,null,null,null,null,null,null,null,null," ",null,null,null,null,null,null,null,null,null,null,null,null,null,null,null,null,null,null,null,null,null,null,null,null,null,null,0]
["3.7 Consultanţă",null,null,null,null,null,null,null,null,null,null,null,null,null,null,null,null,null,null,null,null,null,null,null,null,null,null,null," ",null,null,null,null,null,null,null,null,null,null,null,null,null,null,null,null,null,null,null,null,null,null,null,null,null,null,0]
["     3.7.1. Managementul de proiect pentru obiectivul de investiţii",null,null,null,null,null,null,null,null,null,null,null,null,null,null,null,null,null,null,null,null,null,null,null,null,null,null,null," ",null,null,null,null,null,null,null,null,null,null,null,null,null,null,null,null,null,null,null,null,null,null,null,null,null,null,0]
["     3.7.2. Auditul financiar",null,null,null,null,null,null,null,null,null,null,null,null,null,null,null,null,null,null,null,null,null,null,null,null,null,null,null," ",null,null,null,null,null,null,null,null,null,null,null,null,null,null,null,null,null,null,null,null,null,null,null,null,null,null,0]
["3.8 Asistenţă tehnică",null,null,null,null,null,null,null,null,null,null,null,null,null,null,null,null,null,null,null,null,null,null,null,null,null,null,null," ",null,null,null,null,null,null,null,null,null,null,null,null,null,null,null,null,null,null,null,null,null,null,null,null,null,null,0]
["    3.8.1. Asistenţă tehnică din partea proiectantului",null,null,null,null,null,null,null,null,null,null,null,null,null,null,null,null,null,null,null,null,null,null,null,null,null,null,null," ",null,null,null,null,null,null,null,null,null,null,null,null,null,null,null,null,null,null,null,null,null,null,null,null,null,null,0]
["        3.8.1.1. pe perioada de execuţie a lucrărilor",null,null,null,null,null,null,null,null,null,null,null,null,null,null,null,null,null,null,null,null,null,null,null,null,null,null,null," ",null,null,null,null,null,null,null,null,null,null,null,null,null,null,null,null,null,null,null,null,null,null,null,null,null,null,0]
["        3.8.1.2. pentru participarea proiectantului la fazele incluse în programul de control al lucrărilor de execuţie, avizat de către Inspectoratul de Stat în Construcţii",null,null,null,null,null,null,null,null,null,null,null,null,null,null,null,null,null,null,null,null,null,null,null,null,null,null,null," ",null,null,null,null,null,null,null,null,null,null,null,null,null,null,null,null,null,null,null,null,null,null,null,null,null,null,0]
["    3.8.2. Dirigenţie de şantier",null,null,null,null,null,null,null,null,null,null,null,null,null,null,null,null,null,null,null,null,null,null,null,null,null,null,null," ",null,null,null,null,null,null,null,null,null,null,null,null,null,null,null,null,null,null,null,null,null,null,null,null,null,null,0]
["Verificare încadrare cheltuieli capitolul 3",null,null,null,null,null,null,null,null,null,null,null,null,null,null,null,null,null,null,null,null,null,null,null,null,null,null,null,{"$f":"IF(BD543=\"NU\",\"nu este cazul verificarii\", \"\")","v":""},null,null,null,null,null,null,null,null,null,null,null,null,null,null,null,null,null,null,null,null,null,null,null,null,null,null,0]
["Capitolul 4 Cheltuieli pentru investiţia de bază - total, din care:"]
["Constructii, din care:"]
["4.1 Construcţii şi instalaţii"]
["4.2 Montaj utilaj tehnologic"]
["4.3 Utilaje, echipamente tehnologice şi funcţionale cu montaj (procurare)"]
["4.4 Utilaje şi echipamente fară montaj, mijloace de transport, alte achiziţii specifice"]
["4.5 Dotări"]
["4.6 Active necorporale"]
["Capitolul 5 Alte cheltuieli - total, din care:"]
["5.1 Organizare de şantier  "]
["     5.1.1 Lucrări de construcţii şi instalaţii aferente organizării de şantier"]
["     5.1.2 Cheltuieli conexe organizării şantierului "]
["5.2 Comisioane, cote, taxe, costul creditului"]
["     5.2.1. Comisioanele şi dobânzile aferente creditului băncii finanţatoare"]
["     5.2.2. Cota aferentă ISC pentru controlul calităţii lucrărilor de construcţii"]
["     5.2.3. Cota aferentă ISC pentru controlul statului în amenajarea teritoriului, urbanism şi pentru autorizarea lucrărilor de construcţii"]
["     5.2.4. Cota aferentă Casei Sociale a Constructorilor - CSC"]
["     5.2.5. Taxe pentru acorduri, avize conforme şi autorizaţia de construire/desfiinţare"]
["5.3 Cheltuieli diverse şi neprevăzute "]
["5.4 Cheltuieli pentru informare şi publicitate"]
["Procent cheltuieli diverse şi neprevăzute",null,null,null,null,null,null,null,null,null,null,null,null,null,null,null,null,null,null,null,null,null,null,null,null,null,null,null,{"$f":"IF(AC598>0,AC598/SUM(AC580,AC554,AC549),0)","v":0}]
["Capitolul 6 Cheltuieli pentru darea în exploatare - total, din care:"]
["6.1 Pregătirea personalului de exploatare"]
["6.2 Probe tehnologice şi teste"]
["TOTAL GENERAL"]
["Verificare actualizare",null,null,null,null,null,null,null,null,null,null,null,null,null,null,null,null,null,null,null,null,null,null,null,null,null,null,null,{"$f":"IF(AC606/AC604*100>5,\"actualizare mai mare de 5%\",\"actualizare mai mica de 5%\")","v":{"$error":"#DIV/0!"}}]
["ACTUALIZARE Cheltuieli Eligibile (max 5%)"]
["TOTAL GENERAL CU ACTUALIZARE"]
["Valoare TVA"]
["TOTAL GENERAL inclusiv TVA"]
[null,null,null,null,null,null,null,null,null,null,null,null,null,null,null,null,null,null,null,null,null,null,null,null,null,null,null,null,"GBER",null,null,null,null,null,null,null,null,null,"MINIMIS",null,null,null,null,null,null,null,null,null,null,"Total (GBER+MINIMIS)"]
[null,null,null,null,null,null,null,null,null,null,null,null,null,null,null,null,null,null,null,null,null,null,null,null,null,null,null,null,"LEI",null,null,null,null,"EURO",null,null,null,null,"LEI",null,null,null,null,null,"EURO",null,null,null,null,"LEI",null,null,null,null,null,"EURO"]
["VALOARE TOTALĂ"]
["VALOARE ELIGIBILĂ"]
["VALOARE NEELIGIBILĂ"]
["PLAN FINANCIAR\n (EURO)",null,null,null,null,null,null,null,null,null,null,null,null,null,null,null,null,null,null,null,null,null,null,null,null,null,null,null,"GBER",null,null,null,null,null,null,null,null,null,"MINIMIS",null,null,null,null,null,null,null,null,null,null,"Total (GBER+MINIMIS)"]
[null,null,null,null,null,null,null,null,null,null,null,null,null,null,null,null,null,null,null,null,null,null,null,null,null,null,null,null,"Cheltuieli eligibile",null,null,null,null,"Cheltuieli neeligibile",null,null,null,null,"Cheltuieli eligibile",null,null,null,null,null,"Cheltuieli neeligibile",null,null,null,null,"EURO"]
["Ajutor public nerambursabil (contribuţie UE şi cofinanţare naţională)"]
["Cofinantare privata, din care:"]
[" - autofinantare"]
["- imprumuturi"]
["TOTAL PROIECT"]
["Procent contribuţie publică",null,null,null,null,null,null,null,null,null,null,null,null,null,null,null,null,null,null,null,null,null,null,null,null,null,null,null,{"$f":"AC617/AC621","v":{"$error":"#DIV/0!"}},null,null,null,null,null,null,null,null,null,{"$f":"AM617/AM621","v":{"$error":"#DIV/0!"}},null,null,null,null,null,null,null,null,null,null,null,null,null,null,null,null," "]
["Avans solicitat",null,null,null,null,null,null,null,null,null,null,null,null,null,null,null,null,null,null,null,null,null,null,null,null,null,null,null,null,null,null,null,null,null,null,null,null,null,null,null,null,null,null,null,null,null,null,null,null,null,null,null,null,null,null," "]
["Procent avans solicitat ca procent din ajutorul public\nnerambursabil",null,null,null,null,null,null,null,null,null,null,null,null,null,null,null,null,null,null,null,null,null,null,null,null,null,null,null,{"$f":"AC623/AC617","v":{"$error":"#DIV/0!"}},null,null,null,null,{"$f":"IF(AC623>AC617/2,\"Avansul solicitat depaseste 50% din Valoare sprijin\",\"Avansul solicitat nu depaseste 50% din valoare sprijin\")","v":"Avansul solicitat nu depaseste 50% din valoare sprijin"}]
[" "]
[]
[]
[null,null,null,null,null,null,null,"MINISTERUL AGRICULTURII ŞI DEZVOLTĂRII RURALE"]
[null,null,null,null,null,null,null,null,null,null,null,null,null,null,null,null,null,null,null,null,null,null,null,null,null,null,null,null,null,null,null,null,null,null,null,null,null,null,null,null,null,null,"Anexa A1 HG_907 / 2016"]
[null,null,null,null,null,null,null,"AGENŢIA PENTRU FINANŢAREA INVESTIŢIILOR RURALE"]
[null,null,null,null,null,null,null,null,null,null,null,null,null,null,null,null,null,null,null,null,null,null,null,null,null,null,null,null,null,null,null,null,null,null,null,null,null,null,null,null,null,null,null,null,null,null,null,null,null,null,null,"Nr.1"]
[null,null,null,null,null,null,null,"Deviz financiar- Capitolul 3 - Cheltuieli pentru proiectare şi asistenţa tehnică - EURO"]
[]
[]
["(Titlu deviz)"]
["Nr.crt",null,null,null,"Specificaţie",null,null,null,null,null,null,null,null,null,null,null,null,null,null,null,null,null,null,null,null,null,null,null,null,null,null,null,null,null,null,null,null,null,null,null,null,null,"Valoare eligibilă",null,null,null,null,null,null,null,null,"Valoare\nneeligibilă"]
["3.1",null,null,null,"Cheltuieli pentru studii - total din care:",null,null,null,null,null,null,null,null,null,null,null,null,null,null,null,null,null,null,null,null,null,null,null,null,null,null,null,null,null,null,null,null,null,null,null,null,null,null,null,null,null,null,null,null,null,null,{"$f":"SUM(AZ638:BI640)","v":0}]
[null,null,null,null,"3.1.1 Studii de teren: studii geotehnice, geologice, hidrologice, hidrogeotehnice, fotogrammetrice, topografica şi de stabilitate ale terenului pe care se amplasează obiectivul de investiţie"]
[null,null,null,null,"3.1.2 Raport privind impactul asupra mediului"]
[null,null,null,null,"3.1.3 Studii de specialitate necesare în funcţie de specificul investiţiei"]
["3.2",null,null,null,"Documentaţii-suport şi cheltuieli pentru obţinerea de avize, acorduri şi autorizaţii",null,null,null,null,null,null,null,null,null,null,null,null,null,null,null,null,null,null,null,null,null,null,null,null,null,null,null,null,null,null,null,null,null,null,null,null,null,null,null,null,null,null,null,null,null,null,{"$f":"SUM(AZ642:BI650)","v":0}]
[null,null,null,null,"1. obţinerea/prelungirea valabilităţii certificatului de urbanism"]
[null,null,null,null,"2. obţinerea/prelungirea valabilităţii autorizaţiei de construire/desfiinţare"]
[null,null,null,null,"3. obţinerea avizelor şi acordurilor pentru racorduri şi branşamente la reţele publice de alimentare cu apă, canalizare, alimentare cu gaze, alimentare cu agent termic, energie electrică, telefonie"]
[null,null,null,null,"4. obţinerea certificatului de nomenclatură stradală şi adresă"]
[null,null,null,null,"5. întocmirea documentaţiei, obţinerea numărului cadastral provizoriu şi înregistrarea terenului în cartea funciară"]
[null,null,null,null,"6. obţinerea actului administrativ al autorităţii competente pentru protecţia mediului"]
[null,null,null,null,"7. obţinerea avizului de protecţie civilă"]
[null,null,null,null,"8. avizul de specialitate în cazul obiectivelor de patrimoniu"]
[null,null,null,null,"9. alte avize, acorduri şi autorizaţii"]
["3.3",null,null,null,"Cheltuieli pentru expertizarea tehnică a construcţiilor existente, a structurilor şi/sau, după caz, a proiectelor tehnice, inclusiv întocmirea de către expertul tehnic a raportului de expertiză tehnică"]
["3.4",null,null,null,"Cheltuieli pentru certificarea performanţei energetice şi auditul energetic al clădirilor"]
["3.5",null,null,null,"Cheltuieli pentru proiectare",null,null,null,null,null,null,null,null,null,null,null,null,null,null,null,null,null,null,null,null,null,null,null,null,null,null,null,null,null,null,null,null,null,null,null,null,null,null,null,null,null,null,null,null,null,null,{"$f":"SUM(AZ654:BI659)","v":0}]
[null,null,null,null,"3.5.1 Temă de proiectare"]
[null,null,null,null,"3.5.2 Studiu de prefezabilitate"]
[null,null,null,null,"3.5.3 Studiu de fezabilitate/documentaţie de avizare a lucrărilor de intervenţii şi deviz general"]
[null,null,null,null,"3.5.4 Documentaţiile tehnice necesare în vederea obţinerii avizelor/acordurilor/autorizaţiilor"]
[null,null,null,null,"3.5.5 Verificarea tehnică de calitate a proiectului tehnic şi a detaliilor de execuţie"]
[null,null,null,null,"3.5.6 Proiect tehnic şi detalii de execuţie"]
["3.6",null,null,null,"Cheltuieli aferente organizării şi derulării procedurilor de achiziţii publice",null,null,null,null,null,null,null,null,null,null,null,null,null,null,null,null,null,null,null,null,null,null,null,null,null,null,null,null,null,null,null,null,null,null,null,null,null,null,null,null,null,null,null,null,null,null,{"$f":"SUM(AZ661:BI664)","v":0}]
[null,null,null,null,"1. Cheltuieli aferente întocmirii documentaţiei de atribuire şi multiplicării acesteia (exclusiv cele cumpărate de ofertanţi)"]
[null,null,null,null,"2. Cheltuieli cu onorariile, transportul, cazarea şi diurna membrilor desemnaţi în comisiile de evaluare"]
[null,null,null,null,"3. Anunţuri de intenţie, de participare şi de atribuire a contractelor, corespondenţă prin poştă, fax, poştă electronică în legătură cu procedurile de achiziţie publică"]
[null,null,null,null,"4. Cheltuieli aferente organizării şi derulării procedurilor de achiziţii publice"]
["3.7",null,null,null,"Cheltuieli pentru consultanţă",null,null,null,null,null,null,null,null,null,null,null,null,null,null,null,null,null,null,null,null,null,null,null,null,null,null,null,null,null,null,null,null,null,null,null,null,null,null,null,null,null,null,null,null,null,null,{"$f":"SUM(AZ666:BI667)","v":0}]
[null,null,null,null,"3.7.1 Managementul de proiect pentru obiectivul de investiţii"]
[null,null,null,null,"3.7.2 Auditul financiar"]
["3.8",null,null,null,"Cheltuieli pentru asistenţă tehnică",null,null,null,null,null,null,null,null,null,null,null,null,null,null,null,null,null,null,null,null,null,null,null,null,null,null,null,null,null,null,null,null,null,null,null,null,null,null,null,null,null,null,null,null,null,null,{"$f":"AZ669+AZ672","v":0}]
[null,null,null,null,"3.8.1. Asistenţă tehnică din partea proiectantului",null,null,null,null,null,null,null,null,null,null,null,null,null,null,null,null,null,null,null,null,null,null,null,null,null,null,null,null,null,null,null,null,null,null,null,null,null,null,null,null,null,null,null,null,null,null,{"$f":"SUM(AZ670:BI671)","v":0}]
[null,null,null,null,"1.1. pe perioada de execuţie a lucrărilor"]
[null,null,null,null,"1.2. pentru participarea proiectantului la fazele incluse în programul de control al lucrărilor de execuţie, avizat de către Inspectoratul de Stat în Construcţii"]
[null,null,null,null,"3.8.2 Dirigenţie de şantier, asigurată de personal tehnic de specialitate, autorizat"]
["Total valoare fără TVA",null,null,null,null,null,null,null,null,null,null,null,null,null,null,null,null,null,null,null,null,null,null,null,null,null,null,null,null,null,null,null,null,null,null,null,null,null,null,null,null,null,null,null,null,null,null,null,null,null,null,{"$f":"AZ668+AZ665+AZ660+AZ653+AZ652+AZ651+AZ641+AZ637","v":0}]
["Valoare TVA (aferentă cheltuielilor eligibile şi neeligibile)"]
["TOTAL DEVIZ FINANCIAR 1 (inclusiv TVA)",null,null,null,null,null,null,null,null,null,null,null,null,null,null,null,null,null,null,null,null,null,null,null,null,null,null,null,null,null,null,null,null,null,null,null,null,null,null,null,null,null,{"$f":"AQ673+AZ673+AQ674+AZ674","v":0}]
["Notă: Pentru a adăuga o nouă anexă accesaţi foaia (sheet) corespunzătoare sau click aici"]
[]
[null,null,null,null,null,null,null,"MINISTERUL AGRICULTURII ŞI DEZVOLTĂRII RURALE"]
[null,null,null,null,null,null,null,null,null,null,null,null,null,null,null,null,null,null,null,null,null,null,null,null,null,null,null,null,null,null,null,null,null,null,null,null,null,null,null,null,null,null,"Anexa A2 - HG907/2016"]
[null,null,null,null,null,null,null,"AGENŢIA PENTRU FINANŢAREA INVESTIŢIILOR RURALE"]
[null,null,null,null,null,null,null,null,null,null,null,null,null,null,null,null,null,null,null,null,null,null,null,null,null,null,null,null,null,null,null,null,null,null,null,null,null,null,null,null,null,null,null,null,null,null,null,null,null,null,null,"Nr.1"]
[null,null,null,null,null,null,null,"DEVIZ PE OBIECT *"]
[]
[" "]
["(Descriere obiect de construcţie)"]
["Nr. crt.",null,null,null,"Denumire",null,null,null,null,null,null,null,null,null,null,null,null,null,null,null,null,null,null,null,null,null,null,null,null,null,null,null,null,null,null,null,null,null,null,null,null,null,"Valoarea pe categorii de lucrări, fară TVA - EURO"]
[null,null,null,null,null,null,null,null,null,null,null,null,null,null,null,null,null,null,null,null,null,null,null,null,null,null,null,null,null,null,null,null,null,null,null,null,null,null,null,null,null,null,"Valoare eligibilă",null,null,null,null,null,null,null,null,"Valoare\nneeligibilă"]
["I - LUCRĂRI DE CONSTRUCŢII ŞI INSTALAŢII"]
["4.1",null,null,null,"Construcţii şi instalaţii",null,null,null,null,null,null,null,null,null,null,null,null,null,null,null,null,null,null,null,null,null,null,null,null,null,null,null,null,null,null,null,null,null,null,null,null,null,{"$f":"SUM(AQ690:AY693)","v":0},null,null,null,null,null,null,null,null,{"$f":"SUM(AZ690:BI693)","v":0}]
[null,null,null,null,"  4.1.1 Terasamente, sistematizare pe verticală şi amenajări exterioare"]
[null,null,null,null,"  4.1.2 Rezistenţă"]
[null,null,null,null,"  4.1.3 Arhitectură"]
[null,null,null,null,"  4.1.4 Instalaţii"]
[null,null,null,null,"TOTAL I ( fără TVA)",null,null,null,null,null,null,null,null,null,null,null,null,null,null,null,null,null,null,null,null,null,null,null,null,null,null,null,null,null,null,null,null,null,null,null,null,null,{"$f":"AQ689","v":0},null,null,null,null,null,null,null,null,{"$f":"AZ689","v":0}]
["II - MONTAJ"]
["4.2",null,null,null,"Montaj utilaje, echipamente tehnologice şi funcţionale"]
[null,null,null,null,"TOTAL II ( fără TVA)",null,null,null,null,null,null,null,null,null,null,null,null,null,null,null,null,null,null,null,null,null,null,null,null,null,null,null,null,null,null,null,null,null,null,null,null,null,{"$f":"SUM(AQ696)","v":0},null,null,null,null,null,null,null,null,{"$f":"SUM(AZ696)","v":0}]
["III - PROCURARE"]
["4.3",null,null,null,"Utilaje, echipamente tehnologice şi funcţionale care necesită montaj",null,null,null,null,null,null,null,null,null,null,null,null,null,null,null,null,null,null,null,null,null,null,null,null,null,null,null,null,null,null,null,null,null,null,null,null,null," ",null,null,null,null,null,null,null,null," "]
["4.4",null,null,null," Utilaje, echipamente tehnologice şi funcţionale care nu necesită montaj şi echipamente de transport",null,null,null,null,null,null,null,null,null,null,null,null,null,null,null,null,null,null,null,null,null,null,null,null,null,null,null,null,null,null,null,null,null,null,null,null,null," ",null,null,null,null,null,null,null,null," "]
["4.5",null,null,null,"Dotări"]
["4.6",null,null,null,"Active necorporale"]
[null,null,null,null,"TOTAL III ( fără TVA)",null,null,null,null,null,null,null,null,null,null,null,null,null,null,null,null,null,null,null,null,null,null,null,null,null,null,null,null,null,null,null,null,null,null,null,null,null,{"$f":"SUM(AQ699:AY702)","v":0},null,null,null,null,null,null,null,null,{"$f":"SUM(AZ699:BI702)","v":0}]
["TOTAL ( TOTAL I + TOTAL II +TOTAL III) fără TVA",null,null,null,null,null,null,null,null,null,null,null,null,null,null,null,null,null,null,null,null,null,null,null,null,null,null,null,null,null,null,null,null,null,null,null,null,null,null,null,null,null,{"$f":"AQ703+AQ697+AQ694","v":0},null,null,null,null,null,null,null,null,{"$f":"AZ703+AZ697+AZ694","v":0}]
["TVA aferent cheltuielilor eligibile şi neeligibile"]
["TOTAL DEVIZ PE OBIECT (inclusiv TVA)",null,null,null,null,null,null,null,null,null,null,null,null,null,null,null,null,null,null,null,null,null,null,null,null,null,null,null,null,null,null,null,null,null,null,null,null,null,null,null,null,null,{"$f":"AQ704+AZ704+AQ705+AZ705","v":0}]
["Notă: Pentru a adăuga o nouă anexă accesaţi foaia (sheet) corespunzătoare sau click aici"]
[]
[]
[null,null,null,null,null,null,null,"MINISTERUL AGRICULTURII ŞI DEZVOLTĂRII RURALE",null,null,null,null,null,null,null,null,null,null,null,null,null,null,null,null,null,null,null,null,null,null,null,null,null,null,null,null,null,null,null,null,null,null,"Anexa A3 - HG907/2016"]
[]
[null,null,null,null,null,null,null,"AGENŢIA PENTRU FINANŢAREA INVESTIŢIILOR RURALE",null,null,null,null,null,null,null,null,null,null,null,null,null,null,null,null,null,null,null,null,null,null,null,null,null,null,null,null,null,null,null,null,null,null,null,null,null,null,null,null,null,null,null,"Nr.1"]
[]
[]
[]
["(Titlu deviz)"]
["Deviz capitolul 2- Cheltuieli pentru asigurarea utilităţilor necesare obiectivului - EURO"]
["Nr.crt",null,null,null,"Specificaţie",null,null,null,null,null,null,null,null,null,null,null,null,null,null,null,null,null,null,null,null,null,null,null,null,null,null,null,null,null,null,null,null,null,null,null,null,null,"Valoare eligibilă",null,null,null,null,null,null,null,null,"Valoare\nneeligibilă"]
[1,null,null,null,"Alimentare cu apă"]
[2,null,null,null,"Canalizare"]
[3,null,null,null,"Alimentare cu gaze naturale"]
[4,null,null,null,"Alimentare cu agent termic"]
[5,null,null,null,"Alimentare cu energie electrică"]
[6,null,null,null,"Telecomunicaţii (telefonie, radio-tv,etc)"]
[7,null,null,null,"Drumuri de acces"]
[8,null,null,null,"Căi ferate industriale;"]
[9,null,null,null,"Alte utilităţi."]
[null,null,null,null,"Total valoare fără TVA",null,null,null,null,null,null,null,null,null,null,null,null,null,null,null,null,null,null,null,null,null,null,null,null,null,null,null,null,null,null,null,null,null,null,null,null,null,{"$f":"SUM(AQ719:AY727)","v":0},null,null,null,null,null,null,null,null,{"$f":"SUM(AZ719:BI727)","v":0}]
[null,null,null,null,"Valoare TVA aferentă cheltuielilor eligibile şi neeligibile"]
["TOTAL DEVIZ CAPITOLUL 2 (inclusiv TVA)",null,null,null,null,null,null,null,null,null,null,null,null,null,null,null,null,null,null,null,null,null,null,null,null,null,null,null,null,null,null,null,null,null,null,null,null,null,null,null,null,null,{"$f":"AQ728+AZ728+AQ729+AZ729","v":0}]
[]
[" Deviz capitolul 5 - Alte cheltuieli - EURO"]
["Nr.crt",null,null,null,"Specificaţie",null,null,null,null,null,null,null,null,null,null,null,null,null,null,null,null,null,null,null,null,null,null,null,null,null,null,null,null,null,null,null,null,null,null,null,null,null,"Valoare eligibilă",null,null,null,null,null,null,null,null,"Valoare\nneeligibilă"]
[]
["5.1 ",null,null,null,"Organizare de şantier",null,null,null,null,null,null,null,null,null,null,null,null,null,null,null,null,null,null,null,null,null,null,null,null,null,null,null,null,null,null,null,null,null,null,null,null,null,{"$f":"SUM(AQ736:AY737)","v":0},null,null,null,null,null,null,null,null,{"$f":"SUM(AZ736:BI737)","v":0}]
[null,null,null,null,"  5.1.1 Lucrări de construcţii şi instalaţii aferente organizării de şantier"]
[null,null,null,null,"  5.1.2 Cheltuieli conexe organizării şantierului"]
["5.2",null,null,null,"Comisioane, cote, taxe, costul creditului",null,null,null,null,null,null,null,null,null,null,null,null,null,null,null,null,null,null,null,null,null,null,null,null,null,null,null,null,null,null,null,null,null,null,null,null,null,{"$f":"SUM(AQ740:AY743)","v":0},null,null,null,null,null,null,null,null,{"$f":"SUM(AZ739:BI743)","v":0}]
[null,null,null,null,"  5.2.1. Comisioanele şi dobânzile aferente creditului băncii finanţatoare"]
[null,null,null,null,"  5.2.2. Cota aferentă ISC pentru controlul calităţii lucrărilor de construcţii"]
[null,null,null,null,"  5.2.3. Cota aferentă ISC pentru controlul statului în amenajarea teritoriului, urbanism şi pentru autorizarea lucrărilor de construcţii"]
[null,null,null,null,"  5.2.4. Cota aferentă Casei Sociale a Constructorilor - CSC"]
[null,null,null,null,"  5.2.5. Taxe pentru acorduri, avize conforme şi autorizaţia de construire/desfiinţare"]
["5.3",null,null,null,"Cheltuieli diverse şi neprevăzute"]
["5.4",null,null,null,"Cheltuieli pentru informare şi publicitate"]
[null,null,null,null,"TOTAL DEVIZ CAPITOLUL 5",null,null,null,null,null,null,null,null,null,null,null,null,null,null,null,null,null,null,null,null,null,null,null,null,null,null,null,null,null,null,null,null,null,null,null,null,null,{"$f":"AQ735+AQ738+AQ745","v":0},null,null,null,null,null,null,null,null,{"$f":"AZ735+AZ738+AZ745+AZ744","v":0}]
[null,null,null,null,"VALOARE TVA aferentă cheltuielilor eligibile şi neeligibile"]
[null,null,null,null,"TOTAL DEVIZ CAPITOLUL 5 ( inclusiv TVA)",null,null,null,null,null,null,null,null,null,null,null,null,null,null,null,null,null,null,null,null,null,null,null,null,null,null,null,null,null,null,null,null,null,null,null,null,null,{"$f":"AQ746+AZ746+AQ747+AZ747","v":0}]
["Notă: Pentru a adăuga o nouă anexă accesaţi foaia (sheet) corespunzătoare sau click aici"]
[]
[]
[]
["MINISTERUL AGRICULTURII ŞI DEZVOLTĂRII RURALE",null,null,null,null,null,null,null,null,null,null,null,null,null,null,null,null,null,null,null,null,null,null,null,null,null,null,null,null,null,"SECTIUNE SPECIFICA \nGBER(Masura M1/2A)"]
["AGENŢIA PENTRU FINANŢAREA INVESTIŢIILOR RURALE"]
[]
["D. ALTE INFORMAȚII :"]
["Programarea proiectului:"]
["Numar luni de implementare"]
[]
["E. LISTA DOCUMENTELOR ANEXATE PROIECTELOR AFERENTE SCHEMEI GBER (MASURA Masura M1/2A)",null,null,null,null,null,null,null,null,null,null,null,null,null,null,null,null,null,null,null,null,null,null,null,null,null,null,null,null,null,null,null,null,null,null,null,null,null,null,null,null,null,null,null,null,null,null,null,null,null,null,null,null,null,null,"OPIS"]
[null,null,null,null,null,null,null,null,null,null,null,null,null,null,null,null,null,null,null,null,null,null,null,null,null,null,null,null,null,null,null,null,null,null,null,null,null,null,null,null,null,null,null,null,null,null,null,null,null,null,null,null,null,null,null,"documente"]
["Documentele se vor anexa cererii de finanțare în ordinea de mai jos:"]
["Lista documente",null,null,null,null,null,null,null,null,null,null,null,null,null,null,null,null,null,null,null,null,null,null,null,null,null,null,null,null,null,"Obligatoriu pentru toate proiectele",null,null,null,null,"Obligatoriu, dacă proiectul impune",null,null,null,null,null,null,"PAGINA \nde la - până la",null,null,null,null,null,null,null,"Obligatoriu pentru toate proiectele",null,null,null,null,"Obligatoriu, dacă proiectul impune"]
["ETAPA:",null,null,null,null,null,null,null,null,null,null,null,null,null,null,null,null,null,null,null,null,null,null,null,null,null,null,null,null,null,"DEPUNERE",null,null,null,null,null,null,null,null,null,null,null,null,null,null,null,null,null,null,null,"CONTRACTARE"]
["1.a) MEMORIU JUSTIFICATIV/ DOCUMENTATIE DE AVIZARE A LUCRARILOR DE INTERVENTIE /STUDIUL DE FEZABILITATE, prezentat si completat in conformitate cu prevederile legale in vigoare"]
["1.b) EXPERTIZA TEHNICĂ DE SPECIALITATE ASUPRA CONSTRUCŢIEI EXISTENTE"]
["1.c) RAPORTUL PRIVIND STADIUL FIZIC AL LUCRĂRILOR."]
["2. SITUAŢIILE FINANCIARE complete (formularele 10, 20, 30 și 40) în conformitate cu Normele de închidere a exercițiului financiar), precedente anului depunerii proiectului înregistrate la Administraţia Financiară."]
["Pot apărea următoarele situații:\na) În cazul unui solicitant înfiinţat în anul depunerii proiectului, nu se va depune nici un document în acest sens."]
["b) În cazul solicitanţilor care nu au desfăşurat activitate anterioară depunerii proiectului, dar au depus la Administraţia Financiară situaţiile financiare, aferente anului anterior depunerii proiectului, solicitantul le va depune la dosarul cererii de finanţare, dovedind că nu a înregistrat venituri din exploatare."]
["c) În cazul solicitanţilor care nu au desfăşurat activitate anterioară depunerii proiectului şi au depus la Administraţia Financiară Declaraţia de inactivitate (conform legii), atunci la dosarul cererii de finanţare solicitantul va depune Declaraţia de inactivitate înregistrată la Administraţia Financiară."]
["Pentru persoane fizice autorizate, intreprinderi individuale si intreprinderi familiale:\nDeclarație specială privind veniturile realizate în anul precedent depunerii proiectului înregistrată la Administraţia Financiară (formularul 200 însoțit de Anexele la Formular), în care rezultatul brut obţinut anual să nu fie negativ."]
["2.1 DECLARAŢIE CONTABIL/EXPERT CONTABIL/AUDITOR FINANCIAR din care să rezulte îndeplinirea condiţiilor privind \"schimbarea fundamentală\" sau după caz, \"diversificarea activității/diversificarea producției unei unităţi existente\".\""]
["2.2 DECLARAȚIE CONTABIL/ EXPERT CONTABIL/ AUDITOR FINANCIAR\nînsoțită de documente și evidențe financiar-contabile prin care să se demonstreze că activităţile desfăşurate în sectoarele excluse din domeniul de aplicare al Schemei GBER (M1/2A) precizate în Ghid nu beneficiază de ajutoare de stat acordate în conformitate cu prezenta schema de stat, respectiv să evidentieze separarea activităților sau o distincție între costuri (cazul întreprinderii care își desfășoară activitatea atât în sectoarele excluse, menționate în Ghid cât și în sectoarele care intră în domeniul de aplicare al schemei GBER)."]
["3. DOCUMENTE SOLICITATE PENTRU IMOBILUL (CLĂDIRILE ŞI/ SAU TERENURILE) pe care sunt/ vor fi realizate investiţiile.\n\n3.a.1. Actul de proprietate asupra clădirii/ contract de concesiune/ document încheiat la notariat, care să certifice dreptul de folosinţă asupra clădirii pe o perioadă de cel puțin 10 ani incepand cu anul depunerii cererii de finanţare, care să confere titularului inclusiv dreptul de execuție a lucrărilor de construcții, după caz în acord cu precizările din Studiul de Fezabilitate, în conformitate cu prevederile Legii 50/1991 republicată, cu modificările și completările ulterioare, având în vedere tipul de investiţie propusă prin proiect;"]
["3.a.2. Documentul care atestă dreptul real principal asupra terenului/ contract de concesiune/document încheiat la notariat, care să certifice dreptul de folosinţă al terenului pe care se vor realiza investiții ce presupun lucrări de construcții montaj pe o perioadă de cel puțin 10 ani începând cu anul depunerii cererii de finanţare, care să confere titularului inclusiv dreptul de execuție a lucrărilor de construcții, după caz, în acord cu precizările din Studiul de Fezabilitate, în conformitate cu prevederile Legii 50/1991, republicată, cu modificările și completările ulterioare, având în vedere tipul de investiţie propusă prin proiect.\n\nContractul de concesiune va fi însoţit de ADRESA EMISĂ DE CONCEDENT şi trebuie să conţină:\n\n-  situaţia privind respectarea clauzelor contractuale și dacă este cazul respectarea graficului de realizare a investiţiilor prevăzute în contract şi alte clauze;\n-  suprafaţa concesionată la zi (dacă pentru suprafaţa concesionată există solicitări privind retrocedarea sau diminuarea, și dacă da, să se menţioneze care este suprafaţa supusă acestui proces) pentru terenul pe care este amplasată clădirea.\n\nPentru construcțiile cu caracter provizoriu, definite conform Legii nr. 50/1991, cu modificările și completările ulterioare, solicitantul poate prezenta şi un contract de comodat/ locaţiune (închiriere) asupra terenului şi acordul expres al proprietarului de drept."]
["3.a.3. EXTRAS DE CARTE FUNCIARĂ\nsau"]
["DOCUMENT CARE SĂ CERTIFICE CĂ NU AU FOST FINALIZATE LUCRĂRILE DE CADASTRU, pentru cererile de finanţare care vizează lucrări de construcţii. Atenţie! În situaţia în care imobilul pe care se execută investiţia nu este liber de sarcini (gajat pentru un credit), se va depune acordul creditorului privind execuţia investiţiei şi graficul de rambursare a creditului."]
["4. CERTIFICAT DE URBANISM pentru proiecte care prevăd construcţii."]
["5. DOCUMENT EMIS pentru proiect de Agenția Națională de Protecție a Mediului (ANPM)."]
["6.1. DOCUMENTE CARE DOVEDESC CAPACITATEA DE COFINANTARE neafectata de elemente de ajutor public ŞI SURSA DE COFINANŢARE a investiţiei emise de o instituţie financiară (extras de cont si/sau contract de credit) în termenul si conditiile prevazute in Notificarea privind selectarea cererii de finanţare si semnarea contractului de finantare cu AFIR;"]
["6.2. DOCUMENT DE LA BANCĂ/TREZORERIE cu datele de identificare ale acesteia și ale contului aferent proiectului Schema GBER (denumirea, adresa instituției financiare, codul IBAN al contului în care se derulează operațiunile cu AFIR);"]
["7.1 CERTIFICATE CARE SĂ ATESTE LIPSA DATORIILOR RESTANTE FISCALE şi sociale emise de Direcţia Generală a Finanţelor Publice și de primăriile pe raza cărora îşi au sediul social și puncte de lucru (numai în cazul în care solicitantul este proprietar asupra imobilelor) şi, dacă este cazul, graficul de reeşalonare a datoriilor către bugetul consolidat –\nCertificatele trebuie să menționeze clar lipsa datoriilor prin mențiunea „nu are datorii fiscale și sociale sau locale” sau bararea rubricii în care ar trebui să fie\nmenționate.\nSolicitantul va prezenta decizia de rambursare aprobată a sumelor negative solicitate la rambursare prin deconturile de TVA și/ sau alte documente aprobate pentru soluționarea cererilor de restituire, decizie/ documente care au fost aprobate ulterior eliberării certificatului de atestare fiscală, pentru compensarea obligațiilor fiscale de la Sect.A. "]
["7.2 CAZIERUL JUDICIAR si CAZIER FISCAL pentru intreprindere conform prevederilor legale in vigoare in original și CAZIERUL JUDICIAR pentru reprezentantul legal, valabile la data semnarii contractului de finantare."]
["8.1 DOCUMENT EMIS DE DSVSA JUDEŢEANĂ PENTRU PROIECT, conform Protocolului de colaborare dintre AFIR şi ANSVSA publicat pe pagina de internet www.afir.info."]
["8.2 DOCUMENT EMIS DE DSP JUDETEANĂ PENTRU PROIECT, conform Protocolului de colaborare dintre AFIR şi MS publicat pe pagina de internet www.afir.info"]
["9. PENTRU UNITĂȚILE EXISTENTE:"]
["9.1 AUTORIZAŢIE SANITARĂ/ NOTIFICARE de constatare a conformităţii cu legislația sanitară emise cu cel mult un an înaintea depunerii Cererii de finanţare pentru unitățile existente care vizeaza investitii și se autorizează / avizează conform legislației în vigoare."]
["9.2 NOTA DE CONSTATARE PRIVIND CONDIŢIILE DE MEDIU pentru unităţile în funcţiune."]
["10. a) STATUTUL COOPERATIVEI pentru Societăți cooperative (înfiinţate în baza Legii nr. 1/2005) și Cooperative agricole (înfiinţate în baza Legii nr. 566/ 2004) cu modificările și completările ulterioare;"]
["11. Declaratie cu privire la neincadrarea in categoria INTREPRINDERE ÎN DIFICULTATE, semnată de persoana autorizată să reprezinte întreprinderea (conform anexei aferente la ghidul GBER M1/2A). Declaraţia va fi dată de toţi solicitanţii cu excepţia PFA, II, IF şi a societăţilor cu mai puţin de 3 ani fiscali."]
["11.1 Hotararii asociatului unic/AGA din care sa rezulte partea de Profit reportat si partrea de Profit al exercitiului curent care a fost repartizata pentru acoperirea pierderii si /sau majorarea rezervelor (pentru societatile cu raspundere limitata) "]
["12. Declaraţie pe proprie răspundere cu privire la CUMULUL ajutoarelor de stat (inclusiv ajutoarele de minimis)"]
[" 12.1. Declaratie pe proprie raspundere rectificativa privind cumulul ajutoarelor de stat( inclusiv de minimis),in cazul în care, între momentul înregistrării Cererii de finantare şi momentul semnarii Contractului de finantare pe Schema GBER (M1/2A), intreprinderea solicitantă obţine un alt ajutor de minimis sau ajutor de stat, pentru aceleasi costuri eligibile."]
["13. DOCUMENT care să certifice că produsul obținut/se propune a se obtine, se încadrează în categoria produselor alimentare pentru utilizări nutriționale speciale (dacă este cazul)."]
["14. Declaratie pe proprie raspundere privind incadrarea in IMM/intreprindere mare, conform cu Anexa 1 si, daca este cazul, Anexa 2 din Legea 346/2004 cu modificarile si completarile ulterioare si Situatiile financiare ale societatilor partenere/ legate (dacă este cazul)."]
["15. Angajament pe proprie raspundere privind utilizarea cofinanţarii (doc. AFIR adaptat/completat de GAL, disponibil pe pagina web GAL)."]
["16. DECLARATIA PE PROPRIA RASPUNDERE (formular propriu GAL, disponibil pe pagina web GAL)."]
["17. CERTIFICAT CONSTATATOR ONRC"]
["18. ALTE DOCUMENTE JUSTIFICATIVE (se vor specifica după caz) ex.:\n- adresa emisa de INS pe numele solicitantului privind mentionarea explicita a incadrarii produsului finit nonagricol in codul CAEN (daca este cazul) respectiv detaliat la nivel de subclasa/subclasa elementara"]
[]
[]
[]
[]
[]
["F. DECLARAŢIE PE PROPRIA RĂSPUNDERE A SOLICITANTULUI"]
["Prin această declaraţie solicitantul"]
[]
["care solicită asistenţă financiară nerambursabilă prin schema de ajutor de stat GBER (M1/2A)/minimis (dacă este cazul) pentru proiectul intitulat"]
[]
["prin reprezentant legal"]
[]
["cunoscând prevederile legii penale cu privire la falsul în declarații:"]
[null,"1.",null,"Declar că proiectul propus asistenţei financiare nerambursabile schema de ajutor de stat GBER nu beneficiază de altă finanţare din programe de finanţare nerambursabilă."]
[null,null,null,"De asemenea mă angajez că în cazul în care proiectul va fi selectat pentru finanţare, nu voi depune acest proiect la nici un alt program de finanţare nerambursabilă la care proiectul poate fi în întregime sau parţial eligibil pentru asistentă."]
[null,"2.",null,"Declar că îndeplinesc condiţiile de eligibilitate prevăzute în Ghidul Solicitantului şi mă angajez să le respect pe perioada de valabilitate(care include si perioada de monitorizare) a contractului de finanţare, inclusiv criteriile de selecţie pentru care am fost punctat."]
[null,"3.",null,"Declar că toate informaţiile din prezenta cerere de finanţare şi din documentele anexate sunt corecte şi mă angajez să respect condiţiile cerute în reglementările referitoare la prezenta schema de ajutor de stat GBER şi pe cele legate de proiectul anexat şi să furnizez periodic, la cerere, documente justificative necesare."]
[null,"4.",null,"Declar pe propria răspundere că orice modificări aduse dreptului de proprietate sau de folosintă vor fi notificate AFIR în termen de trei zile de la data încheierii lor. De asemenea, mă angajez, că pe perioada de valabilitate a contractului de finanţare (care include şi monitorizarea investiţiei) să nu diminuez suprafaţa şi/sau infrastructura\ncuprinsă în proiect."]
[null,"5.",null,"Declar că eu şi organizaţia mea (asociaţie sau intreprindere) nu suntem într-unul din următoarele cazuri:"]
[null,null,null,"Acuzat din cauza unei greșeli privind conduita profesională având ca soluție finală res judicata (împotriva căreia nici un apel nu este posibil)"]
[null,null,null,"Vinovat de grave deficiențe de conduită profesională dovedite prin orice mijloace pe care Agenția le poate justifica."]
[null,null,null,"Vinovat de faptul că nu am prezentat informaţiile cerute de Autoritatea Contractantă ca o condiţie de participare la licitaţie sau contractare"]
[null,null,null,"Încălcarea prevederilor contractuale prin care nu mi-am îndeplinit obligațiile contractuale în legătură cu un alt contract cu Agenția sau alte contracte finanțate din fonduri comunitare."]
[null,null,null,"Încercarea de a obține informații confidențiale sau de influențare a Agenției în timpul procesului de evaluare a proiectului și nu voi face presiuni la adresa evaluatorului."]
["6.",null,null,null,null,"Declar că organizaţia pe care o reprezint ARE datorii către institutii de credit şi/sau instituţii financiare nebancare pentru care prezint graficul de rambursare"]
[null,null,null,null,null,"Declar că organizaţia pe care o reprezint NU are datorii către instituţii de credit şi/sau instituţii financiare nebancare"]
["7.",null,null,"Declar pe propria răspundere că intreprinderea nu are înscrieri in cazierul fiscal si ma oblig sa-l depun in original, valabil la incheierea contractului de finantare."]
["8.",null,null,"Declar pe propria raspundere că în cazul în care nu respect oricare din punctele prevăzute în această declaraţie proiectul să devină neeligibil în baza criteriului \"Eligibilitatea solicitantului\" sau contractul să fie reziliat"]
["9.",null,null,"Declar pe propria răspundere că:"]
[null,null,null,null,null,"Nu sunt înregistrat în scopuri TVA și că mă angajez să notific Agenției orice modificare a situatiei privind înregistrarea ca plătitor de TVA, în maximum 10 (zece) zile de la data înregistrării în scopuri TVA."]
[null,null,null,null,null,"Sunt înregistrat în scopuri de TVA (certificat de înregistrare fiscală în scopuri de TVA)."]
["10.",null,null,"Declar pe propria raspundere ca nu am inscrieri care privesc sanctiuni economico-financiare in cazierul judiciar al întreprinderii (după caz, conform prevederilor legale) și în cazierul judiciar ca persoană fizică (reprezentantul legal). Prin prezenta imi exprim consimtamantul ca AFIR sa solicite institutiilor abilitate conform legii extrasul de pe cazierul judiciar privind situatia mea."]
["11.",null,null,"Declar pe propria raspundere ca solicitantul nu se află în procedură de executare silită, reorganizare judiciară, faliment, închidere operaţională, dizolvare, lichidare sau administrare specială, nu are activitatea suspendată si nu se afla in alte situaţii similare reglementate de lege."]
["12.",null,null,"Declar pe propria răspundere că nu am fapte înscrise în certificatul de atestare fiscală al întreprinderii. La data depunerii cererii de finanţare nu înregistrază debite la bugetul de stat, respectiv bugetele locale sau debite provenind din neplata contribuţiilor de asigurări sociale, a contribuţiilor de asigurări pentru şomaj, a contribuţiei de asigurare pentru accidente de muncă şi boli profesionale, precum şi a contribuţiilor pentru asigurările sociale de sănătate;"]
["13.",null,null,"Declar pe propria răspundere că:"]
[null,null,null,null,null,"Intreprinderea pe care o reprezint este înregistrată cu debite în Registrul debitorilor AFIR şi mă angajez sa achit integral datoria, inclusiv dobânzile şi majorările de întârziere faţă de AFIR, până la semnarea contractului de finanţare (pentru solicitantii in aceasta situatie)."]
["14.",null,null,"Declar pe propria răspundere că toate cheltuielile neeligibile vor fi suportate de solicitant şi că acestea vor fi realizate până la finalizarea proiectului."]
["15.",null,null,null,null,"Mă angajez că, în urma procesării, voi obține un produs tradițional în conformitate cu legislația națională în vigoare.\nSE VA BIFA DOAR DACA ESTE CAZUL."]
["16.",null,null,null,null,"Mă angajez că, în urma procesării, voi obţine un produs alimentar conform unei reţete consacrate româneşti, în conformitate cu legislaţia naţională în vigoare. SE VA BIFA DOAR DACA ESTE CAZUL."]
[null,"17.",null,null,null,"Declar pe proprie răspundere că mă angajez ca în urma procesării, voi obține un produs care participă la sisteme din domeniul calității recunoscute la nivel european, sau în curs de recunoaştere (după caz). SE VA BIFA DOAR DACA ESTE CAZUL."]
["18.",null,null,"Declar pe propria răspundere că documentele depuse în copie din dosarul cererii de finanţare sunt conforme cu originalul si îmi iau angajamentul ca le voi prezenta în original la momentul contractării, in vederea verificării conformitatii acestora."]
["19.",null,null,"Mă angajez ca in termenul si conditiile prevazute in „Notificărea benficiarului privind selectarea cererii de finanţare şi semnarea contractului de finanţare”, să prezint in vederea incheierii contractului cu AFIR documentul privind dovada cofinanţării private neafectata de elemente de ajutor public aferenta cheltuielilor eligibile a investiției prin extras de cont și/sau contract de credit şi Angajamentul responsabilului legal al proiectului că nu va utiliza în alte scopuri 50% din cofinanţarea privată, în cazul prezentării cofinanţarii prin extras de cont."]
["20.",null,null,"Declar pe propria răspundere că:"]
[null,null,null,null,null,"Nu sunt întreprindere care face subiectul unui ordin de recuperare încă neexecutat în urma unei decizii anterioare a Comisiei sau a unui alt furnizor de ajutor de stat sau de minimis privind declararea unui ajutor ca fiind ilegal şi incompatibil cu piaţa comună."]
[null,null,null,null,null,"Am fost întreprindere care a făcut subiectul unui ordin de recuperare privind declararea unui ajutor ca fiind ilegal şi incompatibil cu piaţa comună pentru care anexez în copii conforme cu originalul decizii privind recuperarea ajutoarelor de stat şi dovezi ale efectuării plăţii."]
["21.",null,null,"Declar pe propria răspundere că:"]
[null,null,null,null,null,"NU am închis aceeaşi activitate sau o activitate similară în Spaţiul Economic European în cei doi ani care au precedat depunerea cererii pentru acordarea de ajutoare regionale de investiţii"]
[null,null,null,null,null,"Am închis aceeaşi activitate sau o activitate similară în Spaţiul Economic European în cei doi ani care au\nprecedat depunerea cererii pentru acordarea de ajutoare regionale de investiţii"]
["22.",null,null,"Declar pe propria răspundere că:"]
[null,null,null,null,null,"În momentul depunerii prezentei cerereri de ajutor, AM planuri concrete de a închide o astfel de activitate într-o perioadă de doi ani după finalizarea investiţiei iniţiale pentru care solicit ajutoare, în zona în cauză"]
[null,null,null,null,null,"În momentul depunerii cererii de ajutor, NU am planuri concrete de a închide o astfel de activitate într-o perioadă de doi ani după finalizarea investiţiei iniţiale pentru care solicit ajutoare, în zona în cauză"]
["23.",null,null,"Activele corporale şi necorporale aferente investiţiei realizate cu sprijin nerambursabil acordat în cadrul prezentei scheme, vor fi incluse în categoria activelor proprii ale beneficiarului, menţinute şi utilizate în exclusivitate în regiunea de dezvoltare beneficiară pentru o perioadă de minim 5 ani de la data efectuării ultimei plăţi. Cunosc că această condiţie nu implică înlocuirea unei instalaţii sau a unui echipament care a devenit depăşit sau a fost distrus în această perioadă, cu condiţia ca activitatea economică să fie menţinută în regiunea în cauză pentru perioada minimă relevantă menţionată"]
["24.",null,null,"Mă angajez ca în maxim 4 luni de la data primirii “Notificarea beneficiarului privind selectarea cererii de finanțare și semnarea contractului de finanțare “ să prezint documentul ANPM pentru proiect. Prin excepţie de la acest termen, în cazul în care proiectul se supune procedurilor de evaluare a impactului asupra mediului și de evaluare adecvată sau doar de evaluare adecvată, ma angajez sa prezint Acordul de mediu/Avizul Natura 2000, în termen de maximum 7 luni de la primirea Notificarii beneficiarului privind selectarea cererii de finantare si semnarea contractului de finanțare”"]
["25.",null,null,"Declar pe propria răspundere că:"]
[null,null,null,null,null,"Intreprinderea face obiectul unei proceduri colective de insolvență sau îndeplinește criteriile prevăzute de legislația națională pentru inițierea unei proceduri colective de insolvență la cererea creditorilor săi."]
[null,null,null,null,null,"Intreprinderea NU face obiectul unei proceduri colective de insolvență sau NU îndeplinește criteriile prevăzute de legislația națională pentru inițierea unei proceduri colective de insolvență la cererea creditorilor săi."]
["26.",null,null,"Declar pe propria răspundere că:\nIntreprinderea nu este in situatiile: a primit ajutor pentru salvare și nu a rambursat încă împrumutul sau nu a încetat garanția sau a primit ajutoare pentru restructurare și face încă obiectul unui plan de restructurare"]
["27.",null,null,"Declar pe propria răspundere că:\nNu sunt in situatia pentru care furnizorul indiferent care este el, trebuie sa dispuna recuperarea ajutoarelor de stat/minimis acordate."]
["28.",null,null,"Sunt de acord ca AFIR si GAL sa publice pe site, să consulte și să prelucreze, prin operațiunile prevăzute de legislația în vigoare în vederea desfășurării activității specifice, datele mele cu caracter personal, furnizate AFIR si GAL, cu respectarea legislaţiei europene şi naţionale privind transparenţa, publicarea datelor cu caracter personal şi prelucrarea acestora."]
[]
["Semnătura reprezentant legal şi ştampila",null,null,null,null,null,null,null,null,null,null,null,null,null,null,null,null,null,null,null,null,null,null,null,null,null,null,null,null,null,null,null,null,null,null,null,null,null,null,null,null," Data:"]
[]
[]
["Anexa INDICATORI DE MONITORIZARE"]
["Sub-masura 19.2 Sprijin pentru implementarea actiunilor in cadrul strategiei de dezvoltare locala"]
["Masura M1/2A Exploatatii agricole si procesare"]
[]
["- Numar de exploatatii agricole/beneficiari sprijiniti:\n\n- Locuri de munca create:\n\n- Cheltuiala publica totala:",null,null,null,null,null,null,null,null,null,null,null,null,null,null,null,null,null,null,null,null,null,null,null,null,null,null,null,null,null,null,null,null,null,null,null,null,null,null,null,null,null,null,null,null,null,null,null,"exploatatii agricole/ \n beneficiari sprijiniti"]
[]
[]
[null,null,null,null,null,null,null,null,null,null,null,null,null,null,null,null,null,null,null,null,null,null,null,null,null,null,null,null,null,null,null,null,null,null,null,null,null,null,null,null,null,null,null,null,null,null,null,null,null,null,"locuri de munca"]
[]
[null,null,null,null,null,null,null,null,null,null,null,null,null,null,null,null,null,null,null,null,null,null,null,null,null,null,null,null,null,null,null,null,null,null,null,null,null,null,null,null,null,null,null,null,null,null,null,null,null,null,"euro"]
[]
[]
["Factori de risc"]
["I1. Valoarea sprijinului public nerambursabil (EURO)",null,null,null,null,null,null,null,null,null,null,null,null,null,null,null,null,null,null,null,null,null,null,null,null,null,null,null,null,null,null,null,null,null,null,null,null,null,null,null,null,null,null,null,null,null,null,null,null,null,null,"Punctaj obţinut"]
["•",null,"proiecte cu valoarea sprijinului nerambursabil între 2 000 001 şi 2 500 000 euro",null,null,null,null,null,null,null,null,null,null,null,null,null,null,null,null,null,null,null,null,null,null,null,null,null,null,null,null,null,null,null,null,null,null,null,null,null,null,null,null,null,null,null,null,null,null,null,null,5]
["•",null,"proiecte cu valoarea sprijinului nerambursabil între 1 500 001 şi 2 000 000 euro",null,null,null,null,null,null,null,null,null,null,null,null,null,null,null,null,null,null,null,null,null,null,null,null,null,null,null,null,null,null,null,null,null,null,null,null,null,null,null,null,null,null,null,null,null,null,null,null,4]
["•",null,"proiecte cu valoarea sprijinului nerambursabil între 1 000 001 şi 1 500 000 euro",null,null,null,null,null,null,null,null,null,null,null,null,null,null,null,null,null,null,null,null,null,null,null,null,null,null,null,null,null,null,null,null,null,null,null,null,null,null,null,null,null,null,null,null,null,null,null,null,3]
[null,"proiecte cu valoarea sprijinului nerambursabil între 500 001 şi 1 000 000 euro",null,null,null,null,null,null,null,null,null,null,null,null,null,null,null,null,null,null,null,null,null,null,null,null,null,null,null,null,null,null,null,null,null,null,null,null,null,null,null,null,null,null,null,null,null,null,null,null,null,2]
["•",null,"proiecte cu valoarea sprijinului nerambursabilde maximum 500 000 euro",null,null,null,null,null,null,null,null,null,null,null,null,null,null,null,null,null,null,null,null,null,null,null,null,null,null,null,null,null,null,null,null,null,null,null,null,null,null,null,null,null,null,null,null,null,null,null,null,1]
[]
["I2. Complexitatea investitiei",null,null,null,null,null,null,null,null,null,null,null,null,null,null,null,null,null,null,null,null,null,null,null,null,null,null,null,null,null,null,null,null,null,null,null,null,null,null,null,null,null,null,null,null,null,null,null,null,null,null,"Punctaj obţinut"]
["•",null,"Investitii initiale pentru infiintarea unei noi unitati de productie;",null,null,null,null,null,null,null,null,null,null,null,null,null,null,null,null,null,null,null,null,null,null,null,null,null,null,null,null,null,null,null,null,null,null,null,null,null,null,null,null,null,null,null,null,null,null,null,null,5]
["•",null,"Investitii initiale cu C si/sau M pentru intreprinderi care nu vizeaza infiintarea unei noi unitati de productie;",null,null,null,null,null,null,null,null,null,null,null,null,null,null,null,null,null,null,null,null,null,null,null,null,null,null,null,null,null,null,null,null,null,null,null,null,null,null,null,null,null,null,null,null,null,null,null,null,4]
["•",null,"Investitii prin achizitii simple (utilaje);",null,null,null,null,null,null,null,null,null,null,null,null,null,null,null,null,null,null,null,null,null,null,null,null,null,null,null,null,null,null,null,null,null,null,null,null,null,null,null,null,null,null,null,null,null,null,null,null,3]
[]
["I3. Intensitatea sprijinului (procent contributie publică)",null,null,null,null,null,null,null,null,null,null,null,null,null,null,null,null,null,null,null,null,null,null,null,null,null,null,null,null,null,null,null,null,null,null,null,null,null,null,null,null,null,null,null,null,null,null,null,null,null,null,"Punctaj obţinut"]
["41% - 50%",null,null,null,null,null,null,null,null,null,null,null,null,null,null,null,null,null,null,null,null,null,null,null,null,null,null,null,null,null,null,null,null,null,null,null,null,null,null,null,null,null,null,null,null,null,null,null,null,null,null,5]
["≤40%",null,null,null,null,null,null,null,null,null,null,null,null,null,null,null,null,null,null,null,null,null,null,null,null,null,null,null,null,null,null,null,null,null,null,null,null,null,null,null,null,null,null,null,null,null,null,null,null,null,null,4]
[]
["I4. Riscul proiectului d.p.d.v. al % raportului între cheltuielile suportate de solicitant şi Valoarea ajutorului nerambursabil ",null,null,null,null,null,null,null,null,null,null,null,null,null,null,null,null,null,null,null,null,null,null,null,null,null,null,null,null,null,null,null,null,null,null,null,null,null,null,null,null,null,null,null,null,null,null,null,null,null,null,"Punctaj obţinut"]
["Cheltuielile suportate de solicitant = Total valoare proiect (fara TVA) – Valoarea\najutorului nerambursabil solicitat."]
["Total valoare proiect(fără TVA) - Valoarea ajutorului nerambursabil solicitat\n% = ------------------------------------------------------------------------------------------------------ x 100\nValoarea ajutorului nerambursabil solicitat"]
["•",null,"> 200%",null,null,null,null,null,null,null,null,null,null,null,null,null,null,null,null,null,null,null,null,null,null,null,null,null,null,null,null,null,null,null,null,null,null,null,null,null,null,null,null,null,null,null,null,null,null,null,null,5]
["•",null,"între 176 si 200%",null,null,null,null,null,null,null,null,null,null,null,null,null,null,null,null,null,null,null,null,null,null,null,null,null,null,null,null,null,null,null,null,null,null,null,null,null,null,null,null,null,null,null,null,null,null,null,null,4]
["•",null,"între 151 si 175%",null,null,null,null,null,null,null,null,null,null,null,null,null,null,null,null,null,null,null,null,null,null,null,null,null,null,null,null,null,null,null,null,null,null,null,null,null,null,null,null,null,null,null,null,null,null,null,null,3]
["•",null,"între 121 si 150%",null,null,null,null,null,null,null,null,null,null,null,null,null,null,null,null,null,null,null,null,null,null,null,null,null,null,null,null,null,null,null,null,null,null,null,null,null,null,null,null,null,null,null,null,null,null,null,null,2]
["•",null," < 120%",null,null,null,null,null,null,null,null,null,null,null,null,null,null,null,null,null,null,null,null,null,null,null,null,null,null,null,null,null,null,null,null,null,null,null,null,null,null,null,null,null,null,null,null,null,null,null,null,1]
[]
["I5. Capacitatea intreprinderii de a manageria proiectul, experienţa în derularea afacerilor",null,null,null,null,null,null,null,null,null,null,null,null,null,null,null,null,null,null,null,null,null,null,null,null,null,null,null,null,null,null,null,null,null,null,null,null,null,null,null,null,null,null,null,null,null,null,null,null,null,null,"Punctaj obţinut"]
["•",null,"Intreprindere nouă sau fără activitate",null,null,null,null,null,null,null,null,null,null,null,null,null,null,null,null,null,null,null,null,null,null,null,null,null,null,null,null,null,null,null,null,null,null,null,null,null,null,null,null,null,null,null,null,null,null,null,null,5]
["•",null,"Intreprindere cu experienta dar care nu a participat la alt proiect comunitar sau nu a obţinut asistenţă financiară nerambursabilă din partea altui instrument financiar",null,null,null,null,null,null,null,null,null,null,null,null,null,null,null,null,null,null,null,null,null,null,null,null,null,null,null,null,null,null,null,null,null,null,null,null,null,null,null,null,null,null,null,null,null,null,null,null,4]
["•",null,"Intreprindere cu experienţă care a finalizat un proiect comunitar sau obţinut din\nasistenţă financiară nerambursabilă din partea altui instrument financiar",null,null,null,null,null,null,null,null,null,null,null,null,null,null,null,null,null,null,null,null,null,null,null,null,null,null,null,null,null,null,null,null,null,null,null,null,null,null,null,null,null,null,null,null,null,null,null,null,2]
["TOTAL*"]
[]
["*Totalul se va calcula ca medie ponderata, aplicand urmatoarea formula: I1*0,3+I2*0,25+I3*0,2+I4*0,15+I5*0,1."]
[]
["Codul unic de inregistrare APIA"]
["In cazul in care nu aveti un cod unic de inregistrare APIA, completati acest formular. Informatiile care exista in sectiunea \"B INFORMATII PRIVIND SOLICITANTUL\" se preiau prin click pe butonul \"Completare automata\"."]
[]
["FORMULAR"]
["de înscriere în Registrul unic de identificare pentru solicitanţii de finanţare prin măsurile\nProgramului naţional de dezvoltare rurală 2014 - 2020"]
[]
["Denumire solicitant:"]
[]
["Categorie Solicitant:"]
[]
["Sediul / Adresa"]
[]
["Ţara",null,null,null,null,"România",null,null,null,null,null,null,null,null,"Judeţul",null,null,null,null,null,null,null,null,null,null,null,null,null,null,null,null,null,null,"oraşul/localitatea"]
[]
["comuna",null,null,null,null,null,null,null,null,null,null,null,null,null,null,null,null,null,null,null,null,"satul",null,null,null,null,null,null,null,null,null,null,null,null,null,null,null,null,null,"strada"]
[]
["nr.",null,null,null,null,null,null,null,"bl.",null,null,null,null,null,"et.",null,null,null,null,"ap.",null,null,null,null,null,"sectorul",null,null,null,null,null,null,null,null,null,null,null,null,"codul poştal"]
[]
["Număr de telefon",null,null,null,null,null,null,null,null,null,null,null,null,null,null,null,null,null,null,null,null,null,null,"Fax",null,null,null,null,null,null,null,null,null,null,null,null,null,null,"E-mail"]
[]
["Număr de înregistrare în registrul comerțului"]
[]
["CUI / CIF"]
[]
["Cod CAEN pentru activitatea principală"]
[]
["Cod CAEN pentru activitatea secundară pentru care se solicită înregistrarea în Registrul unic de identificare"]
[]
["Cod IBAN"]
[]
["deschis la Banca"]
[]
["Sucursala / Agenție"]
[]
["Prin reprezentant legal, doamna/domnul"]
[]
["cu CNP",null,null,null,null,null,null,null,null,null,null,null,null,null,null,"solicit înscrierea în Registrul unic de îdentificare - Agenţia de Plăţi şi Intervenţie pentru Agricultură."]
[]
["Am luat la cunoştinţă că orice modificare a informaţiilor de mai sus trebuie furnizată către APIA în termen de maximum 10 zile\nlucrătoare de la producerea acestora.\nDeclar pe propria răspundere că cele de mai sus sunt conforme cu realitatea.\nSunt de acord ca datele din cerere să fie introduse în baza de date a Sistemului Integrat de Administrare şi Control, procesate şi\nverificate în vederea înscrierii în Registrul unic de identificare şi transmise autorităţilor responsabile în vederea elaborării de studii\nstatistice şi de evaluări economice, în condiţiile Legii nr. 677-2001 pentru protecţia persoanelor cu privire la prelucrarea datelor cu\ncaracter personal şi libera circulaţie a acestor date, cu modificarile şi completările ulterioare."]
[]
["Reprezentant legal",null,null,null,null,null,null,null,null,null,null,null,null,null,null,null,null,null,null,null,null,null,null,null,null,null,null,null,null,null,null,null,null,null,null,null,null,null,null,null,null,null,null,"Data:"]
[]
["Numele şi prenumele"]
[]
["Semnătura "]

{"sheet":"Anexa 1 HG_907","index":1,"n_rows":99,"n_cols":52,"rows_kept":99,"cut":false,"hidden":false,"merged":[[1,7,1,41],[2,7,2,41],[2,42,3,60],[3,7,3,41],[4,7,4,41],[4,42,4,50],[4,51,4,60],[10,0,10,3],[10,4,10,41],[10,42,10,50],[10,51,10,60],[11,0,11,3],[11,4,11,41],[11,42,11,50],[11,51,11,60],[5,7,5,60],[6,0,6,60],[7,0,7,60],[8,0,8,60],[9,0,9,3],[9,4,9,41],[9,42,9,50],[9,51,9,60],[14,0,14,3],[14,4,14,41],[14,42,14,50],[14,51,14,60],[15,0,15,3],[15,4,15,41],[15,42,15,50],[15,51,15,60],[12,0,12,3],[12,4,12,41],[12,42,12,50],[12,51,12,60],[13,0,13,3],[13,4,13,41],[13,42,13,50],[13,51,13,60],[18,0,18,3],[18,4,18,41],[18,42,18,50],[18,51,18,60],[19,0,19,3],[19,4,19,41],[19,42,19,50],[19,51,19,60],[16,0,16,3],[16,4,16,41],[16,42,16,50],[16,51,16,60],[17,0,17,3],[17,4,17,41],[17,42,17,50],[17,51,17,60],[22,0,22,3],[22,4,22,41],[22,42,22,50],[22,51,22,60],[23,0,23,3],[23,4,23,41],[23,42,23,50],[23,51,23,60],[20,0,20,3],[20,4,20,41],[20,42,20,50],[20,51,20,60],[21,0,21,3],[21,4,21,41],[21,42,21,50],[21,51,21,60],[26,0,26,3],[26,4,26,41],[26,42,26,50],[26,51,26,60],[27,0,27,3],[27,4,27,41],[27,42,27,50],[27,51,27,60],[24,0,24,3],[24,4,24,41],[24,42,24,50],[24,51,24,60],[25,0,25,3],[25,4,25,41],[25,42,25,50],[25,51,25,60],[30,0,30,3],[30,4,30,41],[30,42,30,50],[30,51,30,60],[31,0,31,3],[31,4,31,41],[31,42,31,50],[31,51,31,60],[28,0,28,3],[28,4,28,41],[28,42,28,50],[28,51,28,60],[29,0,29,3],[29,4,29,41],[29,42,29,50],[29,51,29,60],[34,0,34,3],[34,4,34,41],[34,42,34,50],[34,51,34,60],[35,0,35,3],[35,4,35,41],[35,42,35,50],[35,51,35,60],[32,0,32,3],[32,4,32,41],[32,42,32,50],[32,51,32,60],[33,0,33,3],[33,4,33,41],[33,42,33,50],[33,51,33,60],[38,0,38,3],[38,4,38,41],[38,42,38,50],[38,51,38,60],[39,0,39,3],[39,4,39,41],[39,42,39,50],[39,51,39,60],[36,0,36,3],[36,4,36,41],[36,42,36,50],[36,51,36,60],[37,0,37,3],[37,4,37,41],[37,42,37,50],[37,51,37,60],[42,0,42,3],[42,4,42,41],[42,42,42,50],[42,51,42,60],[43,0,43,3],[43,4,43,41],[43,42,43,50],[43,51,43,60],[40,0,40,3],[40,4,40,41],[40,42,40,50],[40,51,40,60],[41,0,41,3],[41,4,41,41],[41,42,41,50],[41,51,41,60],[46,0,46,41],[46,42,46,50],[46,51,46,60],[47,0,47,41],[47,42,47,50],[47,51,47,60],[44,0,44,3],[44,4,44,41],[44,42,44,50],[44,51,44,60],[45,0,45,3],[45,4,45,41],[45,42,45,50],[45,51,45,60],[54,7,54,41],[54,42,54,50],[54,51,54,60],[55,7,55,60],[56,0,56,60],[57,0,57,60],[48,0,48,41],[48,42,48,60],[51,7,51,41],[52,7,52,41],[52,42,53,60],[53,7,53,41],[61,0,61,3],[61,4,61,41],[61,42,61,50],[61,51,61,60],[62,0,62,3],[62,4,62,41],[62,42,62,50],[62,51,62,60],[58,0,58,60],[59,0,59,3],[59,4,59,41],[59,42,59,50],[59,51,59,60],[60,0,60,3],[60,4,60,41],[60,42,60,50],[60,51,60,60],[65,0,65,3],[65,4,65,41],[65,42,65,50],[65,51,65,60],[66,0,66,3],[66,4,66,41],[66,42,66,50],[66,51,66,60],[63,0,63,3],[63,4,63,41],[63,42,63,50],[63,51,63,60],[64,0,64,3],[64,4,64,41],[64,42,64,50],[64,51,64,60],[69,0,69,3],[69,4,69,41],[69,42,69,50],[69,51,69,60],[70,0,70,3],[70,4,70,41],[70,42,70,50],[70,51,70,60],[67,0,67,3],[67,4,67,41],[67,42,67,50],[67,51,67,60],[68,0,68,3],[68,4,68,41],[68,42,68,50],[68,51,68,60],[73,0,73,3],[73,4,73,41],[73,42,73,50],[73,51,73,60],[74,0,74,3],[74,4,74,41],[74,42,74,50],[74,51,74,60],[71,0,71,3],[71,4,71,41],[71,42,71,50],[71,51,71,60],[72,0,72,3],[72,4,72,41],[72,42,72,50],[72,51,72,60],[77,0,77,3],[77,4,77,41],[77,42,77,50],[77,51,77,60],[78,0,78,3],[78,4,78,41],[78,42,78,50],[78,51,78,60],[75,0,75,3],[75,4,75,41],[75,42,75,50],[75,51,75,60],[76,0,76,3],[76,4,76,41],[76,42,76,50],[76,51,76,60],[81,0,81,3],[81,4,81,41],[81,42,81,50],[81,51,81,60],[82,0,82,3],[82,4,82,41],[82,42,82,50],[82,51,82,60],[79,0,79,3],[79,4,79,41],[79,42,79,50],[79,51,79,60],[80,0,80,3],[80,4,80,41],[80,42,80,50],[80,51,80,60],[85,0,85,3],[85,4,85,41],[85,42,85,50],[85,51,85,60],[86,0,86,3],[86,4,86,41],[86,42,86,50],[86,51,86,60],[83,0,83,3],[83,4,83,41],[83,42,83,50],[83,51,83,60],[84,0,84,3],[84,4,84,41],[84,42,84,50],[84,51,84,60],[89,0,89,3],[89,4,89,41],[89,42,89,50],[89,51,89,60],[90,0,90,3],[90,4,90,41],[90,42,90,50],[90,51,90,60],[87,0,87,3],[87,4,87,41],[87,42,87,50],[87,51,87,60],[88,0,88,3],[88,4,88,41],[88,42,88,50],[88,51,88,60],[93,0,93,3],[93,4,93,41],[93,42,93,50],[93,51,93,60],[94,0,94,3],[94,4,94,41],[94,42,94,50],[94,51,94,60],[91,0,91,3],[91,4,91,41],[91,42,91,50],[91,51,91,60],[92,0,92,3],[92,4,92,41],[92,42,92,50],[92,51,92,60],[97,0,97,41],[97,42,97,50],[97,51,97,60],[98,0,98,41],[98,42,98,60],[95,0,95,3],[95,4,95,41],[95,42,95,50],[95,51,95,60],[96,0,96,41],[96,42,96,50],[96,51,96,60]]}
[]
[null,null,null,null,null,null,null,"MINISTERUL AGRICULTURII ŞI DEZVOLTĂRII RURALE"]
[null,null,null,null,null,null,null,null,null,null,null,null,null,null,null,null,null,null,null,null,null,null,null,null,null,null,null,null,null,null,null,null,null,null,null,null,null,null,null,null,null,null,"Anexa A1 HG_907 / 2016"]
[null,null,null,null,null,null,null,"AGENŢIA PENTRU FINANŢAREA INVESTIŢIILOR RURALE"]
[null,null,null,null,null,null,null,null,null,null,null,null,null,null,null,null,null,null,null,null,null,null,null,null,null,null,null,null,null,null,null,null,null,null,null,null,null,null,null,null,null,null,null,null,null,null,null,null,null,null,null,"Nr.2"]
[null,null,null,null,null,null,null,"Deviz financiar- Capitolul 3 - Cheltuieli pentru proiectare şi asistenţa tehnică - EURO"]
[]
[]
["(Titlu deviz)"]
["Nr.crt",null,null,null,"Specificaţie",null,null,null,null,null,null,null,null,null,null,null,null,null,null,null,null,null,null,null,null,null,null,null,null,null,null,null,null,null,null,null,null,null,null,null,null,null,"Valoare eligibilă",null,null,null,null,null,null,null,null,"Valoare\nneeligibilă"]
["3.1",null,null,null,"Cheltuieli pentru studii - total din care:",null,null,null,null,null,null,null,null,null,null,null,null,null,null,null,null,null,null,null,null,null,null,null,null,null,null,null,null,null,null,null,null,null,null,null,null,null,null,null,null,null,null,null,null,null,null,{"$f":"SUM(AZ12:BI14)","v":0}]
[null,null,null,null,"3.1.1 Studii de teren: studii geotehnice, geologice, hidrologice, hidrogeotehnice, fotogrammetrice, topografica şi de stabilitate ale terenului pe care se amplasează obiectivul de investiţie"]
[null,null,null,null,"3.1.2 Raport privind impactul asupra mediului"]
[null,null,null,null,"3.1.3 Studii de specialitate necesare în funcţie de specificul investiţiei"]
["3.2",null,null,null,"Documentaţii-suport şi cheltuieli pentru obţinerea de avize, acorduri şi autorizaţii",null,null,null,null,null,null,null,null,null,null,null,null,null,null,null,null,null,null,null,null,null,null,null,null,null,null,null,null,null,null,null,null,null,null,null,null,null,null,null,null,null,null,null,null,null,null,{"$f":"SUM(AZ16:BI24)","v":0}]
[null,null,null,null,"1. obţinerea/prelungirea valabilităţii certificatului de urbanism"]
[null,null,null,null,"2. obţinerea/prelungirea valabilităţii autorizaţiei de construire/desfiinţare"]
[null,null,null,null,"3. obţinerea avizelor şi acordurilor pentru racorduri şi branşamente la reţele publice de alimentare cu apă, canalizare, alimentare cu gaze, alimentare cu agent termic, energie electrică, telefonie"]
[null,null,null,null,"4. obţinerea certificatului de nomenclatură stradală şi adresă"]
[null,null,null,null,"5. întocmirea documentaţiei, obţinerea numărului cadastral provizoriu şi înregistrarea terenului în cartea funciară"]
[null,null,null,null,"6. obţinerea actului administrativ al autorităţii competente pentru protecţia mediului"]
[null,null,null,null,"7. obţinerea avizului de protecţie civilă"]
[null,null,null,null,"8. avizul de specialitate în cazul obiectivelor de patrimoniu"]
[null,null,null,null,"9. alte avize, acorduri şi autorizaţii"]
["3.3",null,null,null,"Cheltuieli pentru expertizarea tehnică a construcţiilor existente, a structurilor şi/sau, după caz, a proiectelor tehnice, inclusiv întocmirea de către expertul tehnic a raportului de expertiză tehnică"]
["3.4",null,null,null,"Cheltuieli pentru certificarea performanţei energetice şi auditul energetic al clădirilor"]
["3.5",null,null,null,"Cheltuieli pentru proiectare",null,null,null,null,null,null,null,null,null,null,null,null,null,null,null,null,null,null,null,null,null,null,null,null,null,null,null,null,null,null,null,null,null,null,null,null,null,null,null,null,null,null,null,null,null,null,{"$f":"SUM(AZ28:BI33)","v":0}]
[null,null,null,null,"3.5.1 Temă de proiectare"]
[null,null,null,null,"3.5.2 Studiu de prefezabilitate"]
[null,null,null,null,"3.5.3 Studiu de fezabilitate/documentaţie de avizare a lucrărilor de intervenţii şi deviz general"]
[null,null,null,null,"3.5.4 Documentaţiile tehnice necesare în vederea obţinerii avizelor/acordurilor/autorizaţiilor"]
[null,null,null,null,"3.5.5 Verificarea tehnică de calitate a proiectului tehnic şi a detaliilor de execuţie"]
[null,null,null,null,"3.5.6 Proiect tehnic şi detalii de execuţie"]
["3.6",null,null,null,"Cheltuieli aferente organizării şi derulării procedurilor de achiziţii publice",null,null,null,null,null,null,null,null,null,null,null,null,null,null,null,null,null,null,null,null,null,null,null,null,null,null,null,null,null,null,null,null,null,null,null,null,null,null,null,null,null,null,null,null,null,null,{"$f":"SUM(AZ35:BI38)","v":0}]
[null,null,null,null,"1. Cheltuieli aferente întocmirii documentaţiei de atribuire şi multiplicării acesteia (exclusiv cele cumpărate de ofertanţi)"]
[null,null,null,null,"2. Cheltuieli cu onorariile, transportul, cazarea şi diurna membrilor desemnaţi în comisiile de evaluare"]
[null,null,null,null,"3. Anunţuri de intenţie, de participare şi de atribuire a contractelor, corespondenţă prin poştă, fax, poştă electronică în legătură cu procedurile de achiziţie publică"]
[null,null,null,null,"4. Cheltuieli aferente organizării şi derulării procedurilor de achiziţii publice"]
["3.7",null,null,null,"Cheltuieli pentru consultanţă",null,null,null,null,null,null,null,null,null,null,null,null,null,null,null,null,null,null,null,null,null,null,null,null,null,null,null,null,null,null,null,null,null,null,null,null,null,null,null,null,null,null,null,null,null,null,{"$f":"SUM(AZ40:BI41)","v":0}]
[null,null,null,null,"3.7.1 Managementul de proiect pentru obiectivul de investiţii"]
[null,null,null,null,"3.7.2 Auditul financiar"]
["3.8",null,null,null,"Cheltuieli pentru asistenţă tehnică",null,null,null,null,null,null,null,null,null,null,null,null,null,null,null,null,null,null,null,null,null,null,null,null,null,null,null,null,null,null,null,null,null,null,null,null,null,null,null,null,null,null,null,null,null,null,{"$f":"AZ43+AZ46","v":0}]
[null,null,null,null,"3.8.1. Asistenţă tehnică din partea proiectantului",null,null,null,null,null,null,null,null,null,null,null,null,null,null,null,null,null,null,null,null,null,null,null,null,null,null,null,null,null,null,null,null,null,null,null,null,null,null,null,null,null,null,null,null,null,null,{"$f":"SUM(AZ44:BI45)","v":0}]
[null,null,null,null,"1.1. pe perioada de execuţie a lucrărilor"]
[null,null,null,null,"1.2. pentru participarea proiectantului la fazele incluse în programul de control al lucrărilor de execuţie, avizat de către Inspectoratul de Stat în Construcţii"]
[null,null,null,null,"3.8.2 Dirigenţie de şantier, asigurată de personal tehnic de specialitate, autorizat"]
["Total valoare fără TVA",null,null,null,null,null,null,null,null,null,null,null,null,null,null,null,null,null,null,null,null,null,null,null,null,null,null,null,null,null,null,null,null,null,null,null,null,null,null,null,null,null,null,null,null,null,null,null,null,null,null,{"$f":"AZ42+AZ39+AZ34+AZ27+AZ26+AZ25+AZ15+AZ11","v":0}]
["Valoare TVA (aferentă cheltuielilor eligibile şi neeligibile)"]
["TOTAL DEVIZ FINANCIAR 1 (inclusiv TVA)",null,null,null,null,null,null,null,null,null,null,null,null,null,null,null,null,null,null,null,null,null,null,null,null,null,null,null,null,null,null,null,null,null,null,null,null,null,null,null,null,null,{"$f":"AQ47+AZ47+AQ48+AZ48","v":0}]
[]
[]
[null,null,null,null,null,null,null,"MINISTERUL AGRICULTURII ŞI DEZVOLTĂRII RURALE"]
[null,null,null,null,null,null,null,null,null,null,null,null,null,null,null,null,null,null,null,null,null,null,null,null,null,null,null,null,null,null,null,null,null,null,null,null,null,null,null,null,null,null,"Anexa A1 HG_907 / 2016"]
[null,null,null,null,null,null,null,"AGENŢIA PENTRU FINANŢAREA INVESTIŢIILOR RURALE"]
[null,null,null,null,null,null,null,null,null,null,null,null,null,null,null,null,null,null,null,null,null,null,null,null,null,null,null,null,null,null,null,null,null,null,null,null,null,null,null,null,null,null,null,null,null,null,null,null,null,null,null,"Nr.3"]
[null,null,null,null,null,null,null,"Deviz financiar- Capitolul 3 - Cheltuieli pentru proiectare şi asistenţa tehnică - EURO"]
[]
[]
["(Titlu deviz)"]
["Nr.crt",null,null,null,"Specificaţie",null,null,null,null,null,null,null,null,null,null,null,null,null,null,null,null,null,null,null,null,null,null,null,null,null,null,null,null,null,null,null,null,null,null,null,null,null,"Valoare eligibilă",null,null,null,null,null,null,null,null,"Valoare\nneeligibilă"]
["3.1",null,null,null,"Cheltuieli pentru studii - total din care:",null,null,null,null,null,null,null,null,null,null,null,null,null,null,null,null,null,null,null,null,null,null,null,null,null,null,null,null,null,null,null,null,null,null,null,null,null,null,null,null,null,null,null,null,null,null,{"$f":"SUM(AZ62:BI64)","v":0}]
[null,null,null,null,"3.1.1 Studii de teren: studii geotehnice, geologice, hidrologice, hidrogeotehnice, fotogrammetrice, topografica şi de stabilitate ale terenului pe care se amplasează obiectivul de investiţie"]
[null,null,null,null,"3.1.2 Raport privind impactul asupra mediului"]
[null,null,null,null,"3.1.3 Studii de specialitate necesare în funcţie de specificul investiţiei"]
["3.2",null,null,null,"Documentaţii-suport şi cheltuieli pentru obţinerea de avize, acorduri şi autorizaţii",null,null,null,null,null,null,null,null,null,null,null,null,null,null,null,null,null,null,null,null,null,null,null,null,null,null,null,null,null,null,null,null,null,null,null,null,null,null,null,null,null,null,null,null,null,null,{"$f":"SUM(AZ66:BI74)","v":0}]
[null,null,null,null,"1. obţinerea/prelungirea valabilităţii certificatului de urbanism"]
[null,null,null,null,"2. obţinerea/prelungirea valabilităţii autorizaţiei de construire/desfiinţare"]
[null,null,null,null,"3. obţinerea avizelor şi acordurilor pentru racorduri şi branşamente la reţele publice de alimentare cu apă, canalizare, alimentare cu gaze, alimentare cu agent termic, energie electrică, telefonie"]
[null,null,null,null,"4. obţinerea certificatului de nomenclatură stradală şi adresă"]
[null,null,null,null,"5. întocmirea documentaţiei, obţinerea numărului cadastral provizoriu şi înregistrarea terenului în cartea funciară"]
[null,null,null,null,"6. obţinerea actului administrativ al autorităţii competente pentru protecţia mediului"]
[null,null,null,null,"7. obţinerea avizului de protecţie civilă"]
[null,null,null,null,"8. avizul de specialitate în cazul obiectivelor de patrimoniu"]
[null,null,null,null,"9. alte avize, acorduri şi autorizaţii"]
["3.3",null,null,null,"Cheltuieli pentru expertizarea tehnică a construcţiilor existente, a structurilor şi/sau, după caz, a proiectelor tehnice, inclusiv întocmirea de către expertul tehnic a raportului de expertiză tehnică"]
["3.4",null,null,null,"Cheltuieli pentru certificarea performanţei energetice şi auditul energetic al clădirilor"]
["3.5",null,null,null,"Cheltuieli pentru proiectare",null,null,null,null,null,null,null,null,null,null,null,null,null,null,null,null,null,null,null,null,null,null,null,null,null,null,null,null,null,null,null,null,null,null,null,null,null,null,null,null,null,null,null,null,null,null,{"$f":"SUM(AZ78:BI83)","v":0}]
[null,null,null,null,"3.5.1 Temă de proiectare"]
[null,null,null,null,"3.5.2 Studiu de prefezabilitate"]
[null,null,null,null,"3.5.3 Studiu de fezabilitate/documentaţie de avizare a lucrărilor de intervenţii şi deviz general"]
[null,null,null,null,"3.5.4 Documentaţiile tehnice necesare în vederea obţinerii avizelor/acordurilor/autorizaţiilor"]
[null,null,null,null,"3.5.5 Verificarea tehnică de calitate a proiectului tehnic şi a detaliilor de execuţie"]
[null,null,null,null,"3.5.6 Proiect tehnic şi detalii de execuţie"]
["3.6",null,null,null,"Cheltuieli aferente organizării şi derulării procedurilor de achiziţii publice",null,null,null,null,null,null,null,null,null,null,null,null,null,null,null,null,null,null,null,null,null,null,null,null,null,null,null,null,null,null,null,null,null,null,null,null,null,null,null,null,null,null,null,null,null,null,{"$f":"SUM(AZ85:BI88)","v":0}]
[null,null,null,null,"1. Cheltuieli aferente întocmirii documentaţiei de atribuire şi multiplicării acesteia (exclusiv cele cumpărate de ofertanţi)"]
[null,null,null,null,"2. Cheltuieli cu onorariile, transportul, cazarea şi diurna membrilor desemnaţi în comisiile de evaluare"]
[null,null,null,null,"3. Anunţuri de intenţie, de participare şi de atribuire a contractelor, corespondenţă prin poştă, fax, poştă electronică în legătură cu procedurile de achiziţie publică"]
[null,null,null,null,"4. Cheltuieli aferente organizării şi derulării procedurilor de achiziţii publice"]
["3.7",null,null,null,"Cheltuieli pentru consultanţă",null,null,null,null,null,null,null,null,null,null,null,null,null,null,null,null,null,null,null,null,null,null,null,null,null,null,null,null,null,null,null,null,null,null,null,null,null,null,null,null,null,null,null,null,null,null,{"$f":"SUM(AZ90:BI91)","v":0}]
[null,null,null,null,"3.7.1 Managementul de proiect pentru obiectivul de investiţii"]
[null,null,null,null,"3.7.2 Auditul financiar"]
["3.8",null,null,null,"Cheltuieli pentru asistenţă tehnică",null,null,null,null,null,null,null,null,null,null,null,null,null,null,null,null,null,null,null,null,null,null,null,null,null,null,null,null,null,null,null,null,null,null,null,null,null,null,null,null,null,null,null,null,null,null,{"$f":"AZ93+AZ96","v":0}]
[null,null,null,null,"3.8.1. Asistenţă tehnică din partea proiectantului",null,null,null,null,null,null,null,null,null,null,null,null,null,null,null,null,null,null,null,null,null,null,null,null,null,null,null,null,null,null,null,null,null,null,null,null,null,null,null,null,null,null,null,null,null,null,{"$f":"SUM(AZ94:BI95)","v":0}]
[null,null,null,null,"1.1. pe perioada de execuţie a lucrărilor"]
[null,null,null,null,"1.2. pentru participarea proiectantului la fazele incluse în programul de control al lucrărilor de execuţie, avizat de către Inspectoratul de Stat în Construcţii"]
[null,null,null,null,"3.8.2 Dirigenţie de şantier, asigurată de personal tehnic de specialitate, autorizat"]
["Total valoare fără TVA",null,null,null,null,null,null,null,null,null,null,null,null,null,null,null,null,null,null,null,null,null,null,null,null,null,null,null,null,null,null,null,null,null,null,null,null,null,null,null,null,null,null,null,null,null,null,null,null,null,null,{"$f":"AZ92+AZ89+AZ84+AZ77+AZ76+AZ75+AZ65+AZ61","v":0}]
["Valoare TVA (aferentă cheltuielilor eligibile şi neeligibile)"]
["TOTAL DEVIZ FINANCIAR 1 (inclusiv TVA)",null,null,null,null,null,null,null,null,null,null,null,null,null,null,null,null,null,null,null,null,null,null,null,null,null,null,null,null,null,null,null,null,null,null,null,null,null,null,null,null,null,{"$f":"AQ97+AZ97+AQ98+AZ98","v":0}]

{"sheet":"Anexa 2 HG_907","index":2,"n_rows":59,"n_cols":52,"rows_kept":59,"cut":false,"hidden":false,"merged":[[4,7,4,60],[5,0,5,60],[6,0,6,60],[7,0,7,60],[8,0,8,3],[8,4,8,41],[8,42,8,60],[0,7,0,41],[1,7,1,41],[1,42,2,60],[2,7,2,41],[3,7,3,41],[3,42,3,50],[3,51,3,60],[11,0,11,3],[11,4,11,41],[11,42,11,50],[11,51,11,60],[12,0,12,3],[12,4,12,41],[12,42,12,50],[12,51,12,60],[9,0,9,41],[9,42,9,50],[9,51,9,60],[10,0,10,41],[10,42,10,50],[10,51,10,60],[15,0,15,3],[15,4,15,41],[15,42,15,50],[15,51,15,60],[16,0,16,3],[16,4,16,41],[16,42,16,50],[16,51,16,60],[13,0,13,3],[13,4,13,41],[13,42,13,50],[13,51,13,60],[14,0,14,3],[14,4,14,41],[14,42,14,50],[14,51,14,60],[17,0,17,60],[18,0,18,3],[18,4,18,41],[18,42,18,50],[18,51,18,60],[19,0,19,3],[19,4,19,41],[19,42,19,50],[19,51,19,60],[23,0,23,3],[23,4,23,41],[23,42,23,50],[23,51,23,60],[24,0,24,3],[24,4,24,41],[24,42,24,50],[24,51,24,60],[20,0,20,60],[21,0,21,3],[21,4,21,41],[21,42,21,50],[21,51,21,60],[22,0,22,3],[22,4,22,41],[22,42,22,50],[22,51,22,60],[27,0,27,41],[27,42,27,50],[27,51,27,60],[28,0,28,41],[28,42,28,60],[29,0,29,41],[25,0,25,3],[25,4,25,41],[25,42,25,50],[25,51,25,60],[26,0,26,41],[26,42,26,50],[26,51,26,60],[34,7,34,60],[35,0,35,60],[36,0,36,60],[37,0,37,60],[38,0,38,3],[38,4,38,41],[38,42,38,60],[30,7,30,41],[31,7,31,41],[31,42,32,60],[32,7,32,41],[33,7,33,41],[33,42,33,50],[33,51,33,60],[41,0,41,3],[41,4,41,41],[41,42,41,50],[41,51,41,60],[42,0,42,3],[42,4,42,41],[42,42,42,50],[42,51,42,60],[39,0,39,41],[39,42,39,50],[39,51,39,60],[40,0,40,41],[40,42,40,50],[40,51,40,60],[45,0,45,3],[45,4,45,41],[45,42,45,50],[45,51,45,60],[46,0,46,3],[46,4,46,41],[46,42,46,50],[46,51,46,60],[43,0,43,3],[43,4,43,41],[43,42,43,50],[43,51,43,60],[44,0,44,3],[44,4,44,41],[44,42,44,50],[44,51,44,60],[47,0,47,60],[48,0,48,3],[48,4,48,41],[48,42,48,50],[48,51,48,60],[49,0,49,3],[49,4,49,41],[49,42,49,50],[49,51,49,60],[53,0,53,3],[53,4,53,41],[53,42,53,50],[53,51,53,60],[54,0,54,3],[54,4,54,41],[54,42,54,50],[54,51,54,60],[50,0,50,60],[51,0,51,3],[51,4,51,41],[51,42,51,50],[51,51,51,60],[52,0,52,3],[52,4,52,41],[52,42,52,50],[52,51,52,60],[57,0,57,41],[57,42,57,50],[57,51,57,60],[58,0,58,41],[58,42,58,60],[55,0,55,3],[55,4,55,41],[55,42,55,50],[55,51,55,60],[56,0,56,41],[56,42,56,50],[56,51,56,60]]}
[null,null,null,null,null,null,null,"MINISTERUL AGRICULTURII ŞI DEZVOLTĂRII RURALE"]
[null,null,null,null,null,null,null,null,null,null,null,null,null,null,null,null,null,null,null,null,null,null,null,null,null,null,null,null,null,null,null,null,null,null,null,null,null,null,null,null,null,null,"Anexa A2 - HG907/2016"]
[null,null,null,null,null,null,null,"AGENŢIA PENTRU FINANŢAREA INVESTIŢIILOR RURALE"]
[null,null,null,null,null,null,null,null,null,null,null,null,null,null,null,null,null,null,null,null,null,null,null,null,null,null,null,null,null,null,null,null,null,null,null,null,null,null,null,null,null,null,null,null,null,null,null,null,null,null,null,"Nr.2"]
[null,null,null,null,null,null,null,"DEVIZ PE OBIECT *"]
[]
[" "]
["(Descriere obiect de construcţie)"]
["Nr. crt.",null,null,null,"Denumire",null,null,null,null,null,null,null,null,null,null,null,null,null,null,null,null,null,null,null,null,null,null,null,null,null,null,null,null,null,null,null,null,null,null,null,null,null,"Valoarea pe categorii de lucrări, fară TVA - EURO"]
[null,null,null,null,null,null,null,null,null,null,null,null,null,null,null,null,null,null,null,null,null,null,null,null,null,null,null,null,null,null,null,null,null,null,null,null,null,null,null,null,null,null,"Valoare eligibilă",null,null,null,null,null,null,null,null,"Valoare\nneeligibilă"]
["I - LUCRĂRI DE CONSTRUCŢII ŞI INSTALAŢII"]
["4.1",null,null,null,"Construcţii şi instalaţii",null,null,null,null,null,null,null,null,null,null,null,null,null,null,null,null,null,null,null,null,null,null,null,null,null,null,null,null,null,null,null,null,null,null,null,null,null,{"$f":"SUM(AQ13:AY16)","v":0},null,null,null,null,null,null,null,null,{"$f":"SUM(AZ13:BI16)","v":0}]
[null,null,null,null,"  4.1.1 Terasamente, sistematizare pe verticală şi amenajări exterioare"]
[null,null,null,null,"  4.1.2 Rezistenţă"]
[null,null,null,null,"  4.1.3 Arhitectură"]
[null,null,null,null,"  4.1.4 Instalaţii"]
[null,null,null,null,"TOTAL I ( fără TVA)",null,null,null,null,null,null,null,null,null,null,null,null,null,null,null,null,null,null,null,null,null,null,null,null,null,null,null,null,null,null,null,null,null,null,null,null,null,{"$f":"AQ12","v":0},null,null,null,null,null,null,null,null,{"$f":"AZ12","v":0}]
["II - MONTAJ"]
["4.2",null,null,null,"Montaj utilaje, echipamente tehnologice şi funcţionale"]
[null,null,null,null,"TOTAL II ( fără TVA)",null,null,null,null,null,null,null,null,null,null,null,null,null,null,null,null,null,null,null,null,null,null,null,null,null,null,null,null,null,null,null,null,null,null,null,null,null,{"$f":"SUM(AQ19)","v":0},null,null,null,null,null,null,null,null,{"$f":"SUM(AZ19)","v":0}]
["III - PROCURARE"]
["4.3",null,null,null,"Utilaje, echipamente tehnologice şi funcţionale care necesită montaj",null,null,null,null,null,null,null,null,null,null,null,null,null,null,null,null,null,null,null,null,null,null,null,null,null,null,null,null,null,null,null,null,null,null,null,null,null," ",null,null,null,null,null,null,null,null," "]
["4.4",null,null,null," Utilaje, echipamente tehnologice şi funcţionale care nu necesită montaj şi echipamente de transport",null,null,null,null,null,null,null,null,null,null,null,null,null,null,null,null,null,null,null,null,null,null,null,null,null,null,null,null,null,null,null,null,null,null,null,null,null," ",null,null,null,null,null,null,null,null," "]
["4.5",null,null,null,"Dotări"]
["4.6",null,null,null,"Active necorporale"]
[null,null,null,null,"TOTAL III ( fără TVA)",null,null,null,null,null,null,null,null,null,null,null,null,null,null,null,null,null,null,null,null,null,null,null,null,null,null,null,null,null,null,null,null,null,null,null,null,null,{"$f":"SUM(AQ22:AY25)","v":0},null,null,null,null,null,null,null,null,{"$f":"SUM(AZ22:BI25)","v":0}]
["TOTAL ( TOTAL I + TOTAL II +TOTAL III) fără TVA",null,null,null,null,null,null,null,null,null,null,null,null,null,null,null,null,null,null,null,null,null,null,null,null,null,null,null,null,null,null,null,null,null,null,null,null,null,null,null,null,null,{"$f":"AQ26+AQ20+AQ17","v":0},null,null,null,null,null,null,null,null,{"$f":"AZ26+AZ20+AZ17","v":0}]
["TVA aferent cheltuielilor eligibile şi neeligibile"]
["TOTAL DEVIZ PE OBIECT (inclusiv TVA)",null,null,null,null,null,null,null,null,null,null,null,null,null,null,null,null,null,null,null,null,null,null,null,null,null,null,null,null,null,null,null,null,null,null,null,null,null,null,null,null,null,{"$f":"AQ27+AZ27+AQ28+AZ28","v":0}]
[]
[null,null,null,null,null,null,null,"MINISTERUL AGRICULTURII ŞI DEZVOLTĂRII RURALE"]
[null,null,null,null,null,null,null,null,null,null,null,null,null,null,null,null,null,null,null,null,null,null,null,null,null,null,null,null,null,null,null,null,null,null,null,null,null,null,null,null,null,null,"Anexa A2 - HG907/2016"]
[null,null,null,null,null,null,null,"AGENŢIA PENTRU FINANŢAREA INVESTIŢIILOR RURALE"]
[null,null,null,null,null,null,null,null,null,null,null,null,null,null,null,null,null,null,null,null,null,null,null,null,null,null,null,null,null,null,null,null,null,null,null,null,null,null,null,null,null,null,null,null,null,null,null,null,null,null,null,"Nr.3"]
[null,null,null,null,null,null,null,"DEVIZ PE OBIECT *"]
[]
[" "]
["(Descriere obiect de construcţie)"]
["Nr. crt.",null,null,null,"Denumire",null,null,null,null,null,null,null,null,null,null,null,null,null,null,null,null,null,null,null,null,null,null,null,null,null,null,null,null,null,null,null,null,null,null,null,null,null,"Valoarea pe categorii de lucrări, fară TVA - EURO"]
[null,null,null,null,null,null,null,null,null,null,null,null,null,null,null,null,null,null,null,null,null,null,null,null,null,null,null,null,null,null,null,null,null,null,null,null,null,null,null,null,null,null,"Valoare eligibilă",null,null,null,null,null,null,null,null,"Valoare\nneeligibilă"]
["I - LUCRĂRI DE CONSTRUCŢII ŞI INSTALAŢII"]
["4.1",null,null,null,"Construcţii şi instalaţii",null,null,null,null,null,null,null,null,null,null,null,null,null,null,null,null,null,null,null,null,null,null,null,null,null,null,null,null,null,null,null,null,null,null,null,null,null,{"$f":"SUM(AQ43:AY46)","v":0},null,null,null,null,null,null,null,null,{"$f":"SUM(AZ43:BI46)","v":0}]
[null,null,null,null,"  4.1.1 Terasamente, sistematizare pe verticală şi amenajări exterioare"]
[null,null,null,null,"  4.1.2 Rezistenţă"]
[null,null,null,null,"  4.1.3 Arhitectură"]
[null,null,null,null,"  4.1.4 Instalaţii"]
[null,null,null,null,"TOTAL I ( fără TVA)",null,null,null,null,null,null,null,null,null,null,null,null,null,null,null,null,null,null,null,null,null,null,null,null,null,null,null,null,null,null,null,null,null,null,null,null,null,{"$f":"AQ42","v":0},null,null,null,null,null,null,null,null,{"$f":"AZ42","v":0}]
["II - MONTAJ"]
["4.2",null,null,null,"Montaj utilaje, echipamente tehnologice şi funcţionale"]
[null,null,null,null,"TOTAL II ( fără TVA)",null,null,null,null,null,null,null,null,null,null,null,null,null,null,null,null,null,null,null,null,null,null,null,null,null,null,null,null,null,null,null,null,null,null,null,null,null,{"$f":"SUM(AQ49)","v":0},null,null,null,null,null,null,null,null,{"$f":"SUM(AZ49)","v":0}]
["III - PROCURARE"]
["4.3",null,null,null,"Utilaje, echipamente tehnologice şi funcţionale care necesită montaj",null,null,null,null,null,null,null,null,null,null,null,null,null,null,null,null,null,null,null,null,null,null,null,null,null,null,null,null,null,null,null,null,null,null,null,null,null," ",null,null,null,null,null,null,null,null," "]
["4.4",null,null,null," Utilaje, echipamente tehnologice şi funcţionale care nu necesită montaj şi echipamente de transport",null,null,null,null,null,null,null,null,null,null,null,null,null,null,null,null,null,null,null,null,null,null,null,null,null,null,null,null,null,null,null,null,null,null,null,null,null," ",null,null,null,null,null,null,null,null," "]
["4.5",null,null,null,"Dotări"]
["4.6",null,null,null,"Active necorporale"]
[null,null,null,null,"TOTAL III ( fără TVA)",null,null,null,null,null,null,null,null,null,null,null,null,null,null,null,null,null,null,null,null,null,null,null,null,null,null,null,null,null,null,null,null,null,null,null,null,null,{"$f":"SUM(AQ52:AY55)","v":0},null,null,null,null,null,null,null,null,{"$f":"SUM(AZ52:BI55)","v":0}]
["TOTAL ( TOTAL I + TOTAL II +TOTAL III) fără TVA",null,null,null,null,null,null,null,null,null,null,null,null,null,null,null,null,null,null,null,null,null,null,null,null,null,null,null,null,null,null,null,null,null,null,null,null,null,null,null,null,null,{"$f":"AQ56+AQ50+AQ47","v":0},null,null,null,null,null,null,null,null,{"$f":"AZ56+AZ50+AZ47","v":0}]
["TVA aferent cheltuielilor eligibile şi neeligibile"]
["TOTAL DEVIZ PE OBIECT (inclusiv TVA)",null,null,null,null,null,null,null,null,null,null,null,null,null,null,null,null,null,null,null,null,null,null,null,null,null,null,null,null,null,null,null,null,null,null,null,null,null,null,null,null,null,{"$f":"AQ57+AZ57+AQ58+AZ58","v":0}]

{"sheet":"Anexa 3 HG_907","index":3,"n_rows":81,"n_cols":52,"rows_kept":81,"cut":false,"hidden":false,"merged":[[1,7,1,41],[1,42,2,60],[2,7,2,41],[3,7,3,41],[3,42,3,50],[3,51,3,60],[4,7,4,60],[5,0,5,60],[6,0,6,60],[7,0,7,60],[8,0,8,60],[9,0,9,3],[9,4,9,41],[9,42,9,50],[9,51,9,60],[12,0,12,3],[12,4,12,41],[12,42,12,50],[12,51,12,60],[13,0,13,3],[13,4,13,41],[13,42,13,50],[13,51,13,60],[10,0,10,3],[10,4,10,41],[10,42,10,50],[10,51,10,60],[11,0,11,3],[11,4,11,41],[11,42,11,50],[11,51,11,60],[16,0,16,3],[16,4,16,41],[16,42,16,50],[16,51,16,60],[17,0,17,3],[17,4,17,41],[17,42,17,50],[17,51,17,60],[14,0,14,3],[14,4,14,41],[14,42,14,50],[14,51,14,60],[15,0,15,3],[15,4,15,41],[15,42,15,50],[15,51,15,60],[20,0,20,3],[20,4,20,41],[20,42,20,50],[20,51,20,60],[21,0,21,41],[21,42,21,60],[18,0,18,3],[18,4,18,41],[18,42,18,50],[18,51,18,60],[19,0,19,3],[19,4,19,41],[19,42,19,50],[19,51,19,60],[22,0,22,3],[22,4,22,41],[22,42,22,50],[22,51,22,60],[23,0,23,60],[24,0,24,3],[24,4,24,41],[24,42,24,50],[24,51,24,60],[28,0,28,3],[28,4,28,41],[28,42,28,50],[28,51,28,60],[29,0,29,3],[29,4,29,41],[29,42,29,50],[29,51,29,60],[25,0,25,60],[26,0,26,3],[26,4,26,41],[26,42,26,50],[26,51,26,60],[27,0,27,3],[27,4,27,41],[27,42,27,50],[27,51,27,60],[32,0,32,3],[32,4,32,41],[32,42,32,50],[32,51,32,60],[33,0,33,3],[33,4,33,41],[33,42,33,50],[33,51,33,60],[30,0,30,3],[30,4,30,41],[30,42,30,50],[30,51,30,60],[31,0,31,3],[31,4,31,41],[31,42,31,50],[31,51,31,60],[36,0,36,3],[36,4,36,41],[36,42,36,50],[36,51,36,60],[37,0,37,3],[37,4,37,41],[37,42,37,50],[37,51,37,60],[34,0,34,3],[34,4,34,41],[34,42,34,50],[34,51,34,60],[35,0,35,3],[35,4,35,41],[35,42,35,50],[35,51,35,60],[40,0,40,41],[40,42,40,59],[42,7,42,41],[42,42,43,60],[43,7,43,41],[44,7,44,41],[44,42,44,50],[44,51,44,60],[38,0,38,3],[38,4,38,41],[38,42,38,50],[38,51,38,60],[39,0,39,3],[39,4,39,41],[39,42,39,60],[45,7,45,60],[46,0,46,60],[47,0,47,60],[48,0,48,60],[49,0,49,60],[50,0,50,3],[50,4,50,41],[50,42,50,50],[50,51,50,60],[53,0,53,3],[53,4,53,41],[53,42,53,50],[53,51,53,60],[54,0,54,3],[54,4,54,41],[54,42,54,50],[54,51,54,60],[51,0,51,3],[51,4,51,41],[51,42,51,50],[51,51,51,60],[52,0,52,3],[52,4,52,41],[52,42,52,50],[52,51,52,60],[57,0,57,3],[57,4,57,41],[57,42,57,50],[57,51,57,60],[58,0,58,3],[58,4,58,41],[58,42,58,50],[58,51,58,60],[55,0,55,3],[55,4,55,41],[55,42,55,50],[55,51,55,60],[56,0,56,3],[56,4,56,41],[56,42,56,50],[56,51,56,60],[61,0,61,3],[61,4,61,41],[61,42,61,50],[61,51,61,60],[62,0,62,41],[62,42,62,60],[59,0,59,3],[59,4,59,41],[59,42,59,50],[59,51,59,60],[60,0,60,3],[60,4,60,41],[60,42,60,50],[60,51,60,60],[63,0,63,3],[63,4,63,41],[63,42,63,50],[63,51,63,60],[64,0,64,60],[65,0,65,3],[65,4,65,41],[65,42,65,50],[65,51,65,60],[66,0,66,60],[67,0,67,3],[67,4,67,41],[67,42,67,50],[67,51,67,60],[68,0,68,3],[68,4,68,41],[68,42,68,50],[68,51,68,60],[71,0,71,3],[71,4,71,41],[71,42,71,50],[71,51,71,60],[72,0,72,3],[72,4,72,41],[72,42,72,50],[72,51,72,60],[69,0,69,3],[69,4,69,41],[69,42,69,50],[69,51,69,60],[70,0,70,3],[70,4,70,41],[70,42,70,50],[70,51,70,60],[75,0,75,3],[75,4,75,41],[75,42,75,50],[75,51,75,60],[76,0,76,3],[76,4,76,41],[76,42,76,50],[76,51,76,60],[73,0,73,3],[73,4,73,41],[73,42,73,50],[73,51,73,60],[74,0,74,3],[74,4,74,41],[74,42,74,50],[74,51,74,60],[79,0,79,3],[79,4,79,41],[79,42,79,50],[79,51,79,60],[80,0,80,3],[80,4,80,41],[80,42,80,60],[77,0,77,3],[77,4,77,41],[77,42,77,50],[77,51,77,60],[78,0,78,3],[78,4,78,41],[78,42,78,50],[78,51,78,60]]}
[]
[null,null,null,null,null,null,null,"MINISTERUL AGRICULTURII ŞI DEZVOLTĂRII RURALE",null,null,null,null,null,null,null,null,null,null,null,null,null,null,null,null,null,null,null,null,null,null,null,null,null,null,null,null,null,null,null,null,null,null,"Anexa A3 - HG907/2016"]
[]
[null,null,null,null,null,null,null,"AGENŢIA PENTRU FINANŢAREA INVESTIŢIILOR RURALE",null,null,null,null,null,null,null,null,null,null,null,null,null,null,null,null,null,null,null,null,null,null,null,null,null,null,null,null,null,null,null,null,null,null,null,null,null,null,null,null,null,null,null,"Nr.2"]
[]
[]
[]
["(Titlu deviz)"]
["Deviz capitolul 2- Cheltuieli pentru asigurarea utilităţilor necesare obiectivului - EURO"]
["Nr.crt",null,null,null,"Specificaţie",null,null,null,null,null,null,null,null,null,null,null,null,null,null,null,null,null,null,null,null,null,null,null,null,null,null,null,null,null,null,null,null,null,null,null,null,null,"Valoare eligibilă",null,null,null,null,null,null,null,null,"Valoare\nneeligibilă"]
[1,null,null,null,"Alimentare cu apă"]
[2,null,null,null,"Canalizare"]
[3,null,null,null,"Alimentare cu gaze naturale"]
[4,null,null,null,"Alimentare cu agent termic"]
[5,null,null,null,"Alimentare cu energie electrică"]
[6,null,null,null,"Telecomunicaţii (telefonie, radio-tv,etc)"]
[7,null,null,null,"Drumuri de acces"]
[8,null,null,null,"Căi ferate industriale;"]
[9,null,null,null,"Alte utilităţi."]
[null,null,null,null,"Total valoare fără TVA",null,null,null,null,null,null,null,null,null,null,null,null,null,null,null,null,null,null,null,null,null,null,null,null,null,null,null,null,null,null,null,null,null,null,null,null,null,{"$f":"SUM(AQ11:AY19)","v":0},null,null,null,null,null,null,null,null,{"$f":"SUM(AZ11:BI19)","v":0}]
[null,null,null,null,"Valoare TVA aferentă cheltuielilor eligibile şi neeligibile"]
["TOTAL DEVIZ CAPITOLUL 2 (inclusiv TVA)",null,null,null,null,null,null,null,null,null,null,null,null,null,null,null,null,null,null,null,null,null,null,null,null,null,null,null,null,null,null,null,null,null,null,null,null,null,null,null,null,null,{"$f":"AQ20+AZ20+AQ21+AZ21","v":0}]
[]
[" Deviz capitolul 5 - Alte cheltuieli - EURO"]
["Nr.crt",null,null,null,"Specificaţie",null,null,null,null,null,null,null,null,null,null,null,null,null,null,null,null,null,null,null,null,null,null,null,null,null,null,null,null,null,null,null,null,null,null,null,null,null,"Valoare eligibilă",null,null,null,null,null,null,null,null,"Valoare\nneeligibilă"]
[]
["5.1 ",null,null,null,"Organizare de şantier",null,null,null,null,null,null,null,null,null,null,null,null,null,null,null,null,null,null,null,null,null,null,null,null,null,null,null,null,null,null,null,null,null,null,null,null,null,{"$f":"SUM(AQ28:AY29)","v":0},null,null,null,null,null,null,null,null,{"$f":"SUM(AZ28:BI29)","v":0}]
[null,null,null,null,"  5.1.1 Lucrări de construcţii şi instalaţii aferente organizării de şantier"]
[null,null,null,null,"  5.1.2 Cheltuieli conexe organizării şantierului"]
["5.2",null,null,null,"Comisioane, cote, taxe, costul creditului",null,null,null,null,null,null,null,null,null,null,null,null,null,null,null,null,null,null,null,null,null,null,null,null,null,null,null,null,null,null,null,null,null,null,null,null,null,{"$f":"SUM(AQ32:AY35)","v":0},null,null,null,null,null,null,null,null,{"$f":"SUM(AZ31:BI35)","v":0}]
[null,null,null,null,"  5.2.1. Comisioanele şi dobânzile aferente creditului băncii finanţatoare"]
[null,null,null,null,"  5.2.2. Cota aferentă ISC pentru controlul calităţii lucrărilor de construcţii"]
[null,null,null,null,"  5.2.3. Cota aferentă ISC pentru controlul statului în amenajarea teritoriului, urbanism şi pentru autorizarea lucrărilor de construcţii"]
[null,null,null,null,"  5.2.4. Cota aferentă Casei Sociale a Constructorilor - CSC"]
[null,null,null,null,"  5.2.5. Taxe pentru acorduri, avize conforme şi autorizaţia de construire/desfiinţare"]
["5.3",null,null,null,"Cheltuieli diverse şi neprevăzute"]
["5.4",null,null,null,"Cheltuieli pentru informare şi publicitate"]
[null,null,null,null,"TOTAL DEVIZ CAPITOLUL 5",null,null,null,null,null,null,null,null,null,null,null,null,null,null,null,null,null,null,null,null,null,null,null,null,null,null,null,null,null,null,null,null,null,null,null,null,null,{"$f":"AQ27+AQ30+AQ37","v":0},null,null,null,null,null,null,null,null,{"$f":"AZ27+AZ30+AZ37+AZ36","v":0}]
[null,null,null,null,"VALOARE TVA aferentă cheltuielilor eligibile şi neeligibile"]
[null,null,null,null,"TOTAL DEVIZ CAPITOLUL 5 ( inclusiv TVA)",null,null,null,null,null,null,null,null,null,null,null,null,null,null,null,null,null,null,null,null,null,null,null,null,null,null,null,null,null,null,null,null,null,null,null,null,null,{"$f":"AQ38+AZ38+AQ39+AZ39","v":0}]
[]
[]
[null,null,null,null,null,null,null,"MINISTERUL AGRICULTURII ŞI DEZVOLTĂRII RURALE",null,null,null,null,null,null,null,null,null,null,null,null,null,null,null,null,null,null,null,null,null,null,null,null,null,null,null,null,null,null,null,null,null,null,"Anexa A3 - HG907/2016"]
[]
[null,null,null,null,null,null,null,"AGENŢIA PENTRU FINANŢAREA INVESTIŢIILOR RURALE",null,null,null,null,null,null,null,null,null,null,null,null,null,null,null,null,null,null,null,null,null,null,null,null,null,null,null,null,null,null,null,null,null,null,null,null,null,null,null,null,null,null,null,"Nr.3"]
[]
[]
[]
["(Titlu deviz)"]
["Deviz capitolul 2- Cheltuieli pentru asigurarea utilităţilor necesare obiectivului - EURO"]
["Nr.crt",null,null,null,"Specificaţie",null,null,null,null,null,null,null,null,null,null,null,null,null,null,null,null,null,null,null,null,null,null,null,null,null,null,null,null,null,null,null,null,null,null,null,null,null,"Valoare eligibilă",null,null,null,null,null,null,null,null,"Valoare\nneeligibilă"]
[1,null,null,null,"Alimentare cu apă"]
[2,null,null,null,"Canalizare"]
[3,null,null,null,"Alimentare cu gaze naturale"]
[4,null,null,null,"Alimentare cu agent termic"]
[5,null,null,null,"Alimentare cu energie electrică"]
[6,null,null,null,"Telecomunicaţii (telefonie, radio-tv,etc)"]
[7,null,null,null,"Drumuri de acces"]
[8,null,null,null,"Căi ferate industriale;"]
[9,null,null,null,"Alte utilităţi."]
[null,null,null,null,"Total valoare fără TVA",null,null,null,null,null,null,null,null,null,null,null,null,null,null,null,null,null,null,null,null,null,null,null,null,null,null,null,null,null,null,null,null,null,null,null,null,null,{"$f":"SUM(AQ52:AY60)","v":0},null,null,null,null,null,null,null,null,{"$f":"SUM(AZ52:BI60)","v":0}]
[null,null,null,null,"Valoare TVA aferentă cheltuielilor eligibile şi neeligibile"]
["TOTAL DEVIZ CAPITOLUL 2 (inclusiv TVA)",null,null,null,null,null,null,null,null,null,null,null,null,null,null,null,null,null,null,null,null,null,null,null,null,null,null,null,null,null,null,null,null,null,null,null,null,null,null,null,null,null,{"$f":"AQ61+AZ61+AQ62+AZ62","v":0}]
[]
[" Deviz capitolul 5 - Alte cheltuieli - EURO"]
["Nr.crt",null,null,null,"Specificaţie",null,null,null,null,null,null,null,null,null,null,null,null,null,null,null,null,null,null,null,null,null,null,null,null,null,null,null,null,null,null,null,null,null,null,null,null,null,"Valoare eligibilă",null,null,null,null,null,null,null,null,"Valoare\nneeligibilă"]
[]
["5.1 ",null,null,null,"Organizare de şantier",null,null,null,null,null,null,null,null,null,null,null,null,null,null,null,null,null,null,null,null,null,null,null,null,null,null,null,null,null,null,null,null,null,null,null,null,null,{"$f":"SUM(AQ69:AY70)","v":0},null,null,null,null,null,null,null,null,{"$f":"SUM(AZ69:BI70)","v":0}]
[null,null,null,null,"  5.1.1 Lucrări de construcţii şi instalaţii aferente organizării de şantier"]
[null,null,null,null,"  5.1.2 Cheltuieli conexe organizării şantierului"]
["5.2",null,null,null,"Comisioane, cote, taxe, costul creditului",null,null,null,null,null,null,null,null,null,null,null,null,null,null,null,null,null,null,null,null,null,null,null,null,null,null,null,null,null,null,null,null,null,null,null,null,null,{"$f":"SUM(AQ73:AY76)","v":0},null,null,null,null,null,null,null,null,{"$f":"SUM(AZ72:BI76)","v":0}]
[null,null,null,null,"  5.2.1. Comisioanele şi dobânzile aferente creditului băncii finanţatoare"]
[null,null,null,null,"  5.2.2. Cota aferentă ISC pentru controlul calităţii lucrărilor de construcţii"]
[null,null,null,null,"  5.2.3. Cota aferentă ISC pentru controlul statului în amenajarea teritoriului, urbanism şi pentru autorizarea lucrărilor de construcţii"]
[null,null,null,null,"  5.2.4. Cota aferentă Casei Sociale a Constructorilor - CSC"]
[null,null,null,null,"  5.2.5. Taxe pentru acorduri, avize conforme şi autorizaţia de construire/desfiinţare"]
["5.3",null,null,null,"Cheltuieli diverse şi neprevăzute"]
["5.4",null,null,null,"Cheltuieli pentru informare şi publicitate"]
[null,null,null,null,"TOTAL DEVIZ CAPITOLUL 5",null,null,null,null,null,null,null,null,null,null,null,null,null,null,null,null,null,null,null,null,null,null,null,null,null,null,null,null,null,null,null,null,null,null,null,null,null,{"$f":"AQ68+AQ71+AQ78","v":0},null,null,null,null,null,null,null,null,{"$f":"AZ68+AZ71+AZ78+AZ77","v":0}]
[null,null,null,null,"VALOARE TVA aferentă cheltuielilor eligibile şi neeligibile"]
[null,null,null,null,"TOTAL DEVIZ CAPITOLUL 5 ( inclusiv TVA)",null,null,null,null,null,null,null,null,null,null,null,null,null,null,null,null,null,null,null,null,null,null,null,null,null,null,null,null,null,null,null,null,null,null,null,null,null,{"$f":"AQ79+AZ79+AQ80+AZ80","v":0}]

{"sheet":"Anexa 1 HG_28","index":4,"n_rows":85,"n_cols":52,"rows_kept":85,"cut":false,"hidden":false,"merged":[[114,38,114,46],[83,0,83,3],[83,4,83,41],[83,42,83,50],[83,51,83,60],[84,0,84,41],[84,42,84,60],[81,0,81,3],[81,4,81,41],[81,42,81,50],[81,51,81,60],[82,0,82,3],[82,4,82,41],[82,42,82,50],[82,51,82,60],[79,0,79,3],[79,4,79,41],[79,42,79,50],[79,51,79,60],[80,0,80,3],[80,4,80,41],[80,42,80,50],[80,51,80,60],[77,0,77,3],[77,4,77,41],[77,42,77,50],[77,51,77,60],[78,0,78,3],[78,4,78,41],[78,42,78,50],[78,51,78,60],[75,0,75,3],[75,4,75,41],[75,42,75,50],[75,51,75,60],[76,0,76,3],[76,4,76,41],[76,42,76,50],[76,51,76,60],[73,0,73,3],[73,4,73,41],[73,42,73,50],[73,51,73,60],[74,0,74,3],[74,4,74,41],[74,42,74,50],[74,51,74,60],[71,0,71,3],[71,6,71,41],[71,42,71,50],[71,51,71,60],[72,0,72,3],[72,4,72,41],[72,42,72,50],[72,51,72,60],[69,0,69,3],[69,6,69,41],[69,42,69,50],[69,51,69,60],[70,0,70,3],[70,6,70,41],[70,42,70,50],[70,51,70,60],[67,0,67,3],[67,6,67,41],[67,42,67,50],[67,51,67,60],[68,0,68,3],[68,6,68,41],[68,42,68,50],[68,51,68,60],[65,0,65,3],[65,4,65,41],[65,42,65,50],[65,51,65,60],[66,0,66,3],[66,6,66,41],[66,42,66,50],[66,51,66,60],[63,0,63,3],[63,4,63,41],[63,42,63,50],[63,51,63,60],[64,0,64,3],[64,4,64,41],[64,42,64,50],[64,51,64,60],[61,0,61,3],[61,4,61,41],[61,42,61,50],[61,51,61,60],[62,0,62,3],[62,4,62,41],[62,42,62,50],[62,51,62,60],[59,0,59,3],[59,4,59,41],[59,42,59,50],[59,51,59,60],[60,0,60,3],[60,4,60,41],[60,42,60,50],[60,51,60,60],[57,0,57,3],[57,4,57,41],[57,42,57,50],[57,51,57,60],[58,0,58,3],[58,4,58,41],[58,42,58,50],[58,51,58,60],[55,0,55,3],[55,4,55,41],[55,42,55,50],[55,51,55,60],[56,0,56,3],[56,4,56,41],[56,42,56,50],[56,51,56,60],[53,0,53,3],[53,4,53,41],[53,42,53,50],[53,51,53,60],[54,0,54,3],[54,4,54,41],[54,42,54,50],[54,51,54,60],[50,0,50,60],[51,0,51,3],[51,4,51,41],[51,42,51,50],[51,51,51,60],[52,0,52,3],[52,4,52,41],[52,42,52,50],[52,51,52,60],[46,7,46,41],[46,42,46,50],[46,51,46,60],[47,7,47,60],[48,0,48,60],[49,0,49,60],[41,0,41,41],[41,42,41,60],[43,7,43,41],[44,7,44,41],[44,42,45,60],[45,7,45,41],[39,0,39,3],[39,4,39,41],[39,42,39,50],[39,51,39,60],[40,0,40,3],[40,4,40,41],[40,42,40,50],[40,51,40,60],[37,0,37,3],[37,4,37,41],[37,42,37,50],[37,51,37,60],[38,0,38,3],[38,4,38,41],[38,42,38,50],[38,51,38,60],[35,0,35,3],[35,4,35,41],[35,42,35,50],[35,51,35,60],[36,0,36,3],[36,4,36,41],[36,42,36,50],[36,51,36,60],[33,0,33,3],[33,4,33,41],[33,42,33,50],[33,51,33,60],[34,0,34,3],[34,4,34,41],[34,42,34,50],[34,51,34,60],[31,0,31,3],[31,4,31,41],[31,42,31,50],[31,51,31,60],[32,0,32,3],[32,4,32,41],[32,42,32,50],[32,51,32,60],[29,0,29,3],[29,4,29,41],[29,42,29,50],[29,51,29,60],[30,0,30,3],[30,4,30,41],[30,42,30,50],[30,51,30,60],[27,0,27,3],[27,6,27,41],[27,42,27,50],[27,51,27,60],[28,0,28,3],[28,6,28,41],[28,42,28,50],[28,51,28,60],[25,0,25,3],[25,6,25,41],[25,42,25,50],[25,51,25,60],[26,0,26,3],[26,6,26,41],[26,42,26,50],[26,51,26,60],[23,0,23,3],[23,6,23,41],[23,42,23,50],[23,51,23,60],[24,0,24,3],[24,6,24,41],[24,42,24,50],[24,51,24,60],[21,0,21,3],[21,4,21,41],[21,42,21,50],[21,51,21,60],[22,0,22,3],[22,4,22,41],[22,42,22,50],[22,51,22,60],[19,0,19,3],[19,4,19,41],[19,42,19,50],[19,51,19,60],[20,0,20,3],[20,4,20,41],[20,42,20,50],[20,51,20,60],[17,0,17,3],[17,4,17,41],[17,42,17,50],[17,51,17,60],[18,0,18,3],[18,4,18,41],[18,42,18,50],[18,51,18,60],[15,0,15,3],[15,4,15,41],[15,42,15,50],[15,51,15,60],[16,0,16,3],[16,4,16,41],[16,42,16,50],[16,51,16,60],[13,0,13,3],[13,4,13,41],[13,42,13,50],[13,51,13,60],[14,0,14,3],[14,4,14,41],[14,42,14,50],[14,51,14,60],[11,0,11,3],[11,4,11,41],[11,42,11,50],[11,51,11,60],[12,0,12,3],[12,4,12,41],[12,42,12,50],[12,51,12,60],[9,0,9,3],[9,4,9,41],[9,42,9,50],[9,51,9,60],[10,0,10,3],[10,4,10,41],[10,42,10,50],[10,51,10,60],[4,7,4,60],[5,0,5,60],[6,0,6,60],[7,0,7,60],[8,0,8,3],[8,4,8,41],[8,42,8,50],[8,51,8,60],[0,7,0,41],[1,7,1,41],[1,42,2,60],[2,7,2,41],[3,7,3,41],[3,42,3,50],[3,51,3,60]]}
[null,null,null,null,null,null,null,"MINISTERUL AGRICULTURII ŞI DEZVOLTĂRII RURALE"]
[null,null,null,null,null,null,null,null,null,null,null,null,null,null,null,null,null,null,null,null,null,null,null,null,null,null,null,null,null,null,null,null,null,null,null,null,null,null,null,null,null,null,"Anexa A1 HG_28"]
[null,null,null,null,null,null,null,"AGENŢIA PENTRU FINANŢAREA INVESTIŢIILOR RURALE"]
[null,null,null,null,null,null,null,null,null,null,null,null,null,null,null,null,null,null,null,null,null,null,null,null,null,null,null,null,null,null,null,null,null,null,null,null,null,null,null,null,null,null,null,null,null,null,null,null,null,null,null,"Nr.2"]
[null,null,null,null,null,null,null,"Deviz financiar- Capitolul 3 - Cheltuieli pentru proiectare şi asistenţa tehnică - EURO"]
[]
[]
["(Titlu deviz)"]
["Nr.crt",null,null,null,"Specificaţie",null,null,null,null,null,null,null,null,null,null,null,null,null,null,null,null,null,null,null,null,null,null,null,null,null,null,null,null,null,null,null,null,null,null,null,null,null,"Valoare eligibilă",null,null,null,null,null,null,null,null,"Valoare\nneeligibilă"]
[1,null,null,null,"Cheltuieli pentru studii de teren (geotehnice, geologice, hidrologice, hidrogeologice, fotogrammetrice, topografice şi de stabilitate a terenului pe care se amplasează obiectivul de investiţie)"]
[2,null,null,null,"Cheltuieli pentru obţinere de avize, acorduri şi autorizaţii - total, din care:",null,null,null,null,null,null,null,null,null,null,null,null,null,null,null,null,null,null,null,null,null,null,null,null,null,null,null,null,null,null,null,null,null,null,null,null,null,{"$f":"SUM(AQ12:AY21)","v":0},null,null,null,null,null,null,null,null,{"$f":"SUM(AZ12:BI21)","v":0}]
[null,null,null,null,"1. obţinerea/prelungirea valabilităţii ceritificatului de urbanism"]
[null,null,null,null,"2. obţinerea/prelungirea valabilităţii autorizaţiei de construire/desfiinţare, obţinere autorizaţii de scoatere din circuitul agricol"]
[null,null,null,null,"3. obţinerea avizelor şi acordurilor pentru racorduri şi branşamente la reţelele publice de apă, canalizare, gaze, termoficare, energie electrică, telefonie etc."]
[null,null,null,null,"4. obţinere aviz sanitar, sanitar-veterinar şi fitosanitar"]
[null,null,null,null,"5. obţinerea certificatului de nomenclatură stradală şi adresa"]
[null,null,null,null,"6. întocmirea documentaţiei, obţinerea numărului Cadastral provizoriu şi înregistrarea terenului în Cartea Funciară"]
[null,null,null,null,"7. obţinerea avizului PSI"]
[null,null,null,null,"8. obţinerea acordului de mediu"]
[null,null,null,null,"9. căi ferate"]
[null,null,null,null,"10. alte avize, acorduri şi autorizaţii solicitate prin lege"]
[3,null,null,null,"3 Proiectare şi inginerie - total, din care:",null,null,null,null,null,null,null,null,null,null,null,null,null,null,null,null,null,null,null,null,null,null,null,null,null,null,null,null,null,null,null,null,null,null,null,null,null,{"$f":"AQ23+AQ30+AQ31+AQ32","v":0},null,null,null,null,null,null,null,null,{"$f":"AZ23+AZ30+AZ31+AZ32","v":0}]
[null,null,null,null,"1. Cheltuieli pentru elaborarea tuturor fazelor de proiectare - total, din care:",null,null,null,null,null,null,null,null,null,null,null,null,null,null,null,null,null,null,null,null,null,null,null,null,null,null,null,null,null,null,null,null,null,null,null,null,null,{"$f":"SUM(AQ24:AY29)","v":0},null,null,null,null,null,null,null,null,{"$f":"SUM(AZ24:BI29)","v":0}]
[null,null,null,null,null,null,"a. studiu de prefezabilitate"]
[null,null,null,null,null,null,"b. studiu de fezabilitate"]
[null,null,null,null,null,null,"c. proiect tehnic"]
[null,null,null,null,null,null,"d. detalii de execuţie"]
[null,null,null,null,null,null,"e. verificarea tehnică a proiectării"]
[null,null,null,null,null,null,"f. elaborarea certificatului de performanţa energetică a clădirii"]
[null,null,null,null,"2. Documentaţii necesare pentru obţinerea acordurilor, avizelor şi autorizaţiilor aferente obiectivului de investitii"]
[null,null,null,null,"3. Cheltuielile pentru expertiza tehnică efectuată pentru construcţii începute şi neterminate sau care urmează a fi modificate prin proiect (modernizări, consolidări etc.)"]
[null,null,null,null,"4. Cheltuielile pentru efectuarea auditului energetic"]
[4,null,null,null,"Organizarea procedurilor de achiziţie"]
[5,null,null,null,"Cheltuieli pentru consultanţă - total, din care:",null,null,null,null,null,null,null,null,null,null,null,null,null,null,null,null,null,null,null,null,null,null,null,null,null,null,null,null,null,null,null,null,null,null,null,null,null,{"$f":"SUM(AQ35:AY36)","v":0},null,null,null,null,null,null,null,null,{"$f":"SUM(AZ35:BI36)","v":0}]
[null,null,null,null,"1. plata serviciilor de consultanţă la elaborarea memoriului justificativ, studiilor de piaţă, de evaluare, la întocmirea cererii de finanţare"]
[null,null,null,null,"2. plata serviciilor de consultanţă în domeniul managementului investiţiei sau administrarea contractului de execuţie"]
[6,null,null,null,"Cheltuieli pentru asistenţa tehnică - total, din care:",null,null,null,null,null,null,null,null,null,null,null,null,null,null,null,null,null,null,null,null,null,null,null,null,null,null,null,null,null,null,null,null,null,null,null,null,null,{"$f":"SUM(AQ38:AY39)","v":0},null,null,null,null,null,null,null,null,{"$f":"SUM(AZ38:BI39)","v":0}]
[null,null,null,null,"1. asistenţa tehnică din partea proiectantului în cazul când aceasta nu intră în tarifarea proiectării"]
[null,null,null,null,"2. plata diriginţilor de şantier desemnaţi de autoritatea contractantă, autorizaţi conform prevederilor legale pentru verificarea execuţiei lucrărilor de construcţii şi instalaţii"]
[null,null,null,null,"Total valoare fără TVA",null,null,null,null,null,null,null,null,null,null,null,null,null,null,null,null,null,null,null,null,null,null,null,null,null,null,null,null,null,null,null,null,null,null,null,null,null,{"$f":"AQ37+AQ34+AQ22+AQ11+AQ10","v":0},null,null,null,null,null,null,null,null,{"$f":"AZ37+AZ34+AZ33+AZ22+AZ11+AZ10","v":0}]
[null,null,null,null,"Valoare TVA (aferentă cheltuielilor eligibile şi neeligibile)"]
["TOTAL DEVIZ FINANCIAR 1 (inclusiv TVA)",null,null,null,null,null,null,null,null,null,null,null,null,null,null,null,null,null,null,null,null,null,null,null,null,null,null,null,null,null,null,null,null,null,null,null,null,null,null,null,null,null,{"$f":"AQ40+AZ40+AQ41+AZ41","v":0}]
[]
[null,null,null,null,null,null,null,"MINISTERUL AGRICULTURII ŞI DEZVOLTĂRII RURALE"]
[null,null,null,null,null,null,null,null,null,null,null,null,null,null,null,null,null,null,null,null,null,null,null,null,null,null,null,null,null,null,null,null,null,null,null,null,null,null,null,null,null,null,"Anexa A1 HG_28"]
[null,null,null,null,null,null,null,"AGENŢIA PENTRU FINANŢAREA INVESTIŢIILOR RURALE"]
[null,null,null,null,null,null,null,null,null,null,null,null,null,null,null,null,null,null,null,null,null,null,null,null,null,null,null,null,null,null,null,null,null,null,null,null,null,null,null,null,null,null,null,null,null,null,null,null,null,null,null,"Nr.3"]
[null,null,null,null,null,null,null,"Deviz financiar- Capitolul 3 - Cheltuieli pentru proiectare şi asistenţa tehnică - EURO"]
[]
[]
["(Titlu deviz)"]
["Nr.crt",null,null,null,"Specificaţie",null,null,null,null,null,null,null,null,null,null,null,null,null,null,null,null,null,null,null,null,null,null,null,null,null,null,null,null,null,null,null,null,null,null,null,null,null,"Valoare eligibilă",null,null,null,null,null,null,null,null,"Valoare\nneeligibilă"]
[1,null,null,null,"Cheltuieli pentru studii de teren (geotehnice, geologice, hidrologice, hidrogeologice, fotogrammetrice, topografice şi de stabilitate a terenului pe care se amplasează obiectivul de investiţie)"]
[2,null,null,null,"Cheltuieli pentru obţinere de avize, acorduri şi autorizaţii - total, din care:",null,null,null,null,null,null,null,null,null,null,null,null,null,null,null,null,null,null,null,null,null,null,null,null,null,null,null,null,null,null,null,null,null,null,null,null,null,{"$f":"SUM(AQ55:AY64)","v":0},null,null,null,null,null,null,null,null,{"$f":"SUM(AZ55:BI64)","v":0}]
[null,null,null,null,"1. obţinerea/prelungirea valabilităţii ceritificatului de urbanism"]
[null,null,null,null,"2. obţinerea/prelungirea valabilităţii autorizaţiei de construire/desfiinţare, obţinere autorizaţii de scoatere din circuitul agricol"]
[null,null,null,null,"3. obţinerea avizelor şi acordurilor pentru racorduri şi branşamente la reţelele publice de apă, canalizare, gaze, termoficare, energie electrică, telefonie etc."]
[null,null,null,null,"4. obţinere aviz sanitar, sanitar-veterinar şi fitosanitar"]
[null,null,null,null,"5. obţinerea certificatului de nomenclatură stradală şi adresa"]
[null,null,null,null,"6. întocmirea documentaţiei, obţinerea numărului Cadastral provizoriu şi înregistrarea terenului în Cartea Funciară"]
[null,null,null,null,"7. obţinerea avizului PSI"]
[null,null,null,null,"8. obţinerea acordului de mediu"]
[null,null,null,null,"9. căi ferate"]
[null,null,null,null,"10. alte avize, acorduri şi autorizaţii solicitate prin lege"]
[3,null,null,null,"3 Proiectare şi inginerie - total, din care:",null,null,null,null,null,null,null,null,null,null,null,null,null,null,null,null,null,null,null,null,null,null,null,null,null,null,null,null,null,null,null,null,null,null,null,null,null,{"$f":"AQ66+AQ73+AQ74+AQ75","v":0},null,null,null,null,null,null,null,null,{"$f":"AZ66+AZ73+AZ74+AZ75","v":0}]
[null,null,null,null,"1. Cheltuieli pentru elaborarea tuturor fazelor de proiectare - total, din care:",null,null,null,null,null,null,null,null,null,null,null,null,null,null,null,null,null,null,null,null,null,null,null,null,null,null,null,null,null,null,null,null,null,null,null,null,null,{"$f":"SUM(AQ67:AY72)","v":0},null,null,null,null,null,null,null,null,{"$f":"SUM(AZ67:BI72)","v":0}]
[null,null,null,null,null,null,"a. studiu de prefezabilitate"]
[null,null,null,null,null,null,"b. studiu de fezabilitate"]
[null,null,null,null,null,null,"c. proiect tehnic"]
[null,null,null,null,null,null,"d. detalii de execuţie"]
[null,null,null,null,null,null,"e. verificarea tehnică a proiectării"]
[null,null,null,null,null,null,"f. elaborarea certificatului de performanţa energetică a clădirii"]
[null,null,null,null,"2. Documentaţii necesare pentru obţinerea acordurilor, avizelor şi autorizaţiilor aferente obiectivului de investitii"]
[null,null,null,null,"3. Cheltuielile pentru expertiza tehnică efectuată pentru construcţii începute şi neterminate sau care urmează a fi modificate prin proiect (modernizări, consolidări etc.)"]
[null,null,null,null,"4. Cheltuielile pentru efectuarea auditului energetic"]
[4,null,null,null,"Organizarea procedurilor de achiziţie"]
[5,null,null,null,"Cheltuieli pentru consultanţă - total, din care:",null,null,null,null,null,null,null,null,null,null,null,null,null,null,null,null,null,null,null,null,null,null,null,null,null,null,null,null,null,null,null,null,null,null,null,null,null,{"$f":"SUM(AQ78:AY79)","v":0},null,null,null,null,null,null,null,null,{"$f":"SUM(AZ78:BI79)","v":0}]
[null,null,null,null,"1. plata serviciilor de consultanţă la elaborarea memoriului justificativ, studiilor de piaţă, de evaluare, la întocmirea cererii de finanţare"]
[null,null,null,null,"2. plata serviciilor de consultanţă în domeniul managementului investiţiei sau administrarea contractului de execuţie"]
[6,null,null,null,"Cheltuieli pentru asistenţa tehnică - total, din care:",null,null,null,null,null,null,null,null,null,null,null,null,null,null,null,null,null,null,null,null,null,null,null,null,null,null,null,null,null,null,null,null,null,null,null,null,null,{"$f":"SUM(AQ81:AY82)","v":0},null,null,null,null,null,null,null,null,{"$f":"SUM(AZ81:BI82)","v":0}]
[null,null,null,null,"1. asistenţa tehnică din partea proiectantului în cazul când aceasta nu intră în tarifarea proiectării"]
[null,null,null,null,"2. plata diriginţilor de şantier desemnaţi de autoritatea contractantă, autorizaţi conform prevederilor legale pentru verificarea execuţiei lucrărilor de construcţii şi instalaţii"]
[null,null,null,null,"Total valoare fără TVA",null,null,null,null,null,null,null,null,null,null,null,null,null,null,null,null,null,null,null,null,null,null,null,null,null,null,null,null,null,null,null,null,null,null,null,null,null,{"$f":"AQ80+AQ77+AQ65+AQ54+AQ53","v":0},null,null,null,null,null,null,null,null,{"$f":"AZ80+AZ77+AZ76+AZ65+AZ54+AZ53","v":0}]
[null,null,null,null,"Valoare TVA (aferentă cheltuielilor eligibile şi neeligibile)"]
["TOTAL DEVIZ FINANCIAR 1 (inclusiv TVA)",null,null,null,null,null,null,null,null,null,null,null,null,null,null,null,null,null,null,null,null,null,null,null,null,null,null,null,null,null,null,null,null,null,null,null,null,null,null,null,null,null,{"$f":"AQ83+AZ83+AQ84+AZ84","v":0}]

{"sheet":"Anexa 2 HG_28","index":5,"n_rows":64,"n_cols":52,"rows_kept":64,"cut":false,"hidden":false,"merged":[[62,0,62,41],[62,42,62,50],[62,51,62,60],[63,0,63,41],[63,42,63,60],[60,0,60,3],[60,4,60,41],[60,42,60,50],[60,51,60,60],[61,0,61,41],[61,42,61,50],[61,51,61,60],[58,0,58,3],[58,4,58,41],[58,42,58,50],[58,51,58,60],[59,0,59,3],[59,4,59,41],[59,42,59,50],[59,51,59,60],[55,0,55,3],[55,4,55,41],[55,42,55,50],[55,51,55,60],[56,0,56,60],[57,0,57,3],[57,4,57,41],[57,42,57,50],[57,51,57,60],[52,0,52,3],[52,4,52,41],[52,42,52,50],[52,51,52,60],[53,0,53,60],[54,0,54,3],[54,4,54,41],[54,42,54,50],[54,51,54,60],[50,0,50,3],[50,4,50,41],[50,42,50,50],[50,51,50,60],[51,0,51,3],[51,4,51,41],[51,42,51,50],[51,51,51,60],[48,0,48,3],[48,4,48,41],[48,42,48,50],[48,51,48,60],[49,0,49,3],[49,4,49,41],[49,42,49,50],[49,51,49,60],[46,0,46,3],[46,4,46,41],[46,42,46,50],[46,51,46,60],[47,0,47,3],[47,4,47,41],[47,42,47,50],[47,51,47,60],[44,0,44,3],[44,4,44,41],[44,42,44,50],[44,51,44,60],[45,0,45,3],[45,4,45,41],[45,42,45,50],[45,51,45,60],[42,0,42,41],[42,42,42,50],[42,51,42,60],[43,0,43,41],[43,42,43,50],[43,51,43,60],[37,7,37,60],[38,0,38,60],[39,0,39,60],[40,0,40,60],[41,0,41,3],[41,4,41,41],[41,42,41,60],[34,7,34,41],[34,42,35,60],[35,7,35,41],[36,7,36,41],[36,42,36,50],[36,51,36,60],[29,0,29,41],[29,42,29,50],[29,51,29,60],[30,0,30,41],[30,42,30,60],[33,7,33,41],[27,0,27,3],[27,4,27,41],[27,42,27,50],[27,51,27,60],[28,0,28,41],[28,42,28,50],[28,51,28,60],[25,0,25,3],[25,4,25,41],[25,42,25,50],[25,51,25,60],[26,0,26,3],[26,4,26,41],[26,42,26,50],[26,51,26,60],[22,0,22,3],[22,4,22,41],[22,42,22,50],[22,51,22,60],[23,0,23,60],[24,0,24,3],[24,4,24,41],[24,42,24,50],[24,51,24,60],[19,0,19,3],[19,4,19,41],[19,42,19,50],[19,51,19,60],[20,0,20,60],[21,0,21,3],[21,4,21,41],[21,42,21,50],[21,51,21,60],[17,0,17,3],[17,4,17,41],[17,42,17,50],[17,51,17,60],[18,0,18,3],[18,4,18,41],[18,42,18,50],[18,51,18,60],[15,0,15,3],[15,4,15,41],[15,42,15,50],[15,51,15,60],[16,0,16,3],[16,4,16,41],[16,42,16,50],[16,51,16,60],[13,0,13,3],[13,4,13,41],[13,42,13,50],[13,51,13,60],[14,0,14,3],[14,4,14,41],[14,42,14,50],[14,51,14,60],[11,0,11,3],[11,4,11,41],[11,42,11,50],[11,51,11,60],[12,0,12,3],[12,4,12,41],[12,42,12,50],[12,51,12,60],[10,0,10,41],[10,42,10,50],[10,51,10,60],[4,7,4,60],[5,0,5,60],[6,0,6,60],[7,0,7,60],[8,0,8,3],[8,4,8,41],[8,42,8,60],[0,7,0,41],[1,7,1,41],[1,42,2,60],[2,7,2,41],[3,7,3,41],[3,42,3,50],[3,51,3,60],[9,0,9,41],[9,42,9,50],[9,51,9,60]]}
[null,null,null,null,null,null,null,"MINISTERUL AGRICULTURII ŞI DEZVOLTĂRII RURALE"]
[null,null,null,null,null,null,null,null,null,null,null,null,null,null,null,null,null,null,null,null,null,null,null,null,null,null,null,null,null,null,null,null,null,null,null,null,null,null,null,null,null,null,"Anexa A2 HG_28"]
[null,null,null,null,null,null,null,"AGENŢIA PENTRU FINANŢAREA INVESTIŢIILOR RURALE"]
[null,null,null,null,null,null,null,null,null,null,null,null,null,null,null,null,null,null,null,null,null,null,null,null,null,null,null,null,null,null,null,null,null,null,null,null,null,null,null,null,null,null,null,null,null,null,null,null,null,null,null,"Nr.2"]
[null,null,null,null,null,null,null,"DEVIZ PE OBIECT *"]
[]
[]
["(Descriere obiect de construcţie)"]
["Nr. crt.",null,null,null,"Denumire",null,null,null,null,null,null,null,null,null,null,null,null,null,null,null,null,null,null,null,null,null,null,null,null,null,null,null,null,null,null,null,null,null,null,null,null,null,"Valoarea pe categorii de lucrări, fară TVA - EURO"]
[null,null,null,null,null,null,null,null,null,null,null,null,null,null,null,null,null,null,null,null,null,null,null,null,null,null,null,null,null,null,null,null,null,null,null,null,null,null,null,null,null,null,"Valoare eligibilă",null,null,null,null,null,null,null,null,"Valoare\nneeligibilă"]
["I - LUCRĂRI DE CONSTRUCŢII ŞI INSTALAŢII"]
[1,null,null,null,"Terasamente"]
[2,null,null,null,"Construcţii : rezistenţă (fundaţii, structură de rezistenţă) şi arhitectură (închideri exterioare, compartimentări, finisaje)"]
[3,null,null,null,"Izolaţii"]
[4,null,null,null,"Instalaţii electrice"]
[5,null,null,null,"Instalaţii sanitare"]
[6,null,null,null,"Instalaţii de încălzire, ventilare, climatizare. PSI, radio-tv, intranet"]
[7,null,null,null,"Instalaţii de alimentare cu gaze naturale"]
[8,null,null,null,"Instalaţii de telecomunicaţii"]
[null,null,null,null,"TOTAL I ( fără TVA)",null,null,null,null,null,null,null,null,null,null,null,null,null,null,null,null,null,null,null,null,null,null,null,null,null,null,null,null,null,null,null,null,null,null,null,null,null,{"$f":"SUM(AQ12:AY19)","v":0},null,null,null,null,null,null,null,null,{"$f":"SUM(AZ12:BI19)","v":0}]
["II - MONTAJ"]
[9,null,null,null,"Montaj utilaje şi echipamente tehnologice"]
[null,null,null,null,"TOTAL II ( fără TVA)",null,null,null,null,null,null,null,null,null,null,null,null,null,null,null,null,null,null,null,null,null,null,null,null,null,null,null,null,null,null,null,null,null,null,null,null,null,{"$f":"SUM(AQ22)","v":0},null,null,null,null,null,null,null,null,{"$f":"SUM(AZ22)","v":0}]
["III - PROCURARE"]
[10,null,null,null,"Utilaje şi echipamente tehnologice"]
[11,null,null,null,"Utilaje şi echipamente de transport, utilaje şi echipamente fară montaj, mijloace de transport, alte achiziţii specifice"]
[12,null,null,null,"Dotări"]
[null,null,null,null,"TOTAL III ( fără TVA)",null,null,null,null,null,null,null,null,null,null,null,null,null,null,null,null,null,null,null,null,null,null,null,null,null,null,null,null,null,null,null,null,null,null,null,null,null,{"$f":"SUM(AQ25:AY27)","v":0},null,null,null,null,null,null,null,null,{"$f":"SUM(AZ25:BI27)","v":0}]
["TOTAL ( TOTAL I + TOTAL II +TOTAL III) fără TVA",null,null,null,null,null,null,null,null,null,null,null,null,null,null,null,null,null,null,null,null,null,null,null,null,null,null,null,null,null,null,null,null,null,null,null,null,null,null,null,null,null,{"$f":"AQ28+AQ23+AQ20","v":0},null,null,null,null,null,null,null,null,{"$f":"AZ28+AZ23+AZ20","v":0}]
["TVA aferent cheltuielilor eligibile şi neeligibile"]
["TOTAL DEVIZ PE OBIECT (inclusiv TVA)",null,null,null,null,null,null,null,null,null,null,null,null,null,null,null,null,null,null,null,null,null,null,null,null,null,null,null,null,null,null,null,null,null,null,null,null,null,null,null,null,null,{"$f":"AQ29+AZ29+AQ30+AZ30","v":0}]
[]
[]
[null,null,null,null,null,null,null,"MINISTERUL AGRICULTURII ŞI DEZVOLTĂRII RURALE"]
[null,null,null,null,null,null,null,null,null,null,null,null,null,null,null,null,null,null,null,null,null,null,null,null,null,null,null,null,null,null,null,null,null,null,null,null,null,null,null,null,null,null,"Anexa A2 HG_28"]
[null,null,null,null,null,null,null,"AGENŢIA PENTRU FINANŢAREA INVESTIŢIILOR RURALE"]
[null,null,null,null,null,null,null,null,null,null,null,null,null,null,null,null,null,null,null,null,null,null,null,null,null,null,null,null,null,null,null,null,null,null,null,null,null,null,null,null,null,null,null,null,null,null,null,null,null,null,null,"Nr.3"]
[null,null,null,null,null,null,null,"DEVIZ PE OBIECT *"]
[]
[]
["(Descriere obiect de construcţie)"]
["Nr. crt.",null,null,null,"Denumire",null,null,null,null,null,null,null,null,null,null,null,null,null,null,null,null,null,null,null,null,null,null,null,null,null,null,null,null,null,null,null,null,null,null,null,null,null,"Valoarea pe categorii de lucrări, fară TVA - EURO"]
[null,null,null,null,null,null,null,null,null,null,null,null,null,null,null,null,null,null,null,null,null,null,null,null,null,null,null,null,null,null,null,null,null,null,null,null,null,null,null,null,null,null,"Valoare eligibilă",null,null,null,null,null,null,null,null,"Valoare\nneeligibilă"]
["I - LUCRĂRI DE CONSTRUCŢII ŞI INSTALAŢII"]
[1,null,null,null,"Terasamente"]
[2,null,null,null,"Construcţii : rezistenţă (fundaţii, structură de rezistenţă) şi arhitectură (închideri exterioare, compartimentări, finisaje)"]
[3,null,null,null,"Izolaţii"]
[4,null,null,null,"Instalaţii electrice"]
[5,null,null,null,"Instalaţii sanitare"]
[6,null,null,null,"Instalaţii de încălzire, ventilare, climatizare. PSI, radio-tv, intranet"]
[7,null,null,null,"Instalaţii de alimentare cu gaze naturale"]
[8,null,null,null,"Instalaţii de telecomunicaţii"]
[null,null,null,null,"TOTAL I ( fără TVA)",null,null,null,null,null,null,null,null,null,null,null,null,null,null,null,null,null,null,null,null,null,null,null,null,null,null,null,null,null,null,null,null,null,null,null,null,null,{"$f":"SUM(AQ45:AY52)","v":0},null,null,null,null,null,null,null,null,{"$f":"SUM(AZ45:BI52)","v":0}]
["II - MONTAJ"]
[9,null,null,null,"Montaj utilaje şi echipamente tehnologice"]
[null,null,null,null,"TOTAL II ( fără TVA)",null,null,null,null,null,null,null,null,null,null,null,null,null,null,null,null,null,null,null,null,null,null,null,null,null,null,null,null,null,null,null,null,null,null,null,null,null,{"$f":"SUM(AQ55)","v":0},null,null,null,null,null,null,null,null,{"$f":"SUM(AZ55)","v":0}]
["III - PROCURARE"]
[10,null,null,null,"Utilaje şi echipamente tehnologice"]
[11,null,null,null,"Utilaje şi echipamente de transport, utilaje şi echipamente fară montaj, mijloace de transport, alte achiziţii specifice"]
[12,null,null,null,"Dotări"]
[null,null,null,null,"TOTAL III ( fără TVA)",null,null,null,null,null,null,null,null,null,null,null,null,null,null,null,null,null,null,null,null,null,null,null,null,null,null,null,null,null,null,null,null,null,null,null,null,null,{"$f":"SUM(AQ58:AY60)","v":0},null,null,null,null,null,null,null,null,{"$f":"SUM(AZ58:BI60)","v":0}]
["TOTAL ( TOTAL I + TOTAL II +TOTAL III) fără TVA",null,null,null,null,null,null,null,null,null,null,null,null,null,null,null,null,null,null,null,null,null,null,null,null,null,null,null,null,null,null,null,null,null,null,null,null,null,null,null,null,null,{"$f":"AQ61+AQ56+AQ53","v":0},null,null,null,null,null,null,null,null,{"$f":"AZ61+AZ56+AZ53","v":0}]
["TVA aferent cheltuielilor eligibile şi neeligibile"]
["TOTAL DEVIZ PE OBIECT (inclusiv TVA)",null,null,null,null,null,null,null,null,null,null,null,null,null,null,null,null,null,null,null,null,null,null,null,null,null,null,null,null,null,null,null,null,null,null,null,null,null,null,null,null,null,{"$f":"AQ62+AZ62+AQ63+AZ63","v":0}]

{"sheet":"Anexa 3 HG_28","index":6,"n_rows":80,"n_cols":52,"rows_kept":80,"cut":false,"hidden":false,"merged":[[78,0,78,3],[78,4,78,41],[78,42,78,50],[78,51,78,60],[79,0,79,3],[79,4,79,41],[79,42,79,60],[76,0,76,3],[76,4,76,41],[76,42,76,50],[76,51,76,60],[77,0,77,3],[77,4,77,41],[77,42,77,50],[77,51,77,60],[74,0,74,3],[74,4,74,41],[74,42,74,50],[74,51,74,60],[75,0,75,3],[75,4,75,41],[75,42,75,50],[75,51,75,60],[72,0,72,3],[72,4,72,41],[72,42,72,50],[72,51,72,60],[73,0,73,3],[73,4,73,41],[73,42,73,50],[73,51,73,60],[70,0,70,3],[70,4,70,41],[70,42,70,50],[70,51,70,60],[71,0,71,3],[71,4,71,41],[71,42,71,50],[71,51,71,60],[68,0,68,3],[68,4,68,41],[68,42,68,50],[68,51,68,60],[69,0,69,3],[69,4,69,41],[69,42,69,50],[69,51,69,60],[66,0,66,3],[66,4,66,41],[66,42,66,50],[66,51,66,60],[67,0,67,3],[67,4,67,41],[67,42,67,50],[67,51,67,60],[63,0,63,60],[64,0,64,3],[64,4,64,41],[64,42,64,50],[64,51,64,60],[65,0,65,60],[61,0,61,41],[61,42,61,60],[62,0,62,3],[62,4,62,41],[62,42,62,50],[62,51,62,60],[59,0,59,3],[59,4,59,41],[59,42,59,50],[59,51,59,60],[60,0,60,3],[60,4,60,41],[60,42,60,50],[60,51,60,60],[57,0,57,3],[57,4,57,41],[57,42,57,50],[57,51,57,60],[58,0,58,3],[58,4,58,41],[58,42,58,50],[58,51,58,60],[55,0,55,3],[55,4,55,41],[55,42,55,50],[55,51,55,60],[56,0,56,3],[56,4,56,41],[56,42,56,50],[56,51,56,60],[53,0,53,3],[53,4,53,41],[53,42,53,50],[53,51,53,60],[54,0,54,3],[54,4,54,41],[54,42,54,50],[54,51,54,60],[51,0,51,3],[51,4,51,41],[51,42,51,50],[51,51,51,60],[52,0,52,3],[52,4,52,41],[52,42,52,50],[52,51,52,60],[45,7,45,60],[46,0,46,60],[47,0,47,60],[48,0,48,60],[49,0,49,60],[50,0,50,3],[50,4,50,41],[50,42,50,50],[50,51,50,60],[42,7,42,41],[42,42,43,60],[43,7,43,41],[44,7,44,41],[44,42,44,50],[44,51,44,60],[37,0,37,3],[37,4,37,41],[37,42,37,50],[37,51,37,60],[38,0,38,3],[38,4,38,41],[38,42,38,60],[35,0,35,3],[35,4,35,41],[35,42,35,50],[35,51,35,60],[36,0,36,3],[36,4,36,41],[36,42,36,50],[36,51,36,60],[33,0,33,3],[33,4,33,41],[33,42,33,50],[33,51,33,60],[34,0,34,3],[34,4,34,41],[34,42,34,50],[34,51,34,60],[31,0,31,3],[31,4,31,41],[31,42,31,50],[31,51,31,60],[32,0,32,3],[32,4,32,41],[32,42,32,50],[32,51,32,60],[29,0,29,3],[29,4,29,41],[29,42,29,50],[29,51,29,60],[30,0,30,3],[30,4,30,41],[30,42,30,50],[30,51,30,60],[27,0,27,3],[27,4,27,41],[27,42,27,50],[27,51,27,60],[28,0,28,3],[28,4,28,41],[28,42,28,50],[28,51,28,60],[25,0,25,3],[25,4,25,41],[25,42,25,50],[25,51,25,60],[26,0,26,3],[26,4,26,41],[26,42,26,50],[26,51,26,60],[22,0,22,60],[23,0,23,3],[23,4,23,41],[23,42,23,50],[23,51,23,60],[24,0,24,60],[20,0,20,41],[20,42,20,60],[21,0,21,3],[21,4,21,41],[21,42,21,50],[21,51,21,60],[18,0,18,3],[18,4,18,41],[18,42,18,50],[18,51,18,60],[19,0,19,3],[19,4,19,41],[19,42,19,50],[19,51,19,60],[16,0,16,3],[16,4,16,41],[16,42,16,50],[16,51,16,60],[17,0,17,3],[17,4,17,41],[17,42,17,50],[17,51,17,60],[14,0,14,3],[14,4,14,41],[14,42,14,50],[14,51,14,60],[15,0,15,3],[15,4,15,41],[15,42,15,50],[15,51,15,60],[12,0,12,3],[12,4,12,41],[12,42,12,50],[12,51,12,60],[13,0,13,3],[13,4,13,41],[13,42,13,50],[13,51,13,60],[11,0,11,3],[11,4,11,41],[11,42,11,50],[11,51,11,60],[4,7,4,60],[5,0,5,60],[6,0,6,60],[7,0,7,60],[8,0,8,60],[9,0,9,3],[9,4,9,41],[9,42,9,50],[9,51,9,60],[1,7,1,41],[1,42,2,60],[2,7,2,41],[3,7,3,41],[3,42,3,50],[3,51,3,60],[10,0,10,3],[10,4,10,41],[10,42,10,50],[10,51,10,60]]}
[]
[null,null,null,null,null,null,null,"MINISTERUL AGRICULTURII ŞI DEZVOLTĂRII RURALE",null,null,null,null,null,null,null,null,null,null,null,null,null,null,null,null,null,null,null,null,null,null,null,null,null,null,null,null,null,null,null,null,null,null,"Anexa A3 HG_28"]
[]
[null,null,null,null,null,null,null,"AGENŢIA PENTRU FINANŢAREA INVESTIŢIILOR RURALE",null,null,null,null,null,null,null,null,null,null,null,null,null,null,null,null,null,null,null,null,null,null,null,null,null,null,null,null,null,null,null,null,null,null,null,null,null,null,null,null,null,null,null,"Nr.2"]
[]
[]
[]
["(Titlu deviz)"]
["Deviz capitolul 2- Cheltuieli pentru asigurarea utilităţilor necesare obiectivului - EURO"]
["Nr.crt",null,null,null,"Specificaţie",null,null,null,null,null,null,null,null,null,null,null,null,null,null,null,null,null,null,null,null,null,null,null,null,null,null,null,null,null,null,null,null,null,null,null,null,null,"Valoare eligibilă",null,null,null,null,null,null,null,null,"Valoare\nneeligibilă"]
[1,null,null,null,"Alimentare cu apă"]
[2,null,null,null,"Canalizare"]
[3,null,null,null,"Alimentare cu gaze naturale"]
[4,null,null,null,"Alimentare cu agent termic"]
[5,null,null,null,"Alimentare cu energie electrică"]
[6,null,null,null,"Telecomunicaţii (telefonie, radio-tv,etc)"]
[7,null,null,null,"Alte tipuri de reţele exterioare"]
[8,null,null,null,"Drumuri de acces"]
[null,null,null,null,"Total valoare fără TVA",null,null,null,null,null,null,null,null,null,null,null,null,null,null,null,null,null,null,null,null,null,null,null,null,null,null,null,null,null,null,null,null,null,null,null,null,null,{"$f":"SUM(AQ11:AY18)","v":0},null,null,null,null,null,null,null,null,{"$f":"SUM(AZ11:BI18)","v":0}]
[null,null,null,null,"Valoare TVA aferentă cheltuielilor eligibile şi neeligibile"]
["TOTAL DEVIZ CAPITOLUL 2 (inclusiv TVA)",null,null,null,null,null,null,null,null,null,null,null,null,null,null,null,null,null,null,null,null,null,null,null,null,null,null,null,null,null,null,null,null,null,null,null,null,null,null,null,null,null,{"$f":"AQ19+AZ19+AQ20+AZ20","v":0}]
[]
[" Deviz capitolul 5 - Alte cheltuieli - EURO"]
["Nr.crt",null,null,null,"Specificaţie",null,null,null,null,null,null,null,null,null,null,null,null,null,null,null,null,null,null,null,null,null,null,null,null,null,null,null,null,null,null,null,null,null,null,null,null,null,"Valoare eligibilă",null,null,null,null,null,null,null,null,"Valoare\nneeligibilă"]
[]
["5.1 ",null,null,null,"Organizare de şantier",null,null,null,null,null,null,null,null,null,null,null,null,null,null,null,null,null,null,null,null,null,null,null,null,null,null,null,null,null,null,null,null,null,null,null,null,null,{"$f":"SUM(AQ27:AY28)","v":0},null,null,null,null,null,null,null,null,{"$f":"SUM(AZ27:BI28)","v":0}]
["5.1.1",null,null,null,"lucrări de construcţii şi instalaţii aferente organizării de şantier"]
["5.1.2",null,null,null,"cheltuieli conexe organizării de şantier"]
["5.2",null,null,null,"Comisioane, taxe",null,null,null,null,null,null,null,null,null,null,null,null,null,null,null,null,null,null,null,null,null,null,null,null,null,null,null,null,null,null,null,null,null,null,null,null,null,{"$f":"SUM(AQ31:AY34)","v":0},null,null,null,null,null,null,null,null,{"$f":"SUM(AZ30:BI36)","v":0}]
[null,null,null,null,"comisionul băncii finanţatoare"]
[null,null,null,null,"cota aferentă Inspectoratului de Stat în Construcţii pentru controlul calităţii lucrărilor de construcţii"]
[null,null,null,null,"cota pentru controlul statului în amenajarea teritoriului, urbanism şi pentru autorizarea lucrărilor de construcţii"]
[null,null,null,null,"prime de asigurare din sarcina autorităţii contractante"]
[null,null,null,null,"alte cheltuieli de aceeaşi natură, stabilite în condiţiile legii"]
[null,null,null,null,"cota aferentă Casei Sociale a Constructorilor"]
["5.3",null,null,null," Cheltuieli diverse si neprevazute"]
[null,null,null,null,"TOTAL DEVIZ CAPITOLUL 5",null,null,null,null,null,null,null,null,null,null,null,null,null,null,null,null,null,null,null,null,null,null,null,null,null,null,null,null,null,null,null,null,null,null,null,null,null,{"$f":"AQ26+AQ29","v":0},null,null,null,null,null,null,null,null,{"$f":"AZ26+AZ29+AZ36","v":0}]
[null,null,null,null,"VALOARE TVA aferentă cheltuielilor eligibile şi neeligibile"]
[null,null,null,null,"TOTAL DEVIZ CAPITOLUL 5 ( inclusiv TVA)",null,null,null,null,null,null,null,null,null,null,null,null,null,null,null,null,null,null,null,null,null,null,null,null,null,null,null,null,null,null,null,null,null,null,null,null,null,{"$f":"AQ37+AZ37+AQ38+AZ38","v":0}]
[]
[]
[]
[null,null,null,null,null,null,null,"MINISTERUL AGRICULTURII ŞI DEZVOLTĂRII RURALE",null,null,null,null,null,null,null,null,null,null,null,null,null,null,null,null,null,null,null,null,null,null,null,null,null,null,null,null,null,null,null,null,null,null,"Anexa A3 HG_28"]
[]
[null,null,null,null,null,null,null,"AGENŢIA PENTRU FINANŢAREA INVESTIŢIILOR RURALE",null,null,null,null,null,null,null,null,null,null,null,null,null,null,null,null,null,null,null,null,null,null,null,null,null,null,null,null,null,null,null,null,null,null,null,null,null,null,null,null,null,null,null,"Nr.3"]
[]
[]
[]
["(Titlu deviz)"]
["Deviz capitolul 2- Cheltuieli pentru asigurarea utilităţilor necesare obiectivului - EURO"]
["Nr.crt",null,null,null,"Specificaţie",null,null,null,null,null,null,null,null,null,null,null,null,null,null,null,null,null,null,null,null,null,null,null,null,null,null,null,null,null,null,null,null,null,null,null,null,null,"Valoare eligibilă",null,null,null,null,null,null,null,null,"Valoare\nneeligibilă"]
[1,null,null,null,"Alimentare cu apă"]
[2,null,null,null,"Canalizare"]
[3,null,null,null,"Alimentare cu gaze naturale"]
[4,null,null,null,"Alimentare cu agent termic"]
[5,null,null,null,"Alimentare cu energie electrică"]
[6,null,null,null,"Telecomunicaţii (telefonie, radio-tv,etc)"]
[7,null,null,null,"Alte tipuri de reţele exterioare"]
[8,null,null,null,"Drumuri de acces"]
[null,null,null,null,"Total valoare fără TVA",null,null,null,null,null,null,null,null,null,null,null,null,null,null,null,null,null,null,null,null,null,null,null,null,null,null,null,null,null,null,null,null,null,null,null,null,null,{"$f":"SUM(AQ52:AY59)","v":0},null,null,null,null,null,null,null,null,{"$f":"SUM(AZ52:BI59)","v":0}]
[null,null,null,null,"Valoare TVA aferentă cheltuielilor eligibile şi neeligibile"]
["TOTAL DEVIZ CAPITOLUL 2 (inclusiv TVA)",null,null,null,null,null,null,null,null,null,null,null,null,null,null,null,null,null,null,null,null,null,null,null,null,null,null,null,null,null,null,null,null,null,null,null,null,null,null,null,null,null,{"$f":"AQ60+AZ60+AQ61+AZ61","v":0}]
[]
[" Deviz capitolul 5 - Alte cheltuieli - EURO"]
["Nr.crt",null,null,null,"Specificaţie",null,null,null,null,null,null,null,null,null,null,null,null,null,null,null,null,null,null,null,null,null,null,null,null,null,null,null,null,null,null,null,null,null,null,null,null,null,"Valoare eligibilă",null,null,null,null,null,null,null,null,"Valoare\nneeligibilă"]
[]
["5.1 ",null,null,null,"Organizare de şantier",null,null,null,null,null,null,null,null,null,null,null,null,null,null,null,null,null,null,null,null,null,null,null,null,null,null,null,null,null,null,null,null,null,null,null,null,null,{"$f":"SUM(AQ68:AY69)","v":0},null,null,null,null,null,null,null,null,{"$f":"SUM(AZ68:BI69)","v":0}]
["5.1.1",null,null,null,"lucrări de construcţii şi instalaţii aferente organizării de şantier"]
["5.1.2",null,null,null,"cheltuieli conexe organizării de şantier"]
["5.2",null,null,null,"Comisioane, taxe",null,null,null,null,null,null,null,null,null,null,null,null,null,null,null,null,null,null,null,null,null,null,null,null,null,null,null,null,null,null,null,null,null,null,null,null,null,{"$f":"SUM(AQ72:AY75)","v":0},null,null,null,null,null,null,null,null,{"$f":"SUM(AZ71:BI77)","v":0}]
[null,null,null,null,"comisionul băncii finanţatoare"]
[null,null,null,null,"cota aferentă Inspectoratului de Stat în Construcţii pentru controlul calităţii lucrărilor de construcţii"]
[null,null,null,null,"cota pentru controlul statului în amenajarea teritoriului, urbanism şi pentru autorizarea lucrărilor de construcţii"]
[null,null,null,null,"prime de asigurare din sarcina autorităţii contractante"]
[null,null,null,null,"alte cheltuieli de aceeaşi natură, stabilite în condiţiile legii"]
[null,null,null,null,"cota aferentă Casei Sociale a Constructorilor"]
["5.3",null,null,null," Cheltuieli diverse si neprevazute"]
[null,null,null,null,"TOTAL DEVIZ CAPITOLUL 5",null,null,null,null,null,null,null,null,null,null,null,null,null,null,null,null,null,null,null,null,null,null,null,null,null,null,null,null,null,null,null,null,null,null,null,null,null,{"$f":"AQ67+AQ70","v":0},null,null,null,null,null,null,null,null,{"$f":"AZ67+AZ70+AZ77","v":0}]
[null,null,null,null,"VALOARE TVA aferentă cheltuielilor eligibile şi neeligibile"]
[null,null,null,null,"TOTAL DEVIZ CAPITOLUL 5 ( inclusiv TVA)",null,null,null,null,null,null,null,null,null,null,null,null,null,null,null,null,null,null,null,null,null,null,null,null,null,null,null,null,null,null,null,null,null,null,null,null,null,{"$f":"AQ78+AZ78+AQ79+AZ79","v":0}]